Dept/Family,Entity,Expense Type,Expense Area,Supplier,Payment Date , Amount ,SME,UNSPCC Code,UNSPCC Description
"Ministry of Housing, Communities and Local Government",Homes England,Economic Assets Nw Prog,North West,BARTON GRANGE LANDSCAPES,09/05/2018,510,L,72101500,Building maintenance and repair services
"Ministry of Housing, Communities and Local Government",Homes England,Economic Assets Nw Prog,North West,BARTON GRANGE LANDSCAPES,16/05/2018,1064.29,L,72101500,Building maintenance and repair services
"Ministry of Housing, Communities and Local Government",Homes England,Capital Grant to Local Authorities,North East And Yorkshire,BARNSLEY METROPOLITAN BOROUGH COUNCIL,21/05/2018,10000,G,N/A,Grants
"Ministry of Housing, Communities and Local Government",Homes England,Capital Grant to Local Authorities,North East And Yorkshire,BARNSLEY METROPOLITAN BOROUGH COUNCIL,23/05/2018,18750,G,N/A,Grants
"Ministry of Housing, Communities and Local Government",Homes England,Capital Grant to Local Authorities,North East And Yorkshire,BARNSLEY METROPOLITAN BOROUGH COUNCIL,23/05/2018,18750,G,N/A,Grants
"Ministry of Housing, Communities and Local Government",Homes England,Capital Grant to Local Authorities,North East And Yorkshire,ROTHERHAM METROPOLITAN BOROUGH COUNCIL,03/05/2018,67500,G,N/A,Grants
"Ministry of Housing, Communities and Local Government",Homes England,Capital Grant to Local Authorities,North East And Yorkshire,ROTHERHAM METROPOLITAN BOROUGH COUNCIL,03/05/2018,67500,G,N/A,Grants
"Ministry of Housing, Communities and Local Government",Homes England,Capital Grant to Local Authorities,North East And Yorkshire,ROTHERHAM METROPOLITAN BOROUGH COUNCIL,29/05/2018,15000,G,N/A,Grants
"Ministry of Housing, Communities and Local Government",Homes England,Capital Grant to Local Authorities,North East And Yorkshire,SHEFFIELD CITY COUNCIL,30/05/2018,5000,G,N/A,Grants
"Ministry of Housing, Communities and Local Government",Homes England,Budget 2013 - Midlands Wm,Midlands,DUDLEY METROPOLITAN BOROUGH COUNCIL,17/05/2018,16815.04,G,80131500,Lease and rental of property or building
"Ministry of Housing, Communities and Local Government",Homes England,Capital Grant to Local Authorities,North East And Yorkshire,LEEDS CITY COUNCIL,11/05/2018,6950,G,N/A,Grants
"Ministry of Housing, Communities and Local Government",Homes England,Capital Grant to Local Authorities,North East And Yorkshire,LEEDS CITY COUNCIL,22/05/2018,6950,G,N/A,Grants
"Ministry of Housing, Communities and Local Government",Homes England,Capital Grant to Local Authorities,North East And Yorkshire,LEEDS CITY COUNCIL,22/05/2018,6950,G,N/A,Grants
"Ministry of Housing, Communities and Local Government",Homes England,Capital Grant to Local Authorities,North East And Yorkshire,LEEDS CITY COUNCIL,24/05/2018,6950,G,N/A,Grants
"Ministry of Housing, Communities and Local Government",Homes England,Capital Grant to Local Authorities,North East And Yorkshire,LEEDS CITY COUNCIL,25/05/2018,20852,G,N/A,Grants
"Ministry of Housing, Communities and Local Government",Homes England,Capital Grant to Local Authorities,North East And Yorkshire,NORTHUMBERLAND COUNTY COUNCIL,10/05/2018,30000,G,N/A,Grants
"Ministry of Housing, Communities and Local Government",Homes England,Capital Grant to Local Authorities,North East And Yorkshire,NORTHUMBERLAND COUNTY COUNCIL,24/05/2018,8048,G,N/A,Grants
"Ministry of Housing, Communities and Local Government",Homes England,Capital Grant to Local Authorities,Midlands,DERBY CITY COUNCIL,21/05/2018,5000,G,N/A,Grants
"Ministry of Housing, Communities and Local Government",Homes England,Economic Assets S&Sw Prog,South West,NORTH SOMERSET COUNCIL,08/05/2018,258.75,G,80131500,Lease and rental of property or building
"Ministry of Housing, Communities and Local Government",Homes England,Area Dir Mids Worcs-Shrop-Here,Midlands,COVENTRY CITY COUNCIL,02/05/2018,2400,G,80131500,Lease and rental of property or building
"Ministry of Housing, Communities and Local Government",Homes England,Budget 2013 - Midlands Wm,Midlands,COVENTRY CITY COUNCIL,30/05/2018,2400,G,80131500,Lease and rental of property or building
"Ministry of Housing, Communities and Local Government",Homes England,Estate Management Yorks,North West,ANTHONY MICHAEL COX,29/05/2018,437.5,S,92121500,Guard services
"Ministry of Housing, Communities and Local Government",Homes England,Estate Management Yorks,North West,ANTHONY MICHAEL COX,29/05/2018,350,S,92121500,Guard services
"Ministry of Housing, Communities and Local Government",Homes England,Estate Management Yorks,North West,ANTHONY MICHAEL COX,29/05/2018,350,S,92121500,Guard services
"Ministry of Housing, Communities and Local Government",Homes England,Estate Management Yorks,North West,ANTHONY MICHAEL COX,29/05/2018,437.5,S,92121500,Guard services
"Ministry of Housing, Communities and Local Government",Homes England,Budget 2013 - Midlands Wm,Midlands,R D LANDSCAPES LTD,16/05/2018,1260,S,72101500,Building maintenance and repair services
"Ministry of Housing, Communities and Local Government",Homes England,East And South East,East And South East,R D LANDSCAPES LTD,17/05/2018,950,S,72101500,Building maintenance and repair services
"Ministry of Housing, Communities and Local Government",Homes England,Spatial Intelligence Telford,Programmes,R D LANDSCAPES LTD,29/05/2018,1200,S,72101500,Building maintenance and repair services
"Ministry of Housing, Communities and Local Government",Homes England,Spatial Intelligence Telford,Programmes,R D LANDSCAPES LTD,29/05/2018,680,S,72101500,Building maintenance and repair services
"Ministry of Housing, Communities and Local Government",Homes England,Spatial Intelligence Telford,Programmes,R D LANDSCAPES LTD,29/05/2018,2700,S,72101500,Building maintenance and repair services
"Ministry of Housing, Communities and Local Government",Homes England,Budget 2013 - Midlands Wm,Midlands,SIMON TRANTER LANDSCAPE CONTRACTORS,29/05/2018,3655,S,72101500,Building maintenance and repair services
"Ministry of Housing, Communities and Local Government",Homes England,Budget 2013 - Midlands Wm,Midlands,SIMON TRANTER LANDSCAPE CONTRACTORS,29/05/2018,649,S,72101500,Building maintenance and repair services
"Ministry of Housing, Communities and Local Government",Homes England,Budget 2013 - Midlands Wm,Midlands,SIMON TRANTER LANDSCAPE CONTRACTORS,29/05/2018,985,S,72101500,Building maintenance and repair services
"Ministry of Housing, Communities and Local Government",Homes England,Spatial Intelligence Telford,Programmes,SIMON TRANTER LANDSCAPE CONTRACTORS,29/05/2018,3989,S,72101500,Building maintenance and repair services
"Ministry of Housing, Communities and Local Government",Homes England,Spatial Intelligence Telford,Programmes,CROWN ESTATE COMMISSIONERS,18/05/2018,315,L,80131500,Lease and rental of property or building
"Ministry of Housing, Communities and Local Government",Homes England,Comms Transition Budget,Finance & Corporate Services,KNIGHT FRANK LLP,22/05/2018,659.19,L,80131500,Lease and rental of property or building
"Ministry of Housing, Communities and Local Government",Homes England,Comms Transition Budget,Finance & Corporate Services,KNIGHT FRANK LLP,22/05/2018,1599.07,L,80131500,Lease and rental of property or building
"Ministry of Housing, Communities and Local Government",Homes England,Comms Transition Budget,Finance & Corporate Services,KNIGHT FRANK LLP,30/05/2018,659.19,L,80131500,Lease and rental of property or building
"Ministry of Housing, Communities and Local Government",Homes England,Comms Transition Budget,Finance & Corporate Services,KNIGHT FRANK LLP,30/05/2018,1599.07,L,80131500,Lease and rental of property or building
"Ministry of Housing, Communities and Local Government",Homes England,Company Secretary Mh,Finance & Corporate Services,IRON MOUNTAIN (UK) LTD,01/05/2018,1940.64,L,78131800,Specialized warehousing and storage
"Ministry of Housing, Communities and Local Government",Homes England,Company Secretary Mh,Finance & Corporate Services,IRON MOUNTAIN (UK) LTD,01/05/2018,2925.29,L,78131800,Specialized warehousing and storage
"Ministry of Housing, Communities and Local Government",Homes England,Company Secretary Mh,Finance & Corporate Services,IRON MOUNTAIN (UK) LTD,01/05/2018,3411.32,L,78131800,Specialized warehousing and storage
"Ministry of Housing, Communities and Local Government",Homes England,Company Secretary Mh,Finance & Corporate Services,IRON MOUNTAIN (UK) LTD,08/05/2018,6606.12,L,78131800,Specialized warehousing and storage
"Ministry of Housing, Communities and Local Government",Homes England,Economic Assets Nw Prog,North West,SURVEY OPERATIONS LIMITED,02/05/2018,525,S,81151604,Land surveying�
"Ministry of Housing, Communities and Local Government",Homes England,Economic Assets Nw Prog,North West,SURVEY OPERATIONS LIMITED,02/05/2018,525,S,81151604,Land surveying�
"Ministry of Housing, Communities and Local Government",Homes England,Spatial Intelligence Telford,Programmes,VALUATION OFFICE AGENCY ADMINISTRATION,04/05/2018,2500,G,80131800,Real estate management services
"Ministry of Housing, Communities and Local Government",Homes England,Spatial Intelligence Telford,Programmes,VALUATION OFFICE AGENCY ADMINISTRATION,04/05/2018,2500,G,80131800,Real estate management services
"Ministry of Housing, Communities and Local Government",Homes England,Comms Transition Budget,Finance & Corporate Services,GREENHAM TRADING LTD,31/05/2018,3574.44,L,46181500,Safety footwear
"Ministry of Housing, Communities and Local Government",Homes England,Comms Transition Budget,Finance & Corporate Services,GREENHAM TRADING LTD,31/05/2018,309.16,L,46181500,Safety footwear
"Ministry of Housing, Communities and Local Government",Homes England,Comms Transition Budget,Finance & Corporate Services,GREENHAM TRADING LTD,31/05/2018,463.74,L,46181500,Safety footwear
"Ministry of Housing, Communities and Local Government",Homes England,Comms Transition Budget,Finance & Corporate Services,GREENHAM TRADING LTD,31/05/2018,1854.96,L,46181500,Safety footwear
"Ministry of Housing, Communities and Local Government",Homes England,Comms Transition Budget,Finance & Corporate Services,CARDINUS LTD,11/05/2018,3832.23,L,43231500,Business function specific software
"Ministry of Housing, Communities and Local Government",Homes England,Comms Transition Budget,Finance & Corporate Services,MK LONDON LINK,08/05/2018,308.09,S,78102200,Postal and small parcel and courier services
"Ministry of Housing, Communities and Local Government",Homes England,Comms Transition Budget,Finance & Corporate Services,BAGNALL & MORRIS WASTE SERVICES LTD,08/05/2018,288.93,M,76121500,Refuse collection and disposal
"Ministry of Housing, Communities and Local Government",Homes England,Programme Management Mh,Finance & Corporate Services,RSM UK AUDIT LLP,25/05/2018,1250,L,84111700,Corporate Finance
"Ministry of Housing, Communities and Local Government",Homes England,Economic Assets Ne-Y Prog,North East And Yorkshire,GROUND CONTROL LIMITED,03/05/2018,695,L,72101500,Building maintenance and repair services
"Ministry of Housing, Communities and Local Government",Homes England,Capital Grant to Local Authorities,North East And Yorkshire,HARROGATE BOROUGH COUNCIL,04/05/2018,7312,G,N/A,Grants
"Ministry of Housing, Communities and Local Government",Homes England,Capital Grant to Local Authorities,North East And Yorkshire,HARROGATE BOROUGH COUNCIL,04/05/2018,21938,G,N/A,Grants
"Ministry of Housing, Communities and Local Government",Homes England,Capital Grant to Local Authorities,North East And Yorkshire,HARROGATE BOROUGH COUNCIL,04/05/2018,7312,G,N/A,Grants
"Ministry of Housing, Communities and Local Government",Homes England,Capital Grant to Local Authorities,North East And Yorkshire,HARROGATE BOROUGH COUNCIL,31/05/2018,49500,G,N/A,Grants
"Ministry of Housing, Communities and Local Government",Homes England,Economic Assets S&Sw Prog,South West,SOUTH OXFORDSHIRE DISTRICT COUNCIL,25/05/2018,375,G,80131500,Lease and rental of property or building
"Ministry of Housing, Communities and Local Government",Homes England,East And South East,East And South East,CAMBRIDGESHIRE COUNTY COUNCIL,04/05/2018,3600,G,80131800,Real estate management services
"Ministry of Housing, Communities and Local Government",Homes England,Budget 2013 - Midlands Wm,Midlands,SHROPSHIRE COUNTY COUNCIL,11/05/2018,2028,G,80131500,Lease and rental of property or building
"Ministry of Housing, Communities and Local Government",Homes England,Capital Grant to Local Authorities,North West,CANNOCK CHASE DISTRICT COUNCIL,18/05/2018,32000,G,N/A,Grants
"Ministry of Housing, Communities and Local Government",Homes England,Capital Grant to Local Authorities,North West,RUGBY BOROUGH COUNCIL,21/05/2018,135000,G,N/A,Grants
"Ministry of Housing, Communities and Local Government",Homes England,Capital Grant to Local Authorities,North West,RUGBY BOROUGH COUNCIL,22/05/2018,45000,G,N/A,Grants
"Ministry of Housing, Communities and Local Government",Homes England,Capital Grant to Local Authorities,North West,BOLTON AT HOME LIMITED,17/05/2018,9000,,N/A,Grants
"Ministry of Housing, Communities and Local Government",Homes England,Capital Grant to Local Authorities,North West,BOLTON AT HOME LIMITED,17/05/2018,9000,,N/A,Grants
"Ministry of Housing, Communities and Local Government",Homes England,Capital Grant to Local Authorities,North West,BOLTON AT HOME LIMITED,17/05/2018,9000,,N/A,Grants
"Ministry of Housing, Communities and Local Government",Homes England,Capital Grant to Local Authorities,North West,BOLTON AT HOME LIMITED,17/05/2018,9000,,N/A,Grants
"Ministry of Housing, Communities and Local Government",Homes England,Capital Grant to Local Authorities,North West,BOLTON AT HOME LIMITED,17/05/2018,9000,,N/A,Grants
"Ministry of Housing, Communities and Local Government",Homes England,Capital Grant to Local Authorities,North West,BOLTON AT HOME LIMITED,17/05/2018,9000,,N/A,Grants
"Ministry of Housing, Communities and Local Government",Homes England,Capital Grant to Local Authorities,North West,BOLTON AT HOME LIMITED,17/05/2018,9000,,N/A,Grants
"Ministry of Housing, Communities and Local Government",Homes England,Capital Grant to Local Authorities,North West,BOLTON AT HOME LIMITED,17/05/2018,9000,,N/A,Grants
"Ministry of Housing, Communities and Local Government",Homes England,Capital Grant to Local Authorities,North West,BOLTON AT HOME LIMITED,17/05/2018,9000,,N/A,Grants
"Ministry of Housing, Communities and Local Government",Homes England,Capital Grant to Local Authorities,North West,BOLTON AT HOME LIMITED,17/05/2018,9000,,N/A,Grants
"Ministry of Housing, Communities and Local Government",Homes England,Capital Grant to Local Authorities,North West,FIRST CHOICE HOMES OLDHAM LIMITED,15/05/2018,9000,,N/A,Grants
"Ministry of Housing, Communities and Local Government",Homes England,Capital Grant to Local Authorities,North West,FIRST CHOICE HOMES OLDHAM LIMITED,15/05/2018,9000,,N/A,Grants
"Ministry of Housing, Communities and Local Government",Homes England,Capital Grant to Local Authorities,North West,GLOUCESTER CITY HOMES,08/05/2018,43500,,N/A,Grants
"Ministry of Housing, Communities and Local Government",Homes England,Capital Grant to RPs,North East And Yorkshire,HEART OF MEDWAY HOUSING ASSOCIATION LTD,31/05/2018,294500,,N/A,Grants
"Ministry of Housing, Communities and Local Government",Homes England,Capital Grant to RPs,North East And Yorkshire,HEART OF MEDWAY HOUSING ASSOCIATION LTD,31/05/2018,108750,,N/A,Grants
"Ministry of Housing, Communities and Local Government",Homes England,Capital Grant to RPs,North East And Yorkshire,HEART OF MEDWAY HOUSING ASSOCIATION LTD,31/05/2018,15500,,N/A,Grants
"Ministry of Housing, Communities and Local Government",Homes England,Capital Grant to RPs,East And South East,YMCA DOWNSLINK GROUP,03/05/2018,11250,,N/A,Grants
"Ministry of Housing, Communities and Local Government",Homes England,Capital Grant to RPs,East And South East,YMCA DOWNSLINK GROUP,03/05/2018,15000,,N/A,Grants
"Ministry of Housing, Communities and Local Government",Homes England,Capital Grant to RPs,North East And Yorkshire,KEELMAN HOMES,09/05/2018,22500,,N/A,Grants
"Ministry of Housing, Communities and Local Government",Homes England,Capital Grant to RPs,North East And Yorkshire,KEELMAN HOMES,23/05/2018,5500,,N/A,Grants
"Ministry of Housing, Communities and Local Government",Homes England,Capital Grant to RPs,North East And Yorkshire,KEELMAN HOMES,23/05/2018,11250,,N/A,Grants
"Ministry of Housing, Communities and Local Government",Homes England,Capital Grant to RPs,North East And Yorkshire,KEELMAN HOMES,25/05/2018,22500,,N/A,Grants
"Ministry of Housing, Communities and Local Government",Homes England,Capital Grant to RPs,North West,J & M RESIDENTIAL LETTINGS LIMITED,15/05/2018,5000,,N/A,Grants
"Ministry of Housing, Communities and Local Government",Homes England,Capital Grant to RPs,North West,J & M RESIDENTIAL LETTINGS LIMITED,17/05/2018,14400,,N/A,Grants
"Ministry of Housing, Communities and Local Government",Homes England,Capital Grant to RPs,North West,J & M RESIDENTIAL LETTINGS LIMITED,21/05/2018,5000,,N/A,Grants
"Ministry of Housing, Communities and Local Government",Homes England,Capital Grant to RPs,North West,J & M RESIDENTIAL LETTINGS LIMITED,21/05/2018,15000,,N/A,Grants
"Ministry of Housing, Communities and Local Government",Homes England,Capital Grant to RPs,North West,J & M RESIDENTIAL LETTINGS LIMITED,21/05/2018,12600,,N/A,Grants
"Ministry of Housing, Communities and Local Government",Homes England,Capital Grant to RPs,North West,J & M RESIDENTIAL LETTINGS LIMITED,29/05/2018,9000,,N/A,Grants
"Ministry of Housing, Communities and Local Government",Homes England,Capital Grant to RPs,North West,J & M RESIDENTIAL LETTINGS LIMITED,31/05/2018,5000,,N/A,Grants
"Ministry of Housing, Communities and Local Government",Homes England,Capital Grant to RPs,North East And Yorkshire,HIGHSTONE HOUSING ASSOCIATION,21/05/2018,175000,,N/A,Grants
"Ministry of Housing, Communities and Local Government",Homes England,Capital Grant to RPs,South West,DEVON AND CORNWALL HOUSING LIMITED,16/05/2018,18000,,N/A,Grants
"Ministry of Housing, Communities and Local Government",Homes England,Area Dir Mids Worcs-Shrop-Here,Midlands,SSE POWER DISTRIBUTION,21/05/2018,302.67,L,83101807,Municipal electric power distribution
"Ministry of Housing, Communities and Local Government",Homes England,Spatial Intelligence Telford,Programmes,AMION CONSULTING LTD,22/05/2018,7000,S,81121500,Economic analysis
"Ministry of Housing, Communities and Local Government",Homes England,Economic Assets Ne-Y Prog,North East And Yorkshire,AMION CONSULTING LTD,22/05/2018,3000,S,81121500,Economic analysis
"Ministry of Housing, Communities and Local Government",Homes England,Spatial Intelligence Telford,Programmes,AMION CONSULTING LTD,22/05/2018,4772.4,S,81121500,Economic analysis
"Ministry of Housing, Communities and Local Government",Homes England,HCA Investment Credit Risk Man,Programmes,ADECCO UK LTD,01/05/2018,934.57,L,80111600,Temporary personnel services
"Ministry of Housing, Communities and Local Government",Homes England,Economic Assets Ne-Y Prog,North East And Yorkshire,ADECCO UK LTD,02/05/2018,558,L,80111600,Temporary personnel services
"Ministry of Housing, Communities and Local Government",Homes England,Economic Assets Ne-Y Prog,North East And Yorkshire,ADECCO UK LTD,02/05/2018,558,L,80111600,Temporary personnel services
"Ministry of Housing, Communities and Local Government",Homes England,Economic Assets Ne-Y Prog,North East And Yorkshire,ADECCO UK LTD,02/05/2018,446.4,L,80111600,Temporary personnel services
"Ministry of Housing, Communities and Local Government",Homes England,Economic Assets Ne-Y Prog,North East And Yorkshire,ADECCO UK LTD,02/05/2018,446.4,L,80111600,Temporary personnel services
"Ministry of Housing, Communities and Local Government",Homes England,Economic Assets Ne-Y Prog,North East And Yorkshire,ADECCO UK LTD,08/05/2018,334.8,L,80111600,Temporary personnel services
"Ministry of Housing, Communities and Local Government",Homes England,Economic Assets Ne-Y Prog,North East And Yorkshire,ADECCO UK LTD,08/05/2018,562.88,L,80111600,Temporary personnel services
"Ministry of Housing, Communities and Local Government",Homes England,HCA Investment Credit Risk Man,Programmes,ADECCO UK LTD,08/05/2018,934.57,L,80111600,Temporary personnel services
"Ministry of Housing, Communities and Local Government",Homes England,Land And Regeneration Mh,Programmes,ADECCO UK LTD,10/05/2018,423.57,L,80111600,Temporary personnel services
"Ministry of Housing, Communities and Local Government",Homes England,Land And Regeneration Mh,Programmes,ADECCO UK LTD,10/05/2018,564.76,L,80111600,Temporary personnel services
"Ministry of Housing, Communities and Local Government",Homes England,HCA Investment Credit Risk Man,Programmes,ADECCO UK LTD,16/05/2018,733.46,L,80111600,Temporary personnel services
"Ministry of Housing, Communities and Local Government",Homes England,Land And Regeneration Mh,Programmes,ADECCO UK LTD,16/05/2018,564.76,L,80111600,Temporary personnel services
"Ministry of Housing, Communities and Local Government",Homes England,Economic Assets Ne-Y Prog,North East And Yorkshire,ADECCO UK LTD,22/05/2018,562.88,L,80111600,Temporary personnel services
"Ministry of Housing, Communities and Local Government",Homes England,Economic Assets Ne-Y Prog,North East And Yorkshire,ADECCO UK LTD,22/05/2018,562.88,L,80111600,Temporary personnel services
"Ministry of Housing, Communities and Local Government",Homes England,Economic Assets Ne-Y Prog,North East And Yorkshire,ADECCO UK LTD,22/05/2018,562.88,L,80111600,Temporary personnel services
"Ministry of Housing, Communities and Local Government",Homes England,HCA Investment Credit Risk Man,Programmes,ADECCO UK LTD,23/05/2018,733.46,L,80111600,Temporary personnel services
"Ministry of Housing, Communities and Local Government",Homes England,HCA Investment Credit Risk Man,Programmes,ADECCO UK LTD,29/05/2018,916.83,L,80111600,Temporary personnel services
"Ministry of Housing, Communities and Local Government",Homes England,Land And Regeneration Mh,Programmes,ADECCO UK LTD,30/05/2018,705.95,L,80111600,Temporary personnel services
"Ministry of Housing, Communities and Local Government",Homes England,Economic Assets Ne-Y Prog,North East And Yorkshire,DEPARTMENT FOR COMMUNITIES & LOCAL GOVERNMENT,08/05/2018,9126.16,G,Non Procurement Other,Non Procurement Other
"Ministry of Housing, Communities and Local Government",Homes England,Economic Assets Ne-Y Prog,North East And Yorkshire,DEPARTMENT FOR COMMUNITIES & LOCAL GOVERNMENT,17/05/2018,15660.28,G,Non Procurement Other,Non Procurement Other
"Ministry of Housing, Communities and Local Government",Homes England,Economic Assets Ne-Y Prog,North East And Yorkshire,DEPARTMENT FOR COMMUNITIES & LOCAL GOVERNMENT,23/05/2018,32309.22,G,Non Procurement Other,Non Procurement Other
"Ministry of Housing, Communities and Local Government",Homes England,Economic Assets Ne-Y Prog,North East And Yorkshire,DEPARTMENT FOR COMMUNITIES & LOCAL GOVERNMENT,23/05/2018,1665.12,G,80131500,Lease and rental of property or building
"Ministry of Housing, Communities and Local Government",Homes England,Comms Transition Budget,Finance & Corporate Services,DEPARTMENT FOR COMMUNITIES & LOCAL GOVERNMENT,29/05/2018,4352.26,G,Non Procurement Other,Non Procurement Other
"Ministry of Housing, Communities and Local Government",Homes England,Economic Assets Hub Transition,Economic Assets Hub,AQUINNA DEVELOPMENTS LIMITED,23/05/2018,268395,,N/A,Loans
"Ministry of Housing, Communities and Local Government",Homes England,Economic Assets Nw Prog,North West,ATKINS LTD,01/05/2018,9500,L,80131800,Real estate management services
"Ministry of Housing, Communities and Local Government",Homes England,Spatial Intelligence Telford,Programmes,ATKINS LTD,14/05/2018,2386.77,L,80131800,Real estate management services
"Ministry of Housing, Communities and Local Government",Homes England,It - Rda Transition,Finance & Corporate Services,ACADEMIA LTD,18/05/2018,2025,M,43231500,Business function specific software
"Ministry of Housing, Communities and Local Government",Homes England,It - Rda Transition,Finance & Corporate Services,ACADEMIA LTD,18/05/2018,2075,M,43231500,Business function specific software
"Ministry of Housing, Communities and Local Government",Homes England,HCA Investment Portfolio SGH,Programmes,LEASEPLAN UK LIMITED,17/05/2018,2186.38,L,25101500,Passenger motor vehicles
"Ministry of Housing, Communities and Local Government",Homes England,HCA Investment Portfolio SGH,Programmes,LEASEPLAN UK LIMITED,17/05/2018,2804.37,L,25101500,Passenger motor vehicles
"Ministry of Housing, Communities and Local Government",Homes England,Estate Management Yorks,North West,LEASEPLAN UK LIMITED,17/05/2018,298.51,L,25101500,Passenger motor vehicles
"Ministry of Housing, Communities and Local Government",Homes England,HCA Investment Portfolio SGH,Programmes,LEASEPLAN UK LIMITED,17/05/2018,2506.75,L,25101500,Passenger motor vehicles
"Ministry of Housing, Communities and Local Government",Homes England,HCA Investment Portfolio SGH,Programmes,LEASEPLAN UK LIMITED,17/05/2018,4407.13,L,25101500,Passenger motor vehicles
"Ministry of Housing, Communities and Local Government",Homes England,East And South East,East And South East,ALPHABET (GB) LTD,09/05/2018,2374.08,L,25101500,Passenger motor vehicles
"Ministry of Housing, Communities and Local Government",Homes England,East And South East,East And South East,ALPHABET (GB) LTD,09/05/2018,2783.62,L,25101500,Passenger motor vehicles
"Ministry of Housing, Communities and Local Government",Homes England,Estate Management Yorks,North West,ALPHABET (GB) LTD,10/05/2018,251.91,L,25101500,Passenger motor vehicles
"Ministry of Housing, Communities and Local Government",Homes England,Spatial Intelligence Telford,Programmes,ALPHABET (GB) LTD,10/05/2018,251.1,L,25101500,Passenger motor vehicles
"Ministry of Housing, Communities and Local Government",Homes England,Economic Assets Ne-Y Prog,North East And Yorkshire,ARCH (COMMERCIAL ENTERPRISE) LTD,29/05/2018,34375,G,N/A,Grants
"Ministry of Housing, Communities and Local Government",Homes England,Economic Assets Nw Prog,North West,ALTITUDE SERVICES,21/05/2018,1015,M,72101500,Building maintenance and repair services
"Ministry of Housing, Communities and Local Government",Homes England,Economic Assets Nw Prog,North West,AUSTIN WILKINSON DEMOLITION LTD,09/05/2018,145716.32,S,72141500,Land preparation services
"Ministry of Housing, Communities and Local Government",Homes England,Spatial Intelligence Telford,Programmes,ARVAL UK LIMITED,22/05/2018,2060.61,L,25101500,Passenger motor vehicles
"Ministry of Housing, Communities and Local Government",Homes England,Spatial Intelligence Telford,Programmes,ARVAL UK LIMITED,22/05/2018,2928.92,L,25101500,Passenger motor vehicles
"Ministry of Housing, Communities and Local Government",Homes England,Economic Assets Ne-Y Prog,North East And Yorkshire,ARVAL UK LIMITED,22/05/2018,1834.4,L,25101500,Passenger motor vehicles
"Ministry of Housing, Communities and Local Government",Homes England,Economic Assets Ne-Y Prog,North East And Yorkshire,ARVAL UK LIMITED,22/05/2018,2486.71,L,25101500,Passenger motor vehicles
"Ministry of Housing, Communities and Local Government",Homes England,Company Secretary Mh,Finance & Corporate Services,ARVAL UK LIMITED,22/05/2018,2189.66,L,25101500,Passenger motor vehicles
"Ministry of Housing, Communities and Local Government",Homes England,Company Secretary Mh,Finance & Corporate Services,ARVAL UK LIMITED,22/05/2018,2787.98,L,25101500,Passenger motor vehicles
"Ministry of Housing, Communities and Local Government",Homes England,Economic Assets Nw Prog,North West,ARVAL UK LIMITED,24/05/2018,1830.26,L,25101500,Passenger motor vehicles
"Ministry of Housing, Communities and Local Government",Homes England,Economic Assets Nw Prog,North West,ARVAL UK LIMITED,24/05/2018,2806.09,L,25101500,Passenger motor vehicles
"Ministry of Housing, Communities and Local Government",Homes England,Assistant Chief Exec National,Executive Office,ARVAL UK LIMITED,30/05/2018,1651.2,L,25101500,Passenger motor vehicles
"Ministry of Housing, Communities and Local Government",Homes England,Assistant Chief Exec National,Executive Office,ARVAL UK LIMITED,30/05/2018,2249.52,L,25101500,Passenger motor vehicles
"Ministry of Housing, Communities and Local Government",Homes England,Communications Allerton,Executive Office,THE ACC LIVERPOOL GROUP,18/05/2018,17865,L,90111600,Meeting facilities
"Ministry of Housing, Communities and Local Government",Homes England,It - Rda Transition,Finance & Corporate Services,ACS BUSINESS SUPPLIES,14/05/2018,13477.35,M,43211900,Computer displays
"Ministry of Housing, Communities and Local Government",Homes England,It - Rda Transition,Finance & Corporate Services,ACS BUSINESS SUPPLIES,14/05/2018,17969.8,M,43211900,Computer displays
"Ministry of Housing, Communities and Local Government",Homes England,Economic Assets Hub Transition,Economic Assets Hub,ACROM HOLDINGS LIMITED,01/05/2018,82444,,N/A,Loans
"Ministry of Housing, Communities and Local Government",Homes England,Economic Assets Hub Transition,Economic Assets Hub,ACROM HOLDINGS LIMITED,29/05/2018,103870,,N/A,Loans
"Ministry of Housing, Communities and Local Government",Homes England,Economic Assets Hub Transition,Economic Assets Hub,ASH GREEN (HOLDINGS) LTD,08/05/2018,80000,,N/A,Loans
"Ministry of Housing, Communities and Local Government",Homes England,Ne-Y North East Washington,North East And Yorkshire,AIREDALE FORESTRY,03/05/2018,635.5,S,72101500,Building maintenance and repair services
"Ministry of Housing, Communities and Local Government",Homes England,Economic Assets Ne-Y Prog,North East And Yorkshire,AIREDALE FORESTRY,03/05/2018,362.83,S,72101500,Building maintenance and repair services
"Ministry of Housing, Communities and Local Government",Homes England,Economic Assets Ne-Y Prog,North East And Yorkshire,AIREDALE FORESTRY,11/05/2018,390.25,S,72101500,Building maintenance and repair services
"Ministry of Housing, Communities and Local Government",Homes England,Spatial Intelligence Telford,Programmes,AIREDALE FORESTRY,11/05/2018,408.97,S,72101500,Building maintenance and repair services
"Ministry of Housing, Communities and Local Government",Homes England,East And South East,East And South East,GENECON,11/05/2018,16800,S,81121500,Economic analysis
"Ministry of Housing, Communities and Local Government",Homes England,HCA Investment Credit Risk Man,Programmes,ARNOLD CLARK FINANCE LIMITED,18/05/2018,2474.04,L,25101500,Passenger motor vehicles
"Ministry of Housing, Communities and Local Government",Homes England,HCA Investment Credit Risk Man,Programmes,ARNOLD CLARK FINANCE LIMITED,18/05/2018,3046.8,L,25101500,Passenger motor vehicles
"Ministry of Housing, Communities and Local Government",Homes England,Budget 2013 - Midlands Wm,Midlands,ARNOLD CLARK FINANCE LIMITED,18/05/2018,2091.36,L,25101500,Passenger motor vehicles
"Ministry of Housing, Communities and Local Government",Homes England,Budget 2013 - Midlands Wm,Midlands,ARNOLD CLARK FINANCE LIMITED,18/05/2018,2372.76,L,25101500,Passenger motor vehicles
"Ministry of Housing, Communities and Local Government",Homes England,South West Of Eng-Glouc-Oxford,South West,ARNOLD CLARK FINANCE LIMITED,18/05/2018,2686.62,L,25101500,Passenger motor vehicles
"Ministry of Housing, Communities and Local Government",Homes England,South West Of Eng-Glouc-Oxford,South West,ARNOLD CLARK FINANCE LIMITED,18/05/2018,3550.02,L,25101500,Passenger motor vehicles
"Ministry of Housing, Communities and Local Government",Homes England,East And South East,East And South East,ANGLIAN WATER SERVICES LTD,03/05/2018,1042250,L,72101500,Building maintenance and repair services
"Ministry of Housing, Communities and Local Government",Homes England,East And Se Essex And Kent,East And South East,BERWIN LEIGHTON PAISNER,09/05/2018,1590,L,80121600,Business law services
"Ministry of Housing, Communities and Local Government",Homes England,East And South East,East And South East,BERWIN LEIGHTON PAISNER,11/05/2018,6569.5,L,80121600,Business law services
"Ministry of Housing, Communities and Local Government",Homes England,Economic Assets Hub Transition,Economic Assets Hub,BERWIN LEIGHTON PAISNER,29/05/2018,2500,L,80121600,Business law services
"Ministry of Housing, Communities and Local Government",Homes England,Economic Assets Hub Transition,Economic Assets Hub,BLOSSOM IRON DEVELOPMENTS LIMITED,23/05/2018,907626.22,,N/A,Loans
"Ministry of Housing, Communities and Local Government",Homes England,Economic Assets Ne-Y Prog,North East And Yorkshire,DEPARTMENT FOR BUSINESS INNOVATION & SKILLS,21/05/2018,5898.64,G,N/A,Acquisitions
"Ministry of Housing, Communities and Local Government",Homes England,Economic Assets Ne-Y Prog,North East And Yorkshire,DEPARTMENT FOR BUSINESS INNOVATION & SKILLS,21/05/2018,117675.12,G,N/A,Acquisitions
"Ministry of Housing, Communities and Local Government",Homes England,Economic Assets S&Sw Prog,South West,DEPARTMENT FOR BUSINESS INNOVATION & SKILLS,21/05/2018,527232.25,G,N/A,Acquisitions
"Ministry of Housing, Communities and Local Government",Homes England,Budget 2013 - Midlands Wm,Midlands,DEPARTMENT FOR BUSINESS INNOVATION & SKILLS,21/05/2018,3737466.47,G,N/A,Acquisitions
"Ministry of Housing, Communities and Local Government",Homes England,Economic Assets Ne-Y Prog,North East And Yorkshire,DEPARTMENT FOR BUSINESS INNOVATION & SKILLS,21/05/2018,7168646.01,G,N/A,Acquisitions
"Ministry of Housing, Communities and Local Government",Homes England,Area Dir Mids Worcs-Shrop-Here,Midlands,BROWNE JACOBSON LLP,01/05/2018,750,L,80121600,Business law services
"Ministry of Housing, Communities and Local Government",Homes England,East And South East,East And South East,BROWNE JACOBSON LLP,03/05/2018,1062.28,L,80121600,Business law services
"Ministry of Housing, Communities and Local Government",Homes England,Economic Assets S&Sw Prog,South West,BROWNE JACOBSON LLP,04/05/2018,2500,L,80121600,Business law services
"Ministry of Housing, Communities and Local Government",Homes England,Economic Assets S&Sw Prog,South West,BROWNE JACOBSON LLP,04/05/2018,1945.5,L,80121600,Business law services
"Ministry of Housing, Communities and Local Government",Homes England,Economic Assets S&Sw Prog,South West,BROWNE JACOBSON LLP,04/05/2018,19200,L,80121600,Business law services
"Ministry of Housing, Communities and Local Government",Homes England,Economic Assets Hub Transition,Economic Assets Hub,BROWNE JACOBSON LLP,14/05/2018,6975.3,L,80121600,Business law services
"Ministry of Housing, Communities and Local Government",Homes England,Estate Management Yorks,North West,BROWNE JACOBSON LLP,14/05/2018,1000,L,80121600,Business law services
"Ministry of Housing, Communities and Local Government",Homes England,Economic Assets S&Sw Prog,South West,BROWNE JACOBSON LLP,15/05/2018,1506,L,80121600,Business law services
"Ministry of Housing, Communities and Local Government",Homes England,East And South East,East And South East,BROWNE JACOBSON LLP,18/05/2018,3020,L,80121600,Business law services
"Ministry of Housing, Communities and Local Government",Homes England,Economic Assets S&Sw Prog,South West,BROWNE JACOBSON LLP,21/05/2018,500,L,80121600,Business law services
"Ministry of Housing, Communities and Local Government",Homes England,South West Of Eng-Glouc-Oxford,South West,BROWNE JACOBSON LLP,23/05/2018,594,L,80121600,Business law services
"Ministry of Housing, Communities and Local Government",Homes England,Economic Assets Hub Transition,Economic Assets Hub,BROWNE JACOBSON LLP,25/05/2018,750,L,80121600,Business law services
"Ministry of Housing, Communities and Local Government",Homes England,Economic Assets Nw Prog,North West,BUILDING DESIGN PARTNERSHIP,11/05/2018,4905,L,80131800,Real estate management services
"Ministry of Housing, Communities and Local Government",Homes England,Land And Regeneration Mh,Programmes,BUILDING DESIGN PARTNERSHIP,15/05/2018,1800,L,80131800,Real estate management services
"Ministry of Housing, Communities and Local Government",Homes England,Economic Assets Nw Prog,North West,BUILDING DESIGN PARTNERSHIP,30/05/2018,18946.5,L,80131800,Real estate management services
"Ministry of Housing, Communities and Local Government",Homes England,Budget 2013 - Midlands Wm,Midlands,CANAL & RIVER TRUST,29/05/2018,657.5,L,80131500,Lease and rental of property or building
"Ministry of Housing, Communities and Local Government",Homes England,Budget 2013 - Midlands Wm,Midlands,CANAL & RIVER TRUST,29/05/2018,333.75,L,80131500,Lease and rental of property or building
"Ministry of Housing, Communities and Local Government",Homes England,Change Management Team Bpr,Executive Office,THE BOSTON CONSULTING GROUP UK LLP,09/05/2018,375000,L,81121500,Economic analysis
"Ministry of Housing, Communities and Local Government",Homes England,Economic Assets S&Sw Prog,South West,PETER BRETT ASSOCIATES LLP,01/05/2018,10336.25,L,80131800,Real estate management services
"Ministry of Housing, Communities and Local Government",Homes England,South West Hants-Iow-Dorset-Bu,South West,PETER BRETT ASSOCIATES LLP,03/05/2018,13610,L,80131800,Real estate management services
"Ministry of Housing, Communities and Local Government",Homes England,Land And Regeneration Mh,Programmes,PETER BRETT ASSOCIATES LLP,03/05/2018,2793.45,L,80131800,Real estate management services
"Ministry of Housing, Communities and Local Government",Homes England,Economic Assets Nw Prog,North West,PETER BRETT ASSOCIATES LLP,04/05/2018,2275,L,80131800,Real estate management services
"Ministry of Housing, Communities and Local Government",Homes England,Economic Assets S&Sw Prog,South West,PETER BRETT ASSOCIATES LLP,25/05/2018,33588,L,80131800,Real estate management services
"Ministry of Housing, Communities and Local Government",Homes England,Economic Assets S&Sw Prog,South West,PETER BRETT ASSOCIATES LLP,31/05/2018,21664.25,L,80131800,Real estate management services
"Ministry of Housing, Communities and Local Government",Homes England,Economic Assets S&Sw Prog,South West,PETER BRETT ASSOCIATES LLP,31/05/2018,10862,L,80131800,Real estate management services
"Ministry of Housing, Communities and Local Government",Homes England,Economic Assets S&Sw Prog,South West,PETER BRETT ASSOCIATES LLP,31/05/2018,10413,L,80131800,Real estate management services
"Ministry of Housing, Communities and Local Government",Homes England,Economic Assets Ne-Y Prog,North East And Yorkshire,BIFFA WASTE SERVICE LTD,01/05/2018,322.83,L,76121500,Refuse collection and disposal
"Ministry of Housing, Communities and Local Government",Homes England,Economic Assets Ne-Y Prog,North East And Yorkshire,BIFFA WASTE SERVICE LTD,30/05/2018,424.28,L,76121500,Refuse collection and disposal
"Ministry of Housing, Communities and Local Government",Homes England,Communications Allerton,Executive Office,BADENOCH & CLARK,09/05/2018,764.73,L,80111600,Temporary personnel services
"Ministry of Housing, Communities and Local Government",Homes England,Communications Allerton,Executive Office,BADENOCH & CLARK,23/05/2018,772.45,L,80111600,Temporary personnel services
"Ministry of Housing, Communities and Local Government",Homes England,Communications Allerton,Executive Office,BADENOCH & CLARK,23/05/2018,647.31,L,80111600,Temporary personnel services
"Ministry of Housing, Communities and Local Government",Homes England,Communications Allerton,Executive Office,BADENOCH & CLARK,23/05/2018,617.96,L,80111600,Temporary personnel services
"Ministry of Housing, Communities and Local Government",Homes England,Communications Allerton,Executive Office,BADENOCH & CLARK,31/05/2018,695.21,L,80111600,Temporary personnel services
"Ministry of Housing, Communities and Local Government",Homes England,North Avon Magistrates Court,Midlands,RIDER LEVETT BUCKNALL UK LTD,04/05/2018,3712.5,L,80131800,Real estate management services
"Ministry of Housing, Communities and Local Government",Homes England,It - Rda Transition,Finance & Corporate Services,BRITISH TELECOMMUNICATIONS PLC,17/05/2018,357.15,L,83111500,Local and long distance telephone communications
"Ministry of Housing, Communities and Local Government",Homes England,It - Rda Transition,Finance & Corporate Services,BRITISH TELECOMMUNICATIONS PLC,22/05/2018,340.35,L,83111500,Local and long distance telephone communications
"Ministry of Housing, Communities and Local Government",Homes England,It - Rda Transition,Finance & Corporate Services,BRITISH TELECOMMUNICATIONS PLC,22/05/2018,428.23,L,83111500,Local and long distance telephone communications
"Ministry of Housing, Communities and Local Government",Homes England,It - Rda Transition,Finance & Corporate Services,BRITISH TELECOMMUNICATIONS PLC,22/05/2018,340.27,L,83111500,Local and long distance telephone communications
"Ministry of Housing, Communities and Local Government",Homes England,It - Rda Transition,Finance & Corporate Services,BRITISH TELECOMMUNICATIONS PLC,25/05/2018,1157,L,83111500,Local and long distance telephone communications
"Ministry of Housing, Communities and Local Government",Homes England,It - Rda Transition,Finance & Corporate Services,BRITISH TELECOMMUNICATIONS PLC,30/05/2018,358.03,L,83111500,Local and long distance telephone communications
"Ministry of Housing, Communities and Local Government",Homes England,Ne-Yh Sheffield And Humb Ne-Y,North East And Yorkshire,JACOBS UK LTD,02/05/2018,2818.74,L,80131800,Real estate management services
"Ministry of Housing, Communities and Local Government",Homes England,Ne-Yh Sheffield And Humb Ne-Y,North East And Yorkshire,JACOBS UK LTD,02/05/2018,935.77,L,80131800,Real estate management services
"Ministry of Housing, Communities and Local Government",Homes England,Ne-Yh Sheffield And Humb Ne-Y,North East And Yorkshire,JACOBS UK LTD,17/05/2018,2208.7,L,80131800,Real estate management services
"Ministry of Housing, Communities and Local Government",Homes England,Ne-Yh Sheffield And Humb Ne-Y,North East And Yorkshire,JACOBS UK LTD,17/05/2018,460.85,L,80131800,Real estate management services
"Ministry of Housing, Communities and Local Government",Homes England,Wakefield Magistrates Court,North East And Yorkshire,BRITISH GAS BUSINESS,11/05/2018,992.71,L,83101800,Electric utilities
"Ministry of Housing, Communities and Local Government",Homes England,Beis - Haughton Grange,North East And Yorkshire,BRITISH GAS BUSINESS,15/05/2018,298.32,L,83101800,Electric utilities
"Ministry of Housing, Communities and Local Government",Homes England,Economic Assets Hub Transition,Economic Assets Hub,BEAUCHIEF HOMES LIMITED,16/05/2018,64142.63,,N/A,Loans
"Ministry of Housing, Communities and Local Government",Homes England,Land And Regeneration National,Programmes,BBP REGENERATION LTD,11/05/2018,4900,S,81121500,Economic analysis
"Ministry of Housing, Communities and Local Government",Homes England,Land And Regeneration National,Programmes,BBP REGENERATION LTD,11/05/2018,4200,S,81121500,Economic analysis
"Ministry of Housing, Communities and Local Government",Homes England,Economic Assets Hub Transition,Economic Assets Hub,BROADACRES SERVICES LIMITED,15/05/2018,77020,,N/A,Loans
"Ministry of Housing, Communities and Local Government",Homes England,Budget 2013 - Midlands Wm,Midlands,BROMSGROVE DISTRICT COUNCIL,21/05/2018,4239.8,G,80131500,Lease and rental of property or building
"Ministry of Housing, Communities and Local Government",Homes England,Budget 2013 - Midlands Wm,Midlands,BROMSGROVE DISTRICT COUNCIL,21/05/2018,11215.75,G,80131500,Lease and rental of property or building
"Ministry of Housing, Communities and Local Government",Homes England,Lodge Hill,East And South East,BARTON WILLMORE,01/05/2018,3747.89,L,80131800,Real estate management services
"Ministry of Housing, Communities and Local Government",Homes England,Lodge Hill,East And South East,BARTON WILLMORE,01/05/2018,4700,L,80131800,Real estate management services
"Ministry of Housing, Communities and Local Government",Homes England,Lodge Hill,East And South East,BARTON WILLMORE,01/05/2018,3016.21,L,80131800,Real estate management services
"Ministry of Housing, Communities and Local Government",Homes England,Lodge Hill,East And South East,BARTON WILLMORE,04/05/2018,1538.73,L,80131800,Real estate management services
"Ministry of Housing, Communities and Local Government",Homes England,Economic Assets Nw Prog,North West,RICHARD BARBER & CO,14/05/2018,3550,S,82131600,Photographers and cinematographers
"Ministry of Housing, Communities and Local Government",Homes England,Economic Assets Hub Transition,Economic Assets Hub,BATTY DEVELOPMENTS LIMITED,16/05/2018,50000,,N/A,Loans
"Ministry of Housing, Communities and Local Government",Homes England,Economic Assets Hub Transition,Economic Assets Hub,BATTY DEVELOPMENTS LIMITED,25/05/2018,187500,,N/A,Loans
"Ministry of Housing, Communities and Local Government",Homes England,Economic Assets Hub Transition,Economic Assets Hub,BATTY DEVELOPMENTS LIMITED,25/05/2018,198440,,N/A,Loans
"Ministry of Housing, Communities and Local Government",Homes England,Economic Assets Hub Transition,Economic Assets Hub,BURRINGTON ESTATES (MANADON) LIMITED,14/05/2018,586383,,N/A,Loans
"Ministry of Housing, Communities and Local Government",Homes England,Economic Assets Hub Transition,Economic Assets Hub,BURRINGTON ESTATES (TRISPEN) LIMITED,14/05/2018,291955,,N/A,Loans
"Ministry of Housing, Communities and Local Government",Homes England,Economic Assets S&Sw Prog,South West,BAWDEN CONTRACTING SERVICES LIMITED,03/05/2018,466,S,72101500,Building maintenance and repair services
"Ministry of Housing, Communities and Local Government",Homes England,Economic Assets Hub Transition,Economic Assets Hub,BARTHOLOMEW HOMES LIMITED,16/05/2018,88441.86,,N/A,Loans
"Ministry of Housing, Communities and Local Government",Homes England,Economic Assets S&Sw Prog,South West,BARRATT SOUTHERN COUNTIES,15/05/2018,22569.03,,N/A ,Grants
"Ministry of Housing, Communities and Local Government",Homes England,Land And Regeneration Mh,Programmes,BNP PARIBAS REAL ESTATE,01/05/2018,500,L,80131800,Real estate management services
"Ministry of Housing, Communities and Local Government",Homes England,Land And Regeneration Mh,Programmes,BNP PARIBAS REAL ESTATE,02/05/2018,650,L,80131800,Real estate management services
"Ministry of Housing, Communities and Local Government",Homes England,Economic Assets S&Sw Prog,South West,BNP PARIBAS REAL ESTATE,02/05/2018,3500,L,80131800,Real estate management services
"Ministry of Housing, Communities and Local Government",Homes England,Land And Regeneration Mh,Programmes,BNP PARIBAS REAL ESTATE,03/05/2018,600,L,80131800,Real estate management services
"Ministry of Housing, Communities and Local Government",Homes England,Land And Regeneration Mh,Programmes,BNP PARIBAS REAL ESTATE,03/05/2018,600,L,80131800,Real estate management services
"Ministry of Housing, Communities and Local Government",Homes England,Land And Regeneration Mh,Programmes,BNP PARIBAS REAL ESTATE,03/05/2018,600,L,80131800,Real estate management services
"Ministry of Housing, Communities and Local Government",Homes England,Land And Regeneration Mh,Programmes,BNP PARIBAS REAL ESTATE,03/05/2018,600,L,80131800,Real estate management services
"Ministry of Housing, Communities and Local Government",Homes England,Land And Regeneration Mh,Programmes,BNP PARIBAS REAL ESTATE,03/05/2018,500,L,80131800,Real estate management services
"Ministry of Housing, Communities and Local Government",Homes England,Land And Regeneration Mh,Programmes,BNP PARIBAS REAL ESTATE,03/05/2018,500,L,80131800,Real estate management services
"Ministry of Housing, Communities and Local Government",Homes England,Land And Regeneration Mh,Programmes,BNP PARIBAS REAL ESTATE,03/05/2018,500,L,80131800,Real estate management services
"Ministry of Housing, Communities and Local Government",Homes England,Land And Regeneration Mh,Programmes,BNP PARIBAS REAL ESTATE,03/05/2018,500,L,80131800,Real estate management services
"Ministry of Housing, Communities and Local Government",Homes England,Land And Regeneration Mh,Programmes,BNP PARIBAS REAL ESTATE,03/05/2018,600,L,80131800,Real estate management services
"Ministry of Housing, Communities and Local Government",Homes England,Land And Regeneration Mh,Programmes,BNP PARIBAS REAL ESTATE,03/05/2018,600,L,80131800,Real estate management services
"Ministry of Housing, Communities and Local Government",Homes England,Land And Regeneration Mh,Programmes,BNP PARIBAS REAL ESTATE,03/05/2018,1890,L,80131800,Real estate management services
"Ministry of Housing, Communities and Local Government",Homes England,Land And Regeneration Mh,Programmes,BNP PARIBAS REAL ESTATE,03/05/2018,1800,L,80131800,Real estate management services
"Ministry of Housing, Communities and Local Government",Homes England,Land And Regeneration Mh,Programmes,BNP PARIBAS REAL ESTATE,03/05/2018,700,L,80131800,Real estate management services
"Ministry of Housing, Communities and Local Government",Homes England,Land And Regeneration Mh,Programmes,BNP PARIBAS REAL ESTATE,10/05/2018,600,L,80131800,Real estate management services
"Ministry of Housing, Communities and Local Government",Homes England,Land And Regeneration Mh,Programmes,BNP PARIBAS REAL ESTATE,14/05/2018,3000,L,80131800,Real estate management services
"Ministry of Housing, Communities and Local Government",Homes England,Land And Regeneration Mh,Programmes,BNP PARIBAS REAL ESTATE,14/05/2018,500,L,80131800,Real estate management services
"Ministry of Housing, Communities and Local Government",Homes England,Economic Assets Hub Transition,Economic Assets Hub,BNP PARIBAS REAL ESTATE,14/05/2018,2500,L,80131800,Real estate management services
"Ministry of Housing, Communities and Local Government",Homes England,Land And Regeneration Mh,Programmes,BNP PARIBAS REAL ESTATE,14/05/2018,500,L,80131800,Real estate management services
"Ministry of Housing, Communities and Local Government",Homes England,Land And Regeneration Mh,Programmes,BNP PARIBAS REAL ESTATE,15/05/2018,500,L,80131800,Real estate management services
"Ministry of Housing, Communities and Local Government",Homes England,Land And Regeneration Mh,Programmes,BNP PARIBAS REAL ESTATE,15/05/2018,500,L,80131800,Real estate management services
"Ministry of Housing, Communities and Local Government",Homes England,Land And Regeneration Mh,Programmes,BNP PARIBAS REAL ESTATE,15/05/2018,500,L,80131800,Real estate management services
"Ministry of Housing, Communities and Local Government",Homes England,Land And Regeneration Mh,Programmes,BNP PARIBAS REAL ESTATE,15/05/2018,2250,L,80131800,Real estate management services
"Ministry of Housing, Communities and Local Government",Homes England,Land And Regeneration Mh,Programmes,BNP PARIBAS REAL ESTATE,17/05/2018,600,L,80131800,Real estate management services
"Ministry of Housing, Communities and Local Government",Homes England,Land And Regeneration Mh,Programmes,BNP PARIBAS REAL ESTATE,17/05/2018,600,L,80131800,Real estate management services
"Ministry of Housing, Communities and Local Government",Homes England,Land And Regeneration Mh,Programmes,BNP PARIBAS REAL ESTATE,29/05/2018,1250,L,80131800,Real estate management services
"Ministry of Housing, Communities and Local Government",Homes England,Land And Regeneration Mh,Programmes,BNP PARIBAS REAL ESTATE,30/05/2018,700,L,80131800,Real estate management services
"Ministry of Housing, Communities and Local Government",Homes England,Land And Regeneration Mh,Programmes,BNP PARIBAS REAL ESTATE,31/05/2018,600,L,80131800,Real estate management services
"Ministry of Housing, Communities and Local Government",Homes England,Land And Regeneration Mh,Programmes,BNP PARIBAS REAL ESTATE,31/05/2018,600,L,80131800,Real estate management services
"Ministry of Housing, Communities and Local Government",Homes England,Midlands Director Birmingham,Midlands,THE BOND COMPANY,21/05/2018,1180,S,90111600,Meeting facilities
"Ministry of Housing, Communities and Local Government",Homes England,Budget 2013 - Midlands Wm,Midlands,G BURLEY & SONS LTD,04/05/2018,2056.29,S,72101500,Building maintenance and repair services
"Ministry of Housing, Communities and Local Government",Homes England,Estate Management Yorks,North West,G BURLEY & SONS LTD,11/05/2018,322.09,S,72101500,Building maintenance and repair services
"Ministry of Housing, Communities and Local Government",Homes England,Spatial Intelligence Telford,Programmes,G BURLEY & SONS LTD,23/05/2018,495,S,72101500,Building maintenance and repair services
"Ministry of Housing, Communities and Local Government",Homes England,East And South East,East And South East,G BURLEY & SONS LTD,23/05/2018,717.12,S,72101500,Building maintenance and repair services
"Ministry of Housing, Communities and Local Government",Homes England,East And Se Essex And Kent,East And South East,G BURLEY & SONS LTD,31/05/2018,325,S,72101500,Building maintenance and repair services
"Ministry of Housing, Communities and Local Government",Homes England,East And Se Essex And Kent,East And South East,G BURLEY & SONS LTD,31/05/2018,550,S,72101500,Building maintenance and repair services
"Ministry of Housing, Communities and Local Government",Homes England,Spatial Intelligence Telford,Programmes,G BURLEY & SONS LTD,31/05/2018,1400,S,72101500,Building maintenance and repair services
"Ministry of Housing, Communities and Local Government",Homes England,Economic Assets S&Sw Prog,South West,BERRYS,03/05/2018,2500,S,80131800,Real estate management services
"Ministry of Housing, Communities and Local Government",Homes England,Wrest Park Area 1a & 1b,East And South East,BERRYS,17/05/2018,938,S,80131800,Real estate management services
"Ministry of Housing, Communities and Local Government",Homes England,Spatial Intelligence Telford,Programmes,BERRYS,24/05/2018,300,S,80131800,Real estate management services
"Ministry of Housing, Communities and Local Government",Homes England,It - Rda Transition,Finance & Corporate Services,ADVANCED BUSINESS SOLUTIONS,31/05/2018,63144.71,M,81112200,Software maintenance and support
"Ministry of Housing, Communities and Local Government",Homes England,It - Rda Transition,Finance & Corporate Services,ADVANCED BUSINESS SOLUTIONS,31/05/2018,3276.55,M,81112200,Software maintenance and support
"Ministry of Housing, Communities and Local Government",Homes England,It - Rda Transition,Finance & Corporate Services,ADVANCED BUSINESS SOLUTIONS,31/05/2018,606.76,M,81112200,Software maintenance and support
"Ministry of Housing, Communities and Local Government",Homes England,It - Rda Transition,Finance & Corporate Services,CARETOWER LTD,08/05/2018,865,L,81112300,Computer hardware maintenance and support
"Ministry of Housing, Communities and Local Government",Homes England,It - Rda Transition,Finance & Corporate Services,CARETOWER LTD,08/05/2018,6700,L,81112300,Computer hardware maintenance and support
"Ministry of Housing, Communities and Local Government",Homes England,East And South East,East And South East,CAMPBELL REITH,03/05/2018,8918.72,M,77101500,Environmental auditing
"Ministry of Housing, Communities and Local Government",Homes England,East And South East,East And South East,CAMPBELL REITH,03/05/2018,10500,M,77101500,Environmental auditing
"Ministry of Housing, Communities and Local Government",Homes England,Spatial Intelligence Telford,Programmes,CAMPBELL REITH,08/05/2018,2980.57,M,77101500,Environmental auditing
"Ministry of Housing, Communities and Local Government",Homes England,Spatial Intelligence Telford,Programmes,CAMPBELL REITH,08/05/2018,12348.47,M,77101500,Environmental auditing
"Ministry of Housing, Communities and Local Government",Homes England,Moj Wealstun Land At Wighill L,North East And Yorkshire,CAMPBELL REITH,08/05/2018,1643.07,M,77101500,Environmental auditing
"Ministry of Housing, Communities and Local Government",Homes England,Economic Assets Nw Prog,North West,CAMPBELL REITH,09/05/2018,3500,M,77101500,Environmental auditing
"Ministry of Housing, Communities and Local Government",Homes England,Economic Assets S&Sw Prog,South West,CAMPBELL REITH,10/05/2018,1945,M,77101500,Environmental auditing
"Ministry of Housing, Communities and Local Government",Homes England,Economic Assets S&Sw Prog,South West,CAMPBELL REITH,11/05/2018,15000,M,77101500,Environmental auditing
"Ministry of Housing, Communities and Local Government",Homes England,East And South East,East And South East,CAMPBELL REITH,16/05/2018,4684.5,M,77101500,Environmental auditing
"Ministry of Housing, Communities and Local Government",Homes England,Economic Assets S&Sw Prog,South West,CAMPBELL REITH,17/05/2018,540.1,M,77101500,Environmental auditing
"Ministry of Housing, Communities and Local Government",Homes England,East And South East,East And South East,CAMPBELL REITH,18/05/2018,5000,M,77101500,Environmental auditing
"Ministry of Housing, Communities and Local Government",Homes England,Economic Assets Nw Prog,North West,CAMPBELL REITH,23/05/2018,47106.39,M,77101500,Environmental auditing
"Ministry of Housing, Communities and Local Government",Homes England,Spatial Intelligence Telford,Programmes,CAMPBELL REITH,23/05/2018,2980.57,M,77101500,Environmental auditing
"Ministry of Housing, Communities and Local Government",Homes England,Spatial Intelligence Telford,Programmes,CAMPBELL REITH,23/05/2018,12348.47,M,77101500,Environmental auditing
"Ministry of Housing, Communities and Local Government",Homes England,East And South East,East And South East,CAMPBELL REITH,24/05/2018,8918.72,M,77101500,Environmental auditing
"Ministry of Housing, Communities and Local Government",Homes England,East And South East,East And South East,CAMPBELL REITH,24/05/2018,3000,M,77101500,Environmental auditing
"Ministry of Housing, Communities and Local Government",Homes England,Economic Assets S&Sw Prog,South West,CAMPBELL REITH,30/05/2018,820,M,77101500,Environmental auditing
"Ministry of Housing, Communities and Local Government",Homes England,Mod Chalgrove,East And South East,CARTER JONAS,03/05/2018,4000,L,80131800,Real estate management services
"Ministry of Housing, Communities and Local Government",Homes England,East And South East,East And South East,CARTER JONAS,09/05/2018,800,L,80131800,Real estate management services
"Ministry of Housing, Communities and Local Government",Homes England,Mod Chalgrove,East And South East,CARTER JONAS,16/05/2018,13294.73,L,80131800,Real estate management services
"Ministry of Housing, Communities and Local Government",Homes England,Mod Chalgrove,East And South East,CARTER JONAS,16/05/2018,2300,L,80131800,Real estate management services
"Ministry of Housing, Communities and Local Government",Homes England,Mod Chalgrove,East And South East,CARTER JONAS,16/05/2018,1725,L,80131800,Real estate management services
"Ministry of Housing, Communities and Local Government",Homes England,Mod Chalgrove,East And South East,CARTER JONAS,16/05/2018,2266.53,L,80131800,Real estate management services
"Ministry of Housing, Communities and Local Government",Homes England,Capital Grant to RPs,South West,CARTER JONAS,22/05/2018,1400,L,80131800,Real estate management services
"Ministry of Housing, Communities and Local Government",Homes England,Mod Chalgrove,East And South East,CARTER JONAS,25/05/2018,5232,L,80131800,Real estate management services
"Ministry of Housing, Communities and Local Government",Homes England,Comms Transition Budget,Finance & Corporate Services,CORONA ENERGY,15/05/2018,260.26,L,83101600,Oil and gas utilities
"Ministry of Housing, Communities and Local Government",Homes England,Comms Transition Budget,Finance & Corporate Services,CORONA ENERGY,15/05/2018,564.13,L,83101600,Oil and gas utilities
"Ministry of Housing, Communities and Local Government",Homes England,Comms Transition Budget,Finance & Corporate Services,CORONA ENERGY,15/05/2018,484.63,L,83101600,Oil and gas utilities
"Ministry of Housing, Communities and Local Government",Homes England,Wakefield Magistrates Court,North East And Yorkshire,CORONA ENERGY,15/05/2018,492.88,L,83101600,Oil and gas utilities
"Ministry of Housing, Communities and Local Government",Homes England,Oldham Mc,North West,CORONA ENERGY,15/05/2018,1284.6,L,83101600,Oil and gas utilities
"Ministry of Housing, Communities and Local Government",Homes England,Eastbourne Magistrates Court,East And South East,CORONA ENERGY,17/05/2018,644.64,L,83101600,Oil and gas utilities
"Ministry of Housing, Communities and Local Government",Homes England,Halifax Magistrates' Court,North East And Yorkshire,CORONA ENERGY,18/05/2018,465.06,L,83101600,Oil and gas utilities
"Ministry of Housing, Communities and Local Government",Homes England,Moj - Stourbridge County Court,Midlands,CORONA ENERGY,21/05/2018,350.7,L,83101600,Oil and gas utilities
"Ministry of Housing, Communities and Local Government",Homes England,Public Land and Regeneration,Programmes,CORONA ENERGY,30/05/2018,676.99,L,83101600,Oil and gas utilities
"Ministry of Housing, Communities and Local Government",Homes England,Economic Assets Ne-Y Prog,North East And Yorkshire,C A STAMP FARM & GARDEN SERVICES,08/05/2018,700,S,72153501,Building exterior cleaning service  
"Ministry of Housing, Communities and Local Government",Homes England,Economic Assets Hub Transition,Economic Assets Hub,CHAPEL RIVERSIDE DEVELOPMENTS LIMITED,24/05/2018,499890,,N/A,Loans
"Ministry of Housing, Communities and Local Government",Homes England,It - Rda Transition,Finance & Corporate Services,BOTTOMLINE TECHNOLOGIES,15/05/2018,3614,L,43231500,Business function specific software
"Ministry of Housing, Communities and Local Government",Homes England,Regulation,North East And Yorkshire,CIVIL SERVICE COLLEGE LTD,21/05/2018,595,L,86101800,In service training and manpower development
"Ministry of Housing, Communities and Local Government",Homes England,Regulation,North East And Yorkshire,CIVIL SERVICE COLLEGE LTD,22/05/2018,1500,L,86101800,In service training and manpower development
"Ministry of Housing, Communities and Local Government",Homes England,Ftbi South East,East And South East,CAMBRIDGE ARCHAEOLOGY UNIT,10/05/2018,126023.53,L,80131800,Real estate management services
"Ministry of Housing, Communities and Local Government",Homes England,Economic Assets Hub Transition,Economic Assets Hub,CHIPRO DEVELOPMENTS,10/05/2018,201284,,N/A,Loans
"Ministry of Housing, Communities and Local Government",Homes England,Budget 2013 - Midlands Wm,Midlands,CPUK CIVILS & REMEDIATION LTD,29/05/2018,14250,M,72141500,Land preparation services
"Ministry of Housing, Communities and Local Government",Homes England,Economic Assets Hub Transition,Economic Assets Hub,CZERO BISHOPS CASTLE LIMITED,23/05/2018,51418,,N/A,Loans
"Ministry of Housing, Communities and Local Government",Homes England,Director South West Exeter,South West,COPTHORNE HOTEL BIRMINGHAM,18/05/2018,933.3,L,90111600,Meeting facilities
"Ministry of Housing, Communities and Local Government",Homes England,Director South West Exeter,South West,COPTHORNE HOTEL BIRMINGHAM,18/05/2018,2500,L,90111600,Meeting facilities
"Ministry of Housing, Communities and Local Government",Homes England,Economic Assets Hub Transition,Economic Assets Hub,CLUBLIGHT DEVELOPMENTS LTD.,01/05/2018,181994.18,,N/A,Loans
"Ministry of Housing, Communities and Local Government",Homes England,Regulation,North East And Yorkshire,CORNERSTONE BARRISTERS,17/05/2018,3850,M,80121600,Business law services
"Ministry of Housing, Communities and Local Government",Homes England,Regulation,North East And Yorkshire,CORNERSTONE BARRISTERS,30/05/2018,3004.17,M,80121600,Business law services
"Ministry of Housing, Communities and Local Government",Homes England,Programme Management Mh,Finance & Corporate Services,CONCUR HOLDINGS (NETHERLANDS) B.V,09/05/2018,14140.59,L,43231500,Business function specific software
"Ministry of Housing, Communities and Local Government",Homes England,Facilities Allerton Bywater,Finance & Corporate Services,CHARTERED INSTITUTE OF PAYROLL PROFESSIONALS,24/05/2018,1195,M,86101800,In service training and manpower development
"Ministry of Housing, Communities and Local Government",Homes England,Economic Assets Hub Transition,Economic Assets Hub,CLL (RUSKIN ROAD) LTD,22/05/2018,91884,,N/A,Loans
"Ministry of Housing, Communities and Local Government",Homes England,North Avon Magistrates Court,Midlands,COUNTRYWIDE GROUNDS MAINTENANCE LTD,23/05/2018,323.33,L,72101500,Building maintenance and repair services
"Ministry of Housing, Communities and Local Government",Homes England,Capital Grant to RPs,South West,CONSERVATION CONTRACTS NORTH WEST LTD,24/05/2018,3222.45,S,72101500,Building maintenance and repair services
"Ministry of Housing, Communities and Local Government",Homes England,Capital Grant to RPs,South West,K D CHILDS STONEWORK DEVELOPMENTS,23/05/2018,8500,S,72101500,Building maintenance and repair services
"Ministry of Housing, Communities and Local Government",Homes England,Dartford Magistrates' Court,East And South East,C-ELECT ASSOCIATES LIMITED,02/05/2018,300,S,72101500,Building maintenance and repair services
"Ministry of Housing, Communities and Local Government",Homes England,Capital Grant to RPs,South West,C-ELECT ASSOCIATES LIMITED,04/05/2018,1835,S,72101500,Building maintenance and repair services
"Ministry of Housing, Communities and Local Government",Homes England,Beis - Haughton Grange,North East And Yorkshire,C-ELECT ASSOCIATES LIMITED,04/05/2018,1114.6,S,72101500,Building maintenance and repair services
"Ministry of Housing, Communities and Local Government",Homes England,Capital Grant to RPs,South West,C-ELECT ASSOCIATES LIMITED,10/05/2018,596,S,72101500,Building maintenance and repair services
"Ministry of Housing, Communities and Local Government",Homes England,Lodge Hill,East And South East,C-ELECT ASSOCIATES LIMITED,18/05/2018,3276.39,S,72101500,Building maintenance and repair services
"Ministry of Housing, Communities and Local Government",Homes England,South East,East And South East,C-ELECT ASSOCIATES LIMITED,18/05/2018,420,S,72101500,Building maintenance and repair services
"Ministry of Housing, Communities and Local Government",Homes England,Lodge Hill,East And South East,C-ELECT ASSOCIATES LIMITED,18/05/2018,1037.83,S,72101500,Building maintenance and repair services
"Ministry of Housing, Communities and Local Government",Homes England,Lodge Hill,East And South East,C-ELECT ASSOCIATES LIMITED,22/05/2018,518.9,S,72101500,Building maintenance and repair services
"Ministry of Housing, Communities and Local Government",Homes England,Lodge Hill,East And South East,C-ELECT ASSOCIATES LIMITED,23/05/2018,3369.73,S,72101500,Building maintenance and repair services
"Ministry of Housing, Communities and Local Government",Homes England,Bicester Magistrates Court,South West,C-ELECT ASSOCIATES LIMITED,25/05/2018,585.25,S,72101500,Building maintenance and repair services
"Ministry of Housing, Communities and Local Government",Homes England,Economic Assets S&Sw Prog,South West,C-ELECT ASSOCIATES LIMITED,25/05/2018,1254,S,72101500,Building maintenance and repair services
"Ministry of Housing, Communities and Local Government",Homes England,Lodge Hill,East And South East,C-ELECT ASSOCIATES LIMITED,25/05/2018,2727.36,S,72101500,Building maintenance and repair services
"Ministry of Housing, Communities and Local Government",Homes England,Budget 2013 - Midlands Wm,Midlands,CAWARDEN CO LIMITED,31/05/2018,53409.69,S,72141500,Land preparation services
"Ministry of Housing, Communities and Local Government",Homes England,Budget 2013 - Midlands Wm,Midlands,CAWARDEN CO LIMITED,31/05/2018,125462.7,S,72141500,Land preparation services
"Ministry of Housing, Communities and Local Government",Homes England,Budget 2013 - Midlands Wm,Midlands,CAMERON BUTCHER GROUP LTD,03/05/2018,19308.22,S,72101500,Building maintenance and repair services
"Ministry of Housing, Communities and Local Government",Homes England,Budget 2013 - Midlands Wm,Midlands,CAMERON BUTCHER GROUP LTD,03/05/2018,42976.37,S,72101500,Building maintenance and repair services
"Ministry of Housing, Communities and Local Government",Homes England,Budget 2013 - Midlands Wm,Midlands,CAMERON BUTCHER GROUP LTD,30/05/2018,14027.28,S,72101500,Building maintenance and repair services
"Ministry of Housing, Communities and Local Government",Homes England,Budget 2013 - Midlands Wm,Midlands,CAMERON BUTCHER GROUP LTD,30/05/2018,34342.67,S,72101500,Building maintenance and repair services
"Ministry of Housing, Communities and Local Government",Homes England,Wrest Park Area 1a & 1b,East And South East,CHESTER & NEWMAN PLUMBING & HEATING SERVICES,04/05/2018,280,S,72101500,Building maintenance and repair services
"Ministry of Housing, Communities and Local Government",Homes England,Wrest Park Area 1a & 1b,East And South East,CHESTER & NEWMAN PLUMBING & HEATING SERVICES,29/05/2018,580,S,72101500,Building maintenance and repair services
"Ministry of Housing, Communities and Local Government",Homes England,Economic Assets Nw Prog,North West,CONTINENTAL LANDSCAPES - GREENHAND,10/05/2018,360.08,L,72101500,Building maintenance and repair services
"Ministry of Housing, Communities and Local Government",Homes England,Economic Assets Nw Prog,North West,CONTINENTAL LANDSCAPES - GREENHAND,10/05/2018,360.96,L,72101500,Building maintenance and repair services
"Ministry of Housing, Communities and Local Government",Homes England,Economic Assets Nw Prog,North West,CONTINENTAL LANDSCAPES - GREENHAND,10/05/2018,390.96,L,72101500,Building maintenance and repair services
"Ministry of Housing, Communities and Local Government",Homes England,Economic Assets Nw Prog,North West,CONTINENTAL LANDSCAPES - GREENHAND,10/05/2018,685.34,L,72101500,Building maintenance and repair services
"Ministry of Housing, Communities and Local Government",Homes England,Estate Management Yorks,North West,CONTINENTAL LANDSCAPES - GREENHAND,10/05/2018,738.05,L,72101500,Building maintenance and repair services
"Ministry of Housing, Communities and Local Government",Homes England,Area Dir Mids Worcs-Shrop-Here,Midlands,CONTINENTAL LANDSCAPES - GREENHAND,16/05/2018,550.77,L,72101500,Building maintenance and repair services
"Ministry of Housing, Communities and Local Government",Homes England,Spatial Intelligence Telford,Programmes,CORNWALL COUNCIL,09/05/2018,620.08,G,80131500,Lease and rental of property or building
"Ministry of Housing, Communities and Local Government",Homes England,Spatial Intelligence Telford,Programmes,CORNWALL COUNCIL,25/05/2018,16638.75,G,80131500,Lease and rental of property or building
"Ministry of Housing, Communities and Local Government",Homes England,Land And Regeneration Mh,Programmes,CB RICHARD ELLIS,10/05/2018,1696.1,L,80131800,Real estate management services
"Ministry of Housing, Communities and Local Government",Homes England,Bis - Compton Site,East And South East,CB RICHARD ELLIS,31/05/2018,1300,L,80131800,Real estate management services
"Ministry of Housing, Communities and Local Government",Homes England,Economic Assets Hub Transition,Economic Assets Hub,CANNOCK MILL COHOUSING COLCHESTER LTD,14/05/2018,262251.68,,N/A,Loans
"Ministry of Housing, Communities and Local Government",Homes England,Area Dir Mids Worcs-Shrop-Here,Midlands,COLLIERS INTERNATIONAL,02/05/2018,952,L,80131500,Lease and rental of property or building
"Ministry of Housing, Communities and Local Government",Homes England,Area Dir Mids Worcs-Shrop-Here,Midlands,COLLIERS INTERNATIONAL,02/05/2018,905.75,L,80131500,Lease and rental of property or building
"Ministry of Housing, Communities and Local Government",Homes England,Area Dir Mids Worcs-Shrop-Here,Midlands,COLLIERS INTERNATIONAL,02/05/2018,970.25,L,80131500,Lease and rental of property or building
"Ministry of Housing, Communities and Local Government",Homes England,Area Dir Mids Worcs-Shrop-Here,Midlands,COLLIERS INTERNATIONAL,03/05/2018,1050.25,L,80131500,Lease and rental of property or building
"Ministry of Housing, Communities and Local Government",Homes England,Economic Assets Hub Transition,Economic Assets Hub,CHARTER HOUSE PROPERTY LIMITED,24/05/2018,655044.31,,N/A,Loans
"Ministry of Housing, Communities and Local Government",Homes England,Economic Assets Nw Prog,North West,CENTRAL POWER SERVICES LIMITED,31/05/2018,386.88,S,72101500,Building maintenance and repair services
"Ministry of Housing, Communities and Local Government",Homes England,Economic Assets S&Sw Prog,South West,CONNELL BROTHERS  LTD,10/05/2018,71328.85,S,72141500,Land preparation services
"Ministry of Housing, Communities and Local Government",Homes England,Lodge Hill,East And South East,CHANNEL ENGINEERING LTD,01/05/2018,1215,S,72101500,Building maintenance and repair services
"Ministry of Housing, Communities and Local Government",Homes England,East And South East,East And South East,CHANNEL ENGINEERING LTD,09/05/2018,686,S,72101500,Building maintenance and repair services
"Ministry of Housing, Communities and Local Government",Homes England,Lodge Hill,East And South East,CHANNEL ENGINEERING LTD,09/05/2018,613,S,72101500,Building maintenance and repair services
"Ministry of Housing, Communities and Local Government",Homes England,East And South East,East And South East,CHANNEL ENGINEERING LTD,09/05/2018,1183,S,72101500,Building maintenance and repair services
"Ministry of Housing, Communities and Local Government",Homes England,Lodge Hill,East And South East,CHANNEL ENGINEERING LTD,11/05/2018,670,S,72101500,Building maintenance and repair services
"Ministry of Housing, Communities and Local Government",Homes England,East And South East,East And South East,CHANNEL ENGINEERING LTD,14/05/2018,1362,S,72101500,Building maintenance and repair services
"Ministry of Housing, Communities and Local Government",Homes England,East And South East,East And South East,CHANNEL ENGINEERING LTD,25/05/2018,980,S,72101500,Building maintenance and repair services
"Ministry of Housing, Communities and Local Government",Homes England,Lodge Hill,East And South East,CHANNEL ENGINEERING LTD,25/05/2018,2550,S,72101500,Building maintenance and repair services
"Ministry of Housing, Communities and Local Government",Homes England,Lodge Hill,East And South East,CHANNEL ENGINEERING LTD,25/05/2018,897,S,72101500,Building maintenance and repair services
"Ministry of Housing, Communities and Local Government",Homes England,Lodge Hill,East And South East,CHANNEL ENGINEERING LTD,30/05/2018,2190,S,72101500,Building maintenance and repair services
"Ministry of Housing, Communities and Local Government",Homes England,Comms Transition Budget,Finance & Corporate Services,ENGIE FM LIMITED,09/05/2018,926.93,L,72102900,Facility maintenance and repair services
"Ministry of Housing, Communities and Local Government",Homes England,Comms Transition Budget,Finance & Corporate Services,ENGIE FM LIMITED,09/05/2018,2009.19,L,72102900,Facility maintenance and repair services
"Ministry of Housing, Communities and Local Government",Homes England,It - Rda Transition,Finance & Corporate Services,OASIS UK NORTH LIMITED,09/05/2018,1248.84,L,81111200,Data services
"Ministry of Housing, Communities and Local Government",Homes England,Communications Allerton,Executive Office,GORKANA GROUP LTD,09/05/2018,907.7,L,82101500,Print advertising
"Ministry of Housing, Communities and Local Government",Homes England,Economic Assets S&Sw Prog,South West,CUSHMAN & WAKEFIELD DEBENHAM TIE LEUNG,01/05/2018,8500,L,80131800,Real estate management services
"Ministry of Housing, Communities and Local Government",Homes England,Bury & Rochdale Magistrates Co,North West,CUSHMAN & WAKEFIELD DEBENHAM TIE LEUNG,01/05/2018,2500,L,80131800,Real estate management services
"Ministry of Housing, Communities and Local Government",Homes England,Economic Assets Nw Prog,North West,CUSHMAN & WAKEFIELD DEBENHAM TIE LEUNG,01/05/2018,1500,L,80131800,Real estate management services
"Ministry of Housing, Communities and Local Government",Homes England,Land And Regeneration Mh,Programmes,CUSHMAN & WAKEFIELD DEBENHAM TIE LEUNG,04/05/2018,2000,L,80131800,Real estate management services
"Ministry of Housing, Communities and Local Government",Homes England,Budget 2013 - Midlands Wm,Midlands,CUSHMAN & WAKEFIELD DEBENHAM TIE LEUNG,04/05/2018,5500,L,80131800,Real estate management services
"Ministry of Housing, Communities and Local Government",Homes England,Land And Regeneration Mh,Programmes,CUSHMAN & WAKEFIELD DEBENHAM TIE LEUNG,08/05/2018,700,L,80131800,Real estate management services
"Ministry of Housing, Communities and Local Government",Homes England,Land And Regeneration Mh,Programmes,CUSHMAN & WAKEFIELD DEBENHAM TIE LEUNG,08/05/2018,800,L,80131800,Real estate management services
"Ministry of Housing, Communities and Local Government",Homes England,Economic Assets Hub Transition,Economic Assets Hub,CUSHMAN & WAKEFIELD DEBENHAM TIE LEUNG,08/05/2018,650,L,80131800,Real estate management services
"Ministry of Housing, Communities and Local Government",Homes England,Economic Assets Ne-Y Prog,North East And Yorkshire,CUSHMAN & WAKEFIELD DEBENHAM TIE LEUNG,08/05/2018,7000,L,80131800,Real estate management services
"Ministry of Housing, Communities and Local Government",Homes England,Land And Regeneration Mh,Programmes,CUSHMAN & WAKEFIELD DEBENHAM TIE LEUNG,08/05/2018,800,L,80131800,Real estate management services
"Ministry of Housing, Communities and Local Government",Homes England,Economic Assets Hub Transition,Economic Assets Hub,CUSHMAN & WAKEFIELD DEBENHAM TIE LEUNG,09/05/2018,700,L,80131800,Real estate management services
"Ministry of Housing, Communities and Local Government",Homes England,Land And Regeneration Mh,Programmes,CUSHMAN & WAKEFIELD DEBENHAM TIE LEUNG,09/05/2018,2750,L,80131800,Real estate management services
"Ministry of Housing, Communities and Local Government",Homes England,Land And Regeneration Mh,Programmes,CUSHMAN & WAKEFIELD DEBENHAM TIE LEUNG,09/05/2018,2750,L,80131800,Real estate management services
"Ministry of Housing, Communities and Local Government",Homes England,Land And Regeneration Mh,Programmes,CUSHMAN & WAKEFIELD DEBENHAM TIE LEUNG,09/05/2018,3500,L,80131800,Real estate management services
"Ministry of Housing, Communities and Local Government",Homes England,Economic Assets Hub Transition,Economic Assets Hub,CUSHMAN & WAKEFIELD DEBENHAM TIE LEUNG,11/05/2018,650,L,80131800,Real estate management services
"Ministry of Housing, Communities and Local Government",Homes England,Land And Regeneration Mh,Programmes,CUSHMAN & WAKEFIELD DEBENHAM TIE LEUNG,14/05/2018,650,L,80131800,Real estate management services
"Ministry of Housing, Communities and Local Government",Homes England,Economic Assets Hub Transition,Economic Assets Hub,CUSHMAN & WAKEFIELD DEBENHAM TIE LEUNG,14/05/2018,700,L,80131800,Real estate management services
"Ministry of Housing, Communities and Local Government",Homes England,Land And Regeneration Mh,Programmes,CUSHMAN & WAKEFIELD DEBENHAM TIE LEUNG,14/05/2018,700,L,80131800,Real estate management services
"Ministry of Housing, Communities and Local Government",Homes England,Economic Assets Ne-Y Prog,North East And Yorkshire,CUSHMAN & WAKEFIELD DEBENHAM TIE LEUNG,14/05/2018,850,L,80131800,Real estate management services
"Ministry of Housing, Communities and Local Government",Homes England,Economic Assets Ne-Y Prog,North East And Yorkshire,CUSHMAN & WAKEFIELD DEBENHAM TIE LEUNG,15/05/2018,1500,L,80131800,Real estate management services
"Ministry of Housing, Communities and Local Government",Homes England,East And Se And Surr And Suss,East And South East,CUSHMAN & WAKEFIELD DEBENHAM TIE LEUNG,18/05/2018,1500,L,80131800,Real estate management services
"Ministry of Housing, Communities and Local Government",Homes England,Economic Assets Ne-Y Prog,North East And Yorkshire,CUSHMAN & WAKEFIELD DEBENHAM TIE LEUNG,18/05/2018,4000,L,80131800,Real estate management services
"Ministry of Housing, Communities and Local Government",Homes England,Land And Regeneration Mh,Programmes,CUSHMAN & WAKEFIELD DEBENHAM TIE LEUNG,18/05/2018,700,L,80131800,Real estate management services
"Ministry of Housing, Communities and Local Government",Homes England,Economic Assets S&Sw Prog,South West,CUSHMAN & WAKEFIELD DEBENHAM TIE LEUNG,25/05/2018,10000,L,80131800,Real estate management services
"Ministry of Housing, Communities and Local Government",Homes England,Economic Assets Hub Transition,Economic Assets Hub,CUSHMAN & WAKEFIELD DEBENHAM TIE LEUNG,25/05/2018,4000,L,80131800,Real estate management services
"Ministry of Housing, Communities and Local Government",Homes England,Economic Assets Ne-Y Prog,North East And Yorkshire,CUSHMAN & WAKEFIELD DEBENHAM TIE LEUNG,31/05/2018,11500,L,80131800,Real estate management services
"Ministry of Housing, Communities and Local Government",Homes England,Budget 2013 - Midlands Wm,Midlands,CUSHMAN & WAKEFIELD DEBENHAM TIE LEUNG,31/05/2018,4500,L,80131800,Real estate management services
"Ministry of Housing, Communities and Local Government",Homes England,Budget 2013 - Midlands Wm,Midlands,CUSHMAN & WAKEFIELD DEBENHAM TIE LEUNG,31/05/2018,6225,L,80131800,Real estate management services
"Ministry of Housing, Communities and Local Government",Homes England,Area Dir Mids Leicester-Warks,Midlands,CUSHMAN & WAKEFIELD DEBENHAM TIE LEUNG,31/05/2018,9500,L,80131800,Real estate management services
"Ministry of Housing, Communities and Local Government",Homes England,Communications Allerton,Executive Office,DARWIN PRESS,08/05/2018,1296,S,80141600,Sales and business promotion activities
"Ministry of Housing, Communities and Local Government",Homes England,Communications Allerton,Executive Office,DARWIN PRESS,08/05/2018,354,S,80141600,Sales and business promotion activities
"Ministry of Housing, Communities and Local Government",Homes England,Communications Allerton,Executive Office,DARWIN PRESS,17/05/2018,528,S,80141600,Sales and business promotion activities
"Ministry of Housing, Communities and Local Government",Homes England,Communications Allerton,Executive Office,DEPARTMENT OF INTERNATIONAL TRADE,23/05/2018,1351.76,G,90111600,Meeting facilities
"Ministry of Housing, Communities and Local Government",Homes England,Budget 2013 - Midlands Wm,Midlands,DSM DEMOLITION LIMITED,09/05/2018,73873.33,M,72141500,Land preparation services
"Ministry of Housing, Communities and Local Government",Homes England,Economic Assets Hub Transition,Economic Assets Hub,DEEBLE VENTURES TWO LIMITED,30/05/2018,666094,,N/A,Loans
"Ministry of Housing, Communities and Local Government",Homes England,Budget 2013 - Midlands Wm,Midlands,DUDLEY METROPOLITAN BOROUGH COUNCIL,01/05/2018,2028,G,80131500,Lease and rental of property or building
"Ministry of Housing, Communities and Local Government",Homes England,Budget 2013 - Midlands Wm,Midlands,DUDLEY METROPOLITAN BOROUGH COUNCIL,29/05/2018,332.95,G,80131500,Lease and rental of property or building
"Ministry of Housing, Communities and Local Government",Homes England,Budget 2013 - Midlands Wm,Midlands,DWF LLP,02/05/2018,2508.55,L,80121600,Business law services
"Ministry of Housing, Communities and Local Government",Homes England,Economic Assets Hub Transition,Economic Assets Hub,DWF LLP,02/05/2018,7758.65,L,80121600,Business law services
"Ministry of Housing, Communities and Local Government",Homes England,Land And Regeneration Mh,Programmes,DWF LLP,03/05/2018,4010.5,L,80121600,Business law services
"Ministry of Housing, Communities and Local Government",Homes England,East And South East,East And South East,DWF LLP,03/05/2018,950,L,80121600,Business law services
"Ministry of Housing, Communities and Local Government",Homes England,Economic Assets Ne-Y Prog,North East And Yorkshire,DWF LLP,03/05/2018,806,L,80121600,Business law services
"Ministry of Housing, Communities and Local Government",Homes England,East And South East,East And South East,DWF LLP,03/05/2018,2601.5,L,80121600,Business law services
"Ministry of Housing, Communities and Local Government",Homes England,Economic Assets Ne-Y Prog,North East And Yorkshire,DWF LLP,04/05/2018,1112.9,L,80121600,Business law services
"Ministry of Housing, Communities and Local Government",Homes England,Dfe - Mowden,North East And Yorkshire,DWF LLP,04/05/2018,2500,L,80121600,Business law services
"Ministry of Housing, Communities and Local Government",Homes England,Economic Assets Ne-Y Prog,North East And Yorkshire,DWF LLP,04/05/2018,2456.94,L,80121600,Business law services
"Ministry of Housing, Communities and Local Government",Homes England,Ne-Y North East Washington,North East And Yorkshire,DWF LLP,04/05/2018,420,L,80121600,Business law services
"Ministry of Housing, Communities and Local Government",Homes England,Ne-Y North East Washington,North East And Yorkshire,DWF LLP,04/05/2018,1614.63,L,80121600,Business law services
"Ministry of Housing, Communities and Local Government",Homes England,Economic Assets Ne-Y Prog,North East And Yorkshire,DWF LLP,04/05/2018,850,L,80121600,Business law services
"Ministry of Housing, Communities and Local Government",Homes England,Budget 2013 - Midlands Wm,Midlands,DWF LLP,04/05/2018,1265,L,80121600,Business law services
"Ministry of Housing, Communities and Local Government",Homes England,Economic Assets Ne-Y Prog,North East And Yorkshire,DWF LLP,08/05/2018,1450,L,80121600,Business law services
"Ministry of Housing, Communities and Local Government",Homes England,Economic Assets Ne-Y Prog,North East And Yorkshire,DWF LLP,08/05/2018,3000,L,80121600,Business law services
"Ministry of Housing, Communities and Local Government",Homes England,Economic Assets Ne-Y Prog,North East And Yorkshire,DWF LLP,08/05/2018,6000,L,80121600,Business law services
"Ministry of Housing, Communities and Local Government",Homes England,Land And Regeneration Mh,Programmes,DWF LLP,08/05/2018,6593.27,L,80121600,Business law services
"Ministry of Housing, Communities and Local Government",Homes England,Economic Assets Hub Transition,Economic Assets Hub,DWF LLP,09/05/2018,6222.25,L,80121600,Business law services
"Ministry of Housing, Communities and Local Government",Homes England,Spatial Intelligence Telford,Programmes,DWF LLP,09/05/2018,300,L,80121600,Business law services
"Ministry of Housing, Communities and Local Government",Homes England,Economic Assets Ne-Y Prog,North East And Yorkshire,DWF LLP,09/05/2018,1250,L,80121600,Business law services
"Ministry of Housing, Communities and Local Government",Homes England,Budget 2013 - Midlands Wm,Midlands,DWF LLP,09/05/2018,1437.76,L,80121600,Business law services
"Ministry of Housing, Communities and Local Government",Homes England,Budget 2013 - Midlands Wm,Midlands,DWF LLP,09/05/2018,1242.75,L,80121600,Business law services
"Ministry of Housing, Communities and Local Government",Homes England,Economic Assets Ne-Y Prog,North East And Yorkshire,DWF LLP,10/05/2018,1380,L,80121600,Business law services
"Ministry of Housing, Communities and Local Government",Homes England,Economic Assets Ne-Y Prog,North East And Yorkshire,DWF LLP,14/05/2018,10805.55,L,80121600,Business law services
"Ministry of Housing, Communities and Local Government",Homes England,Budget 2013 - Midlands Wm,Midlands,DWF LLP,15/05/2018,1000,L,80121600,Business law services
"Ministry of Housing, Communities and Local Government",Homes England,Budget 2013 - Midlands Wm,Midlands,DWF LLP,15/05/2018,1450,L,80121600,Business law services
"Ministry of Housing, Communities and Local Government",Homes England,Economic Assets Ne-Y Prog,North East And Yorkshire,DWF LLP,15/05/2018,10096.4,L,80121600,Business law services
"Ministry of Housing, Communities and Local Government",Homes England,Economic Assets Ne-Y Prog,North East And Yorkshire,DWF LLP,15/05/2018,1500,L,80121600,Business law services
"Ministry of Housing, Communities and Local Government",Homes England,Economic Assets S&Sw Prog,South West,DWF LLP,16/05/2018,1857.5,L,80121600,Business law services
"Ministry of Housing, Communities and Local Government",Homes England,Budget 2013 - Midlands Wm,Midlands,DWF LLP,17/05/2018,1002.9,L,80121600,Business law services
"Ministry of Housing, Communities and Local Government",Homes England,Capital Grant to RPs,South West,DWF LLP,17/05/2018,507.25,L,80121600,Business law services
"Ministry of Housing, Communities and Local Government",Homes England,Area Dir Cumbria Lancs Skelmer,North West,DWF LLP,23/05/2018,3435.5,L,80121600,Business law services
"Ministry of Housing, Communities and Local Government",Homes England,Budget 2013 - Midlands Wm,Midlands,DWF LLP,25/05/2018,1984.91,L,80121600,Business law services
"Ministry of Housing, Communities and Local Government",Homes England,Ad Manchester Trafford,North West,DWF LLP,25/05/2018,466.01,L,80121600,Business law services
"Ministry of Housing, Communities and Local Government",Homes England,Public Land and Regeneration,Programmes,DWF LLP,25/05/2018,750,L,80121600,Business law services
"Ministry of Housing, Communities and Local Government",Homes England,Economic Assets Nw Prog,North West,DWF LLP,30/05/2018,2451.18,L,80121600,Business law services
"Ministry of Housing, Communities and Local Government",Homes England,Economic Assets S&Sw Prog,South West,DWF LLP,30/05/2018,1980.65,L,80121600,Business law services
"Ministry of Housing, Communities and Local Government",Homes England,Area Dir Mids Worcs-Shrop-Here,Midlands,DWF LLP,31/05/2018,1816.54,L,80121600,Business law services
"Ministry of Housing, Communities and Local Government",Homes England,Ne-Y North East Washington,North East And Yorkshire,DWF LLP,31/05/2018,340,L,80121600,Business law services
"Ministry of Housing, Communities and Local Government",Homes England,Comms Transition Budget,Finance & Corporate Services,DEAN TAXI LIMITED,10/05/2018,531.8,S,78111800,Passenger road transportation
"Ministry of Housing, Communities and Local Government",Homes England,Economic Assets Ne-Y Prog,North East And Yorkshire,DWW CONTRACTING SERVICES LTD,21/05/2018,303.75,S,72101500,Building maintenance and repair services
"Ministry of Housing, Communities and Local Government",Homes England,Economic Assets Ne-Y Prog,North East And Yorkshire,DWW CONTRACTING SERVICES LTD,21/05/2018,303.75,S,72101500,Building maintenance and repair services
"Ministry of Housing, Communities and Local Government",Homes England,Macclesfield Mc,North West,DWW CONTRACTING SERVICES LTD,21/05/2018,303.75,S,72101500,Building maintenance and repair services
"Ministry of Housing, Communities and Local Government",Homes England,Economic Assets Ne-Y Prog,North East And Yorkshire,DWW CONTRACTING SERVICES LTD,21/05/2018,303.75,S,72101500,Building maintenance and repair services
"Ministry of Housing, Communities and Local Government",Homes England,Comms Transition Budget,Finance & Corporate Services,DEPARTMENT OF EDUCATION,09/05/2018,85011.28,G,80131500,Lease and rental of property or building
"Ministry of Housing, Communities and Local Government",Homes England,Comms Transition Budget,Finance & Corporate Services,DEPARTMENT OF EDUCATION,09/05/2018,10674.35,G,80131500,Lease and rental of property or building
"Ministry of Housing, Communities and Local Government",Homes England,Lodge Hill,East And South East,DDS ENVIRONMENTAL,21/05/2018,3360.29,M,72101500,Building maintenance and repair services
"Ministry of Housing, Communities and Local Government",Homes England,Lodge Hill,East And South East,DDS ENVIRONMENTAL,22/05/2018,2860,M,72101500,Building maintenance and repair services
"Ministry of Housing, Communities and Local Government",Homes England,It - Rda Transition,Finance & Corporate Services,DEPOEL MANAGED SERVICES LTD,03/05/2018,3840.59,L,80111600,Temporary personnel services
"Ministry of Housing, Communities and Local Government",Homes England,It - Rda Transition,Finance & Corporate Services,DEPOEL MANAGED SERVICES LTD,03/05/2018,2743.28,L,80111600,Temporary personnel services
"Ministry of Housing, Communities and Local Government",Homes England,It - Rda Transition,Finance & Corporate Services,DEPOEL MANAGED SERVICES LTD,03/05/2018,1514.76,L,80111600,Temporary personnel services
"Ministry of Housing, Communities and Local Government",Homes England,It - Rda Transition,Finance & Corporate Services,DEPOEL MANAGED SERVICES LTD,03/05/2018,2524.59,L,80111600,Temporary personnel services
"Ministry of Housing, Communities and Local Government",Homes England,It - Rda Transition,Finance & Corporate Services,DEPOEL MANAGED SERVICES LTD,03/05/2018,3982.97,L,80111600,Temporary personnel services
"Ministry of Housing, Communities and Local Government",Homes England,It - Rda Transition,Finance & Corporate Services,DEPOEL MANAGED SERVICES LTD,03/05/2018,2524.59,L,80111600,Temporary personnel services
"Ministry of Housing, Communities and Local Government",Homes England,It - Rda Transition,Finance & Corporate Services,DEPOEL MANAGED SERVICES LTD,03/05/2018,2346.08,L,80111600,Temporary personnel services
"Ministry of Housing, Communities and Local Government",Homes England,It - Rda Transition,Finance & Corporate Services,DEPOEL MANAGED SERVICES LTD,03/05/2018,3291.93,L,80111600,Temporary personnel services
"Ministry of Housing, Communities and Local Government",Homes England,It - Rda Transition,Finance & Corporate Services,DEPOEL MANAGED SERVICES LTD,03/05/2018,2844.98,L,80111600,Temporary personnel services
"Ministry of Housing, Communities and Local Government",Homes England,It - Rda Transition,Finance & Corporate Services,DEPOEL MANAGED SERVICES LTD,03/05/2018,2524.59,L,80111600,Temporary personnel services
"Ministry of Housing, Communities and Local Government",Homes England,It - Rda Transition,Finance & Corporate Services,DEPOEL MANAGED SERVICES LTD,03/05/2018,2272.83,L,80111600,Temporary personnel services
"Ministry of Housing, Communities and Local Government",Homes England,It - Rda Transition,Finance & Corporate Services,DEPOEL MANAGED SERVICES LTD,03/05/2018,1955.06,L,80111600,Temporary personnel services
"Ministry of Housing, Communities and Local Government",Homes England,It - Rda Transition,Finance & Corporate Services,DEPOEL MANAGED SERVICES LTD,03/05/2018,2743.28,L,80111600,Temporary personnel services
"Ministry of Housing, Communities and Local Government",Homes England,It - Rda Transition,Finance & Corporate Services,DEPOEL MANAGED SERVICES LTD,03/05/2018,2743.28,L,80111600,Temporary personnel services
"Ministry of Housing, Communities and Local Government",Homes England,It - Rda Transition,Finance & Corporate Services,DEPOEL MANAGED SERVICES LTD,03/05/2018,2743.28,L,80111600,Temporary personnel services
"Ministry of Housing, Communities and Local Government",Homes England,It - Rda Transition,Finance & Corporate Services,DEPOEL MANAGED SERVICES LTD,10/05/2018,2045.55,L,80111600,Temporary personnel services
"Ministry of Housing, Communities and Local Government",Homes England,Programme Management Mh,Finance & Corporate Services,DEPOEL MANAGED SERVICES LTD,11/05/2018,1865.38,L,80111600,Temporary personnel services
"Ministry of Housing, Communities and Local Government",Homes England,It - Rda Transition,Finance & Corporate Services,DEPOEL MANAGED SERVICES LTD,14/05/2018,1955.06,L,80111600,Temporary personnel services
"Ministry of Housing, Communities and Local Government",Homes England,It - Rda Transition,Finance & Corporate Services,DEPOEL MANAGED SERVICES LTD,14/05/2018,2743.28,L,80111600,Temporary personnel services
"Ministry of Housing, Communities and Local Government",Homes England,It - Rda Transition,Finance & Corporate Services,DEPOEL MANAGED SERVICES LTD,18/05/2018,2844.98,L,80111600,Temporary personnel services
"Ministry of Housing, Communities and Local Government",Homes England,It - Rda Transition,Finance & Corporate Services,DEPOEL MANAGED SERVICES LTD,18/05/2018,2524.59,L,80111600,Temporary personnel services
"Ministry of Housing, Communities and Local Government",Homes England,It - Rda Transition,Finance & Corporate Services,DEPOEL MANAGED SERVICES LTD,18/05/2018,2743.28,L,80111600,Temporary personnel services
"Ministry of Housing, Communities and Local Government",Homes England,It - Rda Transition,Finance & Corporate Services,DEPOEL MANAGED SERVICES LTD,18/05/2018,2743.28,L,80111600,Temporary personnel services
"Ministry of Housing, Communities and Local Government",Homes England,It - Rda Transition,Finance & Corporate Services,DEPOEL MANAGED SERVICES LTD,18/05/2018,2275.98,L,80111600,Temporary personnel services
"Ministry of Housing, Communities and Local Government",Homes England,It - Rda Transition,Finance & Corporate Services,DEPOEL MANAGED SERVICES LTD,18/05/2018,2524.59,L,80111600,Temporary personnel services
"Ministry of Housing, Communities and Local Government",Homes England,It - Rda Transition,Finance & Corporate Services,DEPOEL MANAGED SERVICES LTD,18/05/2018,1818.27,L,80111600,Temporary personnel services
"Ministry of Housing, Communities and Local Government",Homes England,It - Rda Transition,Finance & Corporate Services,DEPOEL MANAGED SERVICES LTD,18/05/2018,2743.28,L,80111600,Temporary personnel services
"Ministry of Housing, Communities and Local Government",Homes England,It - Rda Transition,Finance & Corporate Services,DEPOEL MANAGED SERVICES LTD,18/05/2018,2194.62,L,80111600,Temporary personnel services
"Ministry of Housing, Communities and Local Government",Homes England,It - Rda Transition,Finance & Corporate Services,DEPOEL MANAGED SERVICES LTD,21/05/2018,2194.62,L,80111600,Temporary personnel services
"Ministry of Housing, Communities and Local Government",Homes England,Programme Management Mh,Finance & Corporate Services,DEPOEL MANAGED SERVICES LTD,23/05/2018,1865.38,L,80111600,Temporary personnel services
"Ministry of Housing, Communities and Local Government",Homes England,It - Rda Transition,Finance & Corporate Services,DEPOEL MANAGED SERVICES LTD,25/05/2018,2272.83,L,80111600,Temporary personnel services
"Ministry of Housing, Communities and Local Government",Homes England,It - Rda Transition,Finance & Corporate Services,DEPOEL MANAGED SERVICES LTD,29/05/2018,2743.28,L,80111600,Temporary personnel services
"Ministry of Housing, Communities and Local Government",Homes England,It - Rda Transition,Finance & Corporate Services,DEPOEL MANAGED SERVICES LTD,29/05/2018,2743.28,L,80111600,Temporary personnel services
"Ministry of Housing, Communities and Local Government",Homes England,It - Rda Transition,Finance & Corporate Services,DEPOEL MANAGED SERVICES LTD,29/05/2018,2524.59,L,80111600,Temporary personnel services
"Ministry of Housing, Communities and Local Government",Homes England,It - Rda Transition,Finance & Corporate Services,DEPOEL MANAGED SERVICES LTD,29/05/2018,2743.28,L,80111600,Temporary personnel services
"Ministry of Housing, Communities and Local Government",Homes England,It - Rda Transition,Finance & Corporate Services,DEPOEL MANAGED SERVICES LTD,29/05/2018,2844.98,L,80111600,Temporary personnel services
"Ministry of Housing, Communities and Local Government",Homes England,It - Rda Transition,Finance & Corporate Services,DEPOEL MANAGED SERVICES LTD,29/05/2018,1564.05,L,80111600,Temporary personnel services
"Ministry of Housing, Communities and Local Government",Homes England,It - Rda Transition,Finance & Corporate Services,DEPOEL MANAGED SERVICES LTD,29/05/2018,1955.06,L,80111600,Temporary personnel services
"Ministry of Housing, Communities and Local Government",Homes England,Programme Management Mh,Finance & Corporate Services,DEPOEL MANAGED SERVICES LTD,31/05/2018,1865.38,L,80111600,Temporary personnel services
"Ministry of Housing, Communities and Local Government",Homes England,It - Rda Transition,Finance & Corporate Services,DEPOEL MANAGED SERVICES LTD,31/05/2018,2844.98,L,80111600,Temporary personnel services
"Ministry of Housing, Communities and Local Government",Homes England,It - Rda Transition,Finance & Corporate Services,DEPOEL MANAGED SERVICES LTD,31/05/2018,1955.06,L,80111600,Temporary personnel services
"Ministry of Housing, Communities and Local Government",Homes England,It - Rda Transition,Finance & Corporate Services,DEPOEL MANAGED SERVICES LTD,31/05/2018,2743.28,L,80111600,Temporary personnel services
"Ministry of Housing, Communities and Local Government",Homes England,It - Rda Transition,Finance & Corporate Services,DEPOEL MANAGED SERVICES LTD,31/05/2018,2743.28,L,80111600,Temporary personnel services
"Ministry of Housing, Communities and Local Government",Homes England,It - Rda Transition,Finance & Corporate Services,DEPOEL MANAGED SERVICES LTD,31/05/2018,2743.28,L,80111600,Temporary personnel services
"Ministry of Housing, Communities and Local Government",Homes England,South West Hants-Iow-Dorset-Bu,South West,DDS (DEMOLITION) LTD,04/05/2018,36412,M,72141500,Land preparation services
"Ministry of Housing, Communities and Local Government",Homes England,East And Se Essex And Kent,East And South East,DDS (DEMOLITION) LTD,11/05/2018,1962.15,M,72141500,Land preparation services
"Ministry of Housing, Communities and Local Government",Homes England,Economic Assets Hub Transition,Economic Assets Hub,DB DEVELOPMENTS STAFFORDSHIRE LIMITED,01/05/2018,67582,,N/A,Loans
"Ministry of Housing, Communities and Local Government",Homes England,Spatial Intelligence Telford,Programmes,BEN DADDOW,03/05/2018,1036.44,S,72101500,Building maintenance and repair services
"Ministry of Housing, Communities and Local Government",Homes England,Spatial Intelligence Telford,Programmes,BEN DADDOW,14/05/2018,3911.59,S,72101500,Building maintenance and repair services
"Ministry of Housing, Communities and Local Government",Homes England,Spatial Intelligence Telford,Programmes,BEN DADDOW,17/05/2018,938.4,S,72101500,Building maintenance and repair services
"Ministry of Housing, Communities and Local Government",Homes England,Spatial Intelligence Telford,Programmes,BEN DADDOW,17/05/2018,858.75,S,72101500,Building maintenance and repair services
"Ministry of Housing, Communities and Local Government",Homes England,Economic Assets S&Sw Prog,South West,BEN DADDOW,17/05/2018,600,S,72101500,Building maintenance and repair services
"Ministry of Housing, Communities and Local Government",Homes England,Spatial Intelligence Telford,Programmes,BEN DADDOW,25/05/2018,1230.17,S,72101500,Building maintenance and repair services
"Ministry of Housing, Communities and Local Government",Homes England,Dartford Magistrates' Court,East And South East,DARTFORD BOROUGH COUNCIL,31/05/2018,2519.45,G,80131500,Lease and rental of property or building
"Ministry of Housing, Communities and Local Government",Homes England,Dartford Magistrates' Court,East And South East,DARTFORD BOROUGH COUNCIL,31/05/2018,4936.8,G,80131500,Lease and rental of property or building
"Ministry of Housing, Communities and Local Government",Homes England,Dartford Magistrates' Court,East And South East,DARTFORD BOROUGH COUNCIL,31/05/2018,5040,G,80131500,Lease and rental of property or building
"Ministry of Housing, Communities and Local Government",Homes England,It - Rda Transition,Finance & Corporate Services,DB GROUP LTD T/A ESUASIVE,09/05/2018,2595,L,43231500,Business function specific software
"Ministry of Housing, Communities and Local Government",Homes England,It - Rda Transition,Finance & Corporate Services,DB GROUP LTD T/A ESUASIVE,09/05/2018,7372.5,L,43231500,Business function specific software
"Ministry of Housing, Communities and Local Government",Homes England,Kettering County Court,North East And Yorkshire,ENQUIN ENVIRONMENTAL LIMITED,17/05/2018,332.5,S,80131800,Real estate management services
"Ministry of Housing, Communities and Local Government",Homes England,Economic Assets S&Sw Prog,South West,ENQUIN ENVIRONMENTAL LIMITED,25/05/2018,407.5,S,80131800,Real estate management services
"Ministry of Housing, Communities and Local Government",Homes England,Lodge Hill,East And South East,WOOD ENVIRONMENT & INFRASTRUCTURE SOLUTIONS,01/05/2018,14879.81,L,80131800,Real estate management services
"Ministry of Housing, Communities and Local Government",Homes England,Lodge Hill,East And South East,WOOD ENVIRONMENT & INFRASTRUCTURE SOLUTIONS,01/05/2018,2299.21,L,80131800,Real estate management services
"Ministry of Housing, Communities and Local Government",Homes England,Area Dir Mids Worcs-Shrop-Here,Midlands,WOOD ENVIRONMENT & INFRASTRUCTURE SOLUTIONS,02/05/2018,2213.01,L,80131800,Real estate management services
"Ministry of Housing, Communities and Local Government",Homes England,East And Se Essex And Kent,East And South East,WOOD ENVIRONMENT & INFRASTRUCTURE SOLUTIONS,04/05/2018,8976.94,L,80131800,Real estate management services
"Ministry of Housing, Communities and Local Government",Homes England,Mk Development Control Mk,Midlands,WOOD ENVIRONMENT & INFRASTRUCTURE SOLUTIONS,15/05/2018,887.27,L,80131800,Real estate management services
"Ministry of Housing, Communities and Local Government",Homes England,Budget 2013 - Midlands Wm,Midlands,WOOD ENVIRONMENT & INFRASTRUCTURE SOLUTIONS,15/05/2018,640.16,L,80131800,Real estate management services
"Ministry of Housing, Communities and Local Government",Homes England,Land And Regeneration Mh,Programmes,WOOD ENVIRONMENT & INFRASTRUCTURE SOLUTIONS,15/05/2018,9888.54,L,80131800,Real estate management services
"Ministry of Housing, Communities and Local Government",Homes England,Estate Management Yorks,North West,WOOD ENVIRONMENT & INFRASTRUCTURE SOLUTIONS,25/05/2018,5920,L,80131800,Real estate management services
"Ministry of Housing, Communities and Local Government",Homes England,Budget 2013 - Midlands Wm,Midlands,WOOD ENVIRONMENT & INFRASTRUCTURE SOLUTIONS,25/05/2018,15000,L,80131800,Real estate management services
"Ministry of Housing, Communities and Local Government",Homes England,Area Dir Mids Worcs-Shrop-Here,Midlands,WOOD ENVIRONMENT & INFRASTRUCTURE SOLUTIONS,25/05/2018,1065.64,L,80131800,Real estate management services
"Ministry of Housing, Communities and Local Government",Homes England,Budget 2013 - Midlands Wm,Midlands,WOOD ENVIRONMENT & INFRASTRUCTURE SOLUTIONS,25/05/2018,9000,L,80131800,Real estate management services
"Ministry of Housing, Communities and Local Government",Homes England,Spatial Intelligence Telford,Programmes,WOOD ENVIRONMENT & INFRASTRUCTURE SOLUTIONS,29/05/2018,1592,L,80131800,Real estate management services
"Ministry of Housing, Communities and Local Government",Homes England,Spatial Intelligence Telford,Programmes,WOOD ENVIRONMENT & INFRASTRUCTURE SOLUTIONS,29/05/2018,1598,L,80131800,Real estate management services
"Ministry of Housing, Communities and Local Government",Homes England,Spatial Intelligence Telford,Programmes,WOOD ENVIRONMENT & INFRASTRUCTURE SOLUTIONS,29/05/2018,1676,L,80131800,Real estate management services
"Ministry of Housing, Communities and Local Government",Homes England,Spatial Intelligence Telford,Programmes,WOOD ENVIRONMENT & INFRASTRUCTURE SOLUTIONS,29/05/2018,1621,L,80131800,Real estate management services
"Ministry of Housing, Communities and Local Government",Homes England,Spatial Intelligence Telford,Programmes,WOOD ENVIRONMENT & INFRASTRUCTURE SOLUTIONS,29/05/2018,1569,L,80131800,Real estate management services
"Ministry of Housing, Communities and Local Government",Homes England,Spatial Intelligence Telford,Programmes,WOOD ENVIRONMENT & INFRASTRUCTURE SOLUTIONS,29/05/2018,1608,L,80131800,Real estate management services
"Ministry of Housing, Communities and Local Government",Homes England,Spatial Intelligence Telford,Programmes,WOOD ENVIRONMENT & INFRASTRUCTURE SOLUTIONS,29/05/2018,1597,L,80131800,Real estate management services
"Ministry of Housing, Communities and Local Government",Homes England,Spatial Intelligence Telford,Programmes,WOOD ENVIRONMENT & INFRASTRUCTURE SOLUTIONS,29/05/2018,1560,L,80131800,Real estate management services
"Ministry of Housing, Communities and Local Government",Homes England,Spatial Intelligence Telford,Programmes,WOOD ENVIRONMENT & INFRASTRUCTURE SOLUTIONS,29/05/2018,1603,L,80131800,Real estate management services
"Ministry of Housing, Communities and Local Government",Homes England,Budget 2013 - Midlands Wm,Midlands,WOOD ENVIRONMENT & INFRASTRUCTURE SOLUTIONS,29/05/2018,9450,L,80131800,Real estate management services
"Ministry of Housing, Communities and Local Government",Homes England,Fareham Magistrates Court,East And South East,WOOD ENVIRONMENT & INFRASTRUCTURE SOLUTIONS,30/05/2018,13000,L,80131800,Real estate management services
"Ministry of Housing, Communities and Local Government",Homes England,Land And Regeneration Mh,Programmes,WOOD ENVIRONMENT & INFRASTRUCTURE SOLUTIONS,31/05/2018,10927.26,L,80131800,Real estate management services
"Ministry of Housing, Communities and Local Government",Homes England,Land And Regeneration Mh,Programmes,WOOD ENVIRONMENT & INFRASTRUCTURE SOLUTIONS,31/05/2018,4098.13,L,80131800,Real estate management services
"Ministry of Housing, Communities and Local Government",Homes England,Lodge Hill,East And South East,WOOD ENVIRONMENT & INFRASTRUCTURE SOLUTIONS,31/05/2018,10699.77,L,80131800,Real estate management services
"Ministry of Housing, Communities and Local Government",Homes England,East And Se Essex And Kent,East And South East,WOOD ENVIRONMENT & INFRASTRUCTURE SOLUTIONS,31/05/2018,13209.2,L,80131800,Real estate management services
"Ministry of Housing, Communities and Local Government",Homes England,East And Se Essex And Kent,East And South East,WOOD ENVIRONMENT & INFRASTRUCTURE SOLUTIONS,31/05/2018,6752.01,L,80131800,Real estate management services
"Ministry of Housing, Communities and Local Government",Homes England,Lodge Hill,East And South East,WOOD ENVIRONMENT & INFRASTRUCTURE SOLUTIONS,31/05/2018,3945.55,L,80131800,Real estate management services
"Ministry of Housing, Communities and Local Government",Homes England,Lodge Hill,East And South East,WOOD ENVIRONMENT & INFRASTRUCTURE SOLUTIONS,31/05/2018,599.72,L,80131800,Real estate management services
"Ministry of Housing, Communities and Local Government",Homes England,East And Se Essex And Kent,East And South East,WOOD ENVIRONMENT & INFRASTRUCTURE SOLUTIONS,31/05/2018,28187.5,L,80131800,Real estate management services
"Ministry of Housing, Communities and Local Government",Homes England,Economic Assets Nw Prog,North West,ELECTRICITY NORTH WEST LIMITED,04/05/2018,668.51,S,72101500,Building maintenance and repair services
"Ministry of Housing, Communities and Local Government",Homes England,Facilities Allerton Bywater,Finance & Corporate Services,REED BUSINESS INFORMATION LIMITED,16/05/2018,1682,M,82101500,Print advertising
"Ministry of Housing, Communities and Local Government",Homes England,Facilities Allerton Bywater,Finance & Corporate Services,REED BUSINESS INFORMATION LIMITED,16/05/2018,1682,M,82101500,Print advertising
"Ministry of Housing, Communities and Local Government",Homes England,Facilities Allerton Bywater,Finance & Corporate Services,REED BUSINESS INFORMATION LIMITED,16/05/2018,1682,M,82101500,Print advertising
"Ministry of Housing, Communities and Local Government",Homes England,Facilities Allerton Bywater,Finance & Corporate Services,REED BUSINESS INFORMATION LIMITED,16/05/2018,1682,M,82101500,Print advertising
"Ministry of Housing, Communities and Local Government",Homes England,Facilities Allerton Bywater,Finance & Corporate Services,REED BUSINESS INFORMATION LIMITED,17/05/2018,1682,M,82101500,Print advertising
"Ministry of Housing, Communities and Local Government",Homes England,Facilities Allerton Bywater,Finance & Corporate Services,REED BUSINESS INFORMATION LIMITED,21/05/2018,1682,M,82101500,Print advertising
"Ministry of Housing, Communities and Local Government",Homes England,Facilities Allerton Bywater,Finance & Corporate Services,REED BUSINESS INFORMATION LIMITED,25/05/2018,1950,M,82101500,Print advertising
"Ministry of Housing, Communities and Local Government",Homes England,It - Rda Transition,Finance & Corporate Services,E-CYCLE LIMITED,21/05/2018,794,S,76122300,Recycling services
"Ministry of Housing, Communities and Local Government",Homes England,Budget 2013 - Midlands Wm,Midlands,EGNIOL ENVIRONMENTAL LIMITED,22/05/2018,1500,S,81101500,Civil Engineering
"Ministry of Housing, Communities and Local Government",Homes England,Budget 2013 - Midlands Wm,Midlands,EGNIOL ENVIRONMENTAL LIMITED,22/05/2018,315,S,81101500,Civil Engineering
"Ministry of Housing, Communities and Local Government",Homes England,Facilities Allerton Bywater,Finance & Corporate Services,EDENRED (UK GROUP) LTD,04/05/2018,325,L,14111803,Vouchers
"Ministry of Housing, Communities and Local Government",Homes England,Economic Assets Nw Prog,North West,ENTWISTLE GREEN LETTINGS,17/05/2018,1536,L,80131800,Real estate management services
"Ministry of Housing, Communities and Local Government",Homes England,Economic Assets Hub Transition,Economic Assets Hub,EASINGWOLD DEVCO LLP,25/05/2018,388129,,N/A,Loans
"Ministry of Housing, Communities and Local Government",Homes England,It - Rda Transition,Finance & Corporate Services,EE LTD,15/05/2018,8109.37,L,83101600,Mobile communications services
"Ministry of Housing, Communities and Local Government",Homes England,Spatial Intelligence Telford,Programmes,ECOLOGICAL LAND MANGEMENT LTD,24/05/2018,340,S,72101500,Building maintenance and repair services
"Ministry of Housing, Communities and Local Government",Homes England,Spatial Intelligence Telford,Programmes,ECOLOGICAL LAND MANGEMENT LTD,24/05/2018,600,S,72101500,Building maintenance and repair services
"Ministry of Housing, Communities and Local Government",Homes England,Spatial Intelligence Telford,Programmes,ECOLOGICAL LAND MANGEMENT LTD,24/05/2018,1985,S,72101500,Building maintenance and repair services
"Ministry of Housing, Communities and Local Government",Homes England,Lodge Hill,East And South East,EMCOR GROUP (UK) lTD,21/05/2018,3603.22,L,72101500,Building maintenance and repair services
"Ministry of Housing, Communities and Local Government",Homes England,Lodge Hill,East And South East,EMCOR GROUP (UK) lTD,21/05/2018,6472.18,L,72101500,Building maintenance and repair services
"Ministry of Housing, Communities and Local Government",Homes England,Lodge Hill,East And South East,EMCOR GROUP (UK) lTD,21/05/2018,614.55,L,72101500,Building maintenance and repair services
"Ministry of Housing, Communities and Local Government",Homes England,Lodge Hill,East And South East,EMCOR GROUP (UK) lTD,21/05/2018,3909.5,L,72101500,Building maintenance and repair services
"Ministry of Housing, Communities and Local Government",Homes England,Economic Assets Hub Transition,Economic Assets Hub,ENJOY HOMES LTD,09/05/2018,25000,,N/A,Loans
"Ministry of Housing, Communities and Local Government",Homes England,Economic Assets Hub Transition,Economic Assets Hub,EDG PROPERTY COVENTRY LTD,10/05/2018,477483,,N/A,Loans
"Ministry of Housing, Communities and Local Government",Homes England,Economic Assets Hub Transition,Economic Assets Hub,ERRIS HOMES (BARNSLEY)LTD,15/05/2018,262981.48,,N/A,Loans
"Ministry of Housing, Communities and Local Government",Homes England,Ne-Y North East Washington,North East And Yorkshire,FORSHAWS DAVIES RIDGWAY LLP,04/05/2018,1300,L,80121600,Business law services
"Ministry of Housing, Communities and Local Government",Homes England,North North East - Washington,North East And Yorkshire,FORSHAWS DAVIES RIDGWAY LLP,17/05/2018,1000,L,80121600,Business law services
"Ministry of Housing, Communities and Local Government",Homes England,Land And Regeneration Mh,Programmes,AECOM LIMITED,02/05/2018,3217.37,L,72101500,Building maintenance and repair services
"Ministry of Housing, Communities and Local Government",Homes England,Land And Regeneration Mh,Programmes,AECOM LIMITED,10/05/2018,1500,L,72101500,Building maintenance and repair services
"Ministry of Housing, Communities and Local Government",Homes England,Land And Regeneration Mh,Programmes,AECOM LIMITED,11/05/2018,23468.27,L,72101500,Building maintenance and repair services
"Ministry of Housing, Communities and Local Government",Homes England,Comms Transition Budget,Finance & Corporate Services,AECOM LIMITED,18/05/2018,8820,L,72101500,Building maintenance and repair services
"Ministry of Housing, Communities and Local Government",Homes England,LIF LS Loans Private additions,Programmes,AECOM LIMITED,18/05/2018,2271,L,72101500,Building maintenance and repair services
"Ministry of Housing, Communities and Local Government",Homes England,Area Dir Cumbria Lancs Skelmer,North West,AECOM LIMITED,23/05/2018,3884,L,72101500,Building maintenance and repair services
"Ministry of Housing, Communities and Local Government",Homes England,Economic Assets Ne-Y Prog,North East And Yorkshire,AECOM LIMITED,25/05/2018,2436,L,72101500,Building maintenance and repair services
"Ministry of Housing, Communities and Local Government",Homes England,Beis - Haughton Grange,North East And Yorkshire,AECOM LIMITED,30/05/2018,11896.15,L,72101500,Building maintenance and repair services
"Ministry of Housing, Communities and Local Government",Homes England,Beis - Haughton Grange,North East And Yorkshire,AECOM LIMITED,31/05/2018,20074.69,L,72101500,Building maintenance and repair services
"Ministry of Housing, Communities and Local Government",Homes England,Wrest Park Area 1a & 1b,East And South East,AECOM LIMITED,31/05/2018,2360,L,72101500,Building maintenance and repair services
"Ministry of Housing, Communities and Local Government",Homes England,Regulation,North East And Yorkshire,FRIENDS HOUSE,09/05/2018,381.68,S,90111600,Meeting facilities
"Ministry of Housing, Communities and Local Government",Homes England,Economic Assets Hub Transition,Economic Assets Hub,SAVILLS UK LIMITED,03/05/2018,9500,L,80131800,Real estate management services
"Ministry of Housing, Communities and Local Government",Homes England,Land And Regeneration Mh,Programmes,SAVILLS UK LIMITED,04/05/2018,2250,L,80131800,Real estate management services
"Ministry of Housing, Communities and Local Government",Homes England,Economic Assets S&Sw Prog,South West,SAVILLS UK LIMITED,04/05/2018,1049.7,L,80131800,Real estate management services
"Ministry of Housing, Communities and Local Government",Homes England,East And South East,East And South East,SAVILLS UK LIMITED,14/05/2018,540,L,80131800,Real estate management services
"Ministry of Housing, Communities and Local Government",Homes England,Budget 2013 - Midlands Wm,Midlands,SAVILLS UK LIMITED,17/05/2018,4480,L,80131800,Real estate management services
"Ministry of Housing, Communities and Local Government",Homes England,Economic Assets Ne-Y Prog,North East And Yorkshire,SAVILLS UK LIMITED,25/05/2018,4980,L,80131800,Real estate management services
"Ministry of Housing, Communities and Local Government",Homes England,Sturton Place,South East,SAVILLS UK LIMITED,25/05/2018,2138,L,80131800,Real estate management services
"Ministry of Housing, Communities and Local Government",Homes England,Land And Regeneration Mh,Programmes,SAVILLS UK LIMITED,29/05/2018,2000,L,80131800,Real estate management services
"Ministry of Housing, Communities and Local Government",Homes England,Economic Assets Hub Transition,Economic Assets Hub,FAIRBRIDGE DEVELOPMENTS LTD,03/05/2018,377351.9,,N/A,Loans
"Ministry of Housing, Communities and Local Government",Homes England,Economic Assets Hub Transition,Economic Assets Hub,FAIRBRIDGE DEVELOPMENTS LTD,29/05/2018,331482.64,,N/A,Loans
"Ministry of Housing, Communities and Local Government",Homes England,It - Rda Transition,Finance & Corporate Services,QUBE GLOBAL SOFTWARE LIMITED,02/05/2018,25272.95,L,81112200,Software maintenance and support
"Ministry of Housing, Communities and Local Government",Homes England,Economic Assets S&Sw Prog,South West,R FOX T/A SOUTHCOAST MAINTENANCE,11/05/2018,1566,S,72101500,Building maintenance and repair services
"Ministry of Housing, Communities and Local Government",Homes England,Economic Assets S&Sw Prog,South West,R FOX T/A SOUTHCOAST MAINTENANCE,25/05/2018,3256,S,72101500,Building maintenance and repair services
"Ministry of Housing, Communities and Local Government",Homes England,Economic Assets S&Sw Prog,South West,R FOX T/A SOUTHCOAST MAINTENANCE,25/05/2018,3465,S,72101500,Building maintenance and repair services
"Ministry of Housing, Communities and Local Government",Homes England,Economic Assets S&Sw Prog,South West,R FOX T/A SOUTHCOAST MAINTENANCE,25/05/2018,4500,S,72101500,Building maintenance and repair services
"Ministry of Housing, Communities and Local Government",Homes England,East And South East,East And South East,FALCON SECURITY,10/05/2018,15854.72,M,92121500,Guard services
"Ministry of Housing, Communities and Local Government",Homes England,Beis - Haughton Grange,North East And Yorkshire,FALCON SECURITY,10/05/2018,16049.14,M,92121500,Guard services
"Ministry of Housing, Communities and Local Government",Homes England,Economic Assets S&Sw Prog,South West,FOREST OF DEAN DISTRICT COUNCIL,04/05/2018,932.68,G,80131500,Lease and rental of property or building
"Ministry of Housing, Communities and Local Government",Homes England,It - Rda Transition,Finance & Corporate Services,FRESH ELEMENT LIMITED,17/05/2018,2312,M,90111600,Meeting facilities
"Ministry of Housing, Communities and Local Government",Homes England,Budget 2013 - Midlands Wm,Midlands,FIRST NATIONAL SERVICES LTD,14/05/2018,398,S,72102900,Facility maintenance and repair services
"Ministry of Housing, Communities and Local Government",Homes England,Budget 2013 - Midlands Wm,Midlands,FIRST NATIONAL SERVICES LTD,14/05/2018,600.75,S,72102900,Facility maintenance and repair services
"Ministry of Housing, Communities and Local Government",Homes England,Economic Assets S&Sw Prog,South West,FRISKA LTD.,14/05/2018,3072.3,S,90101600,Banquet and catering services
"Ministry of Housing, Communities and Local Government",Homes England,Economic Assets S&Sw Prog,South West,FP MAILING LTD,29/05/2018,2500,S,78102200,Postal and small parcel and courier services
"Ministry of Housing, Communities and Local Government",Homes England,Economic Assets Hub Transition,Economic Assets Hub,FLOUR DEVELOPMENTS LIMITED,23/05/2018,331612.29,M,86101800,In service training and manpower development
"Ministry of Housing, Communities and Local Government",Homes England,Spatial Intelligence Telford,Programmes,F T GEARING L/S LTD,04/05/2018,271,M,72101500,Building maintenance and repair services
"Ministry of Housing, Communities and Local Government",Homes England,Spatial Intelligence Telford,Programmes,F T GEARING L/S LTD,04/05/2018,340,M,72101500,Building maintenance and repair services
"Ministry of Housing, Communities and Local Government",Homes England,Spatial Intelligence Telford,Programmes,F T GEARING L/S LTD,04/05/2018,1380,M,72101500,Building maintenance and repair services
"Ministry of Housing, Communities and Local Government",Homes England,Estate Management Yorks,North West,F T GEARING L/S LTD,29/05/2018,395.23,M,72101500,Building maintenance and repair services
"Ministry of Housing, Communities and Local Government",Homes England,Facilities Allerton Bywater,Finance & Corporate Services,GUARDIAN NEWSPAPERS LTD,21/05/2018,750,L,80131800,Real estate management services
"Ministry of Housing, Communities and Local Government",Homes England,Economic Assets S&Sw Prog,South West,GVA GRIMLEY,01/05/2018,1700,L,80131800,Real estate management services
"Ministry of Housing, Communities and Local Government",Homes England,Spatial Intelligence Telford,Programmes,GVA GRIMLEY,01/05/2018,3076.25,L,80131800,Real estate management services
"Ministry of Housing, Communities and Local Government",Homes England,East And South East,East And South East,GVA GRIMLEY,03/05/2018,4000,L,80131800,Real estate management services
"Ministry of Housing, Communities and Local Government",Homes England,East And South East,East And South East,GVA GRIMLEY,03/05/2018,11500,L,80131800,Real estate management services
"Ministry of Housing, Communities and Local Government",Homes England,Area Dir Mids Worcs-Shrop-Here,Midlands,GVA GRIMLEY,09/05/2018,5050,L,80131800,Real estate management services
"Ministry of Housing, Communities and Local Government",Homes England,Economic Assets Ne-Y Prog,North East And Yorkshire,GVA GRIMLEY,09/05/2018,4500,L,80131800,Real estate management services
"Ministry of Housing, Communities and Local Government",Homes England,Comms Transition Budget,Finance & Corporate Services,GVA GRIMLEY,10/05/2018,1000,L,80131800,Real estate management services
"Ministry of Housing, Communities and Local Government",Homes England,Economic Assets Hub Transition,Economic Assets Hub,GVA GRIMLEY,11/05/2018,800,L,80131800,Real estate management services
"Ministry of Housing, Communities and Local Government",Homes England,Economic Assets Hub Transition,Economic Assets Hub,GVA GRIMLEY,11/05/2018,2400,L,80131800,Real estate management services
"Ministry of Housing, Communities and Local Government",Homes England,Economic Assets Hub Transition,Economic Assets Hub,GVA GRIMLEY,11/05/2018,800,L,80131800,Real estate management services
"Ministry of Housing, Communities and Local Government",Homes England,Economic Assets Hub Transition,Economic Assets Hub,GVA GRIMLEY,11/05/2018,2400,L,80131800,Real estate management services
"Ministry of Housing, Communities and Local Government",Homes England,Land And Regeneration National,Programmes,GVA GRIMLEY,11/05/2018,37000,L,80131800,Real estate management services
"Ministry of Housing, Communities and Local Government",Homes England,Area Dir Mids Worcs-Shrop-Here,Midlands,GVA GRIMLEY,14/05/2018,950,L,80131800,Real estate management services
"Ministry of Housing, Communities and Local Government",Homes England,Land And Regeneration Mh,Programmes,GVA GRIMLEY,14/05/2018,750,L,80131800,Real estate management services
"Ministry of Housing, Communities and Local Government",Homes England,Land And Regeneration Mh,Programmes,GVA GRIMLEY,14/05/2018,750,L,80131800,Real estate management services
"Ministry of Housing, Communities and Local Government",Homes England,Economic Assets Hub Transition,Economic Assets Hub,GVA GRIMLEY,15/05/2018,2000,L,80131800,Real estate management services
"Ministry of Housing, Communities and Local Government",Homes England,Ne-Yh Sheffield And Humb Ne-Y,North East And Yorkshire,GVA GRIMLEY,21/05/2018,1995,L,80131800,Real estate management services
"Ministry of Housing, Communities and Local Government",Homes England,Land And Regeneration Mh,Programmes,GVA GRIMLEY,23/05/2018,1068.25,L,80131800,Real estate management services
"Ministry of Housing, Communities and Local Government",Homes England,Budget 2013 - Midlands Wm,Midlands,GVA GRIMLEY,29/05/2018,500,M,72101500,Building maintenance and repair services
"Ministry of Housing, Communities and Local Government",Homes England,Economic Assets Ne-Y Prog,North East And Yorkshire,GREENFINGERS LANDSCAPES LIMITED,09/05/2018,772.97,M,72101500,Building maintenance and repair services
"Ministry of Housing, Communities and Local Government",Homes England,Economic Assets S&Sw Prog,South West,GVA LTD,11/05/2018,24438,L,80131500,Lease and rental of property or building
"Ministry of Housing, Communities and Local Government",Homes England,Economic Assets Hub Transition,Economic Assets Hub,GLASS DEVELOPMENTS LIMITED,23/05/2018,450656.45,,N/A,Loans
"Ministry of Housing, Communities and Local Government",Homes England,Economic Assets Hub Transition,Economic Assets Hub,GLASSHOUSES123 LIMITED,18/05/2018,204176,,N/A,Loans
"Ministry of Housing, Communities and Local Government",Homes England,East And South East,East And South East,GAVIN JONES LTD,08/05/2018,259.58,L,72102900,Facility maintenance and repair services
"Ministry of Housing, Communities and Local Government",Homes England,East And South East,East And South East,GAVIN JONES LTD,30/05/2018,259.58,L,72102900,Facility maintenance and repair services
"Ministry of Housing, Communities and Local Government",Homes England,Economic Assets Hub Transition,Economic Assets Hub,GREGORY ROBINSON DEVELOPMENTS LTD,14/05/2018,14072.4,,N/A,Loans
"Ministry of Housing, Communities and Local Government",Homes England,Budget 2013 - Midlands Wm,Midlands,GVA GRIMLEY LTD CLIENT A/C,31/05/2018,1138.17,L,80131500,Lease and rental of property or building
"Ministry of Housing, Communities and Local Government",Homes England,Budget 2013 - Midlands Wm,Midlands,GVA GRIMLEY LTD CLIENT A/C,31/05/2018,4035.83,L,80131500,Lease and rental of property or building
"Ministry of Housing, Communities and Local Government",Homes England,Economic Assets Hub Transition,Economic Assets Hub,GINNIS PROPERTIES LIMITED,22/05/2018,340096,,N/A,Loans
"Ministry of Housing, Communities and Local Government",Homes England,Economic Assets S&Sw Prog,South West,GREENFIELDS GARDEN SERVICES LTD,03/05/2018,1140,S,72101500,Building maintenance and repair services
"Ministry of Housing, Communities and Local Government",Homes England,Economic Assets S&Sw Prog,South West,GREENFIELDS GARDEN SERVICES LTD,03/05/2018,2800,S,72101500,Building maintenance and repair services
"Ministry of Housing, Communities and Local Government",Homes England,Economic Assets S&Sw Prog,South West,GREENFIELDS GARDEN SERVICES LTD,25/05/2018,340,S,72101500,Building maintenance and repair services
"Ministry of Housing, Communities and Local Government",Homes England,HCA Investment Credit Risk Man,Programmes,HAYS ACCOUNTANCY & FINANCE,01/05/2018,2307.56,L,80111600,Temporary personnel services
"Ministry of Housing, Communities and Local Government",Homes England,HCA Investment Credit Risk Man,Programmes,HAYS ACCOUNTANCY & FINANCE,01/05/2018,2884.45,L,80111600,Temporary personnel services
"Ministry of Housing, Communities and Local Government",Homes England,Corporate Assurance-Mh,Finance & Corporate Services,HAYS ACCOUNTANCY & FINANCE,03/05/2018,674.24,L,80111600,Temporary personnel services
"Ministry of Housing, Communities and Local Government",Homes England,Change Management Team Bpr,Executive Office,HAYS ACCOUNTANCY & FINANCE,03/05/2018,3983.75,L,80111600,Temporary personnel services
"Ministry of Housing, Communities and Local Government",Homes England,Change Management Team Bpr,Executive Office,HAYS ACCOUNTANCY & FINANCE,03/05/2018,1120.5,L,80111600,Temporary personnel services
"Ministry of Housing, Communities and Local Government",Homes England,HCA Investment Credit Risk Man,Programmes,HAYS ACCOUNTANCY & FINANCE,03/05/2018,2884.45,L,80111600,Temporary personnel services
"Ministry of Housing, Communities and Local Government",Homes England,Change Management Team Bpr,Executive Office,HAYS ACCOUNTANCY & FINANCE,03/05/2018,4200,L,80111600,Temporary personnel services
"Ministry of Housing, Communities and Local Government",Homes England,Change Management Team Bpr,Executive Office,HAYS ACCOUNTANCY & FINANCE,18/05/2018,3983.75,L,80111600,Temporary personnel services
"Ministry of Housing, Communities and Local Government",Homes England,Change Management Team Bpr,Executive Office,HAYS ACCOUNTANCY & FINANCE,18/05/2018,1120.5,L,80111600,Temporary personnel services
"Ministry of Housing, Communities and Local Government",Homes England,HCA Investment Credit Risk Man,Programmes,HAYS ACCOUNTANCY & FINANCE,18/05/2018,2884.45,L,80111600,Temporary personnel services
"Ministry of Housing, Communities and Local Government",Homes England,Change Management Team Bpr,Executive Office,HAYS ACCOUNTANCY & FINANCE,18/05/2018,4200,L,80111600,Temporary personnel services
"Ministry of Housing, Communities and Local Government",Homes England,Change Management Team Bpr,Executive Office,HAYS ACCOUNTANCY & FINANCE,18/05/2018,4200,L,80111600,Temporary personnel services
"Ministry of Housing, Communities and Local Government",Homes England,HCA Investment Credit Risk Man,Programmes,HAYS ACCOUNTANCY & FINANCE,18/05/2018,2884.45,L,80111600,Temporary personnel services
"Ministry of Housing, Communities and Local Government",Homes England,Change Management Team Bpr,Executive Office,HAYS ACCOUNTANCY & FINANCE,18/05/2018,1120.5,L,80111600,Temporary personnel services
"Ministry of Housing, Communities and Local Government",Homes England,Change Management Team Bpr,Executive Office,HAYS ACCOUNTANCY & FINANCE,29/05/2018,3187,L,80111600,Temporary personnel services
"Ministry of Housing, Communities and Local Government",Homes England,Change Management Team Bpr,Executive Office,HAYS ACCOUNTANCY & FINANCE,29/05/2018,3360,L,80111600,Temporary personnel services
"Ministry of Housing, Communities and Local Government",Homes England,Change Management Team Bpr,Executive Office,HAYS ACCOUNTANCY & FINANCE,29/05/2018,3187,L,80111600,Temporary personnel services
"Ministry of Housing, Communities and Local Government",Homes England,Change Management Team Bpr,Executive Office,HAYS ACCOUNTANCY & FINANCE,29/05/2018,896.4,L,80111600,Temporary personnel services
"Ministry of Housing, Communities and Local Government",Homes England,Change Management Team Bpr,Executive Office,HAYS ACCOUNTANCY & FINANCE,31/05/2018,4200,L,80111600,Temporary personnel services
"Ministry of Housing, Communities and Local Government",Homes England,Ftbi South East,East And South East,ARCADIS CONSULTING (UK) LIMITED,03/05/2018,19036.5,L,811001500,Civil Engineering
"Ministry of Housing, Communities and Local Government",Homes England,Budget 2013 - Midlands Wm,Midlands,ARCADIS CONSULTING (UK) LIMITED,04/05/2018,9790,L,811001500,Civil Engineering
"Ministry of Housing, Communities and Local Government",Homes England,Land And Regeneration Mh,Programmes,ARCADIS CONSULTING (UK) LIMITED,08/05/2018,14300,L,811001500,Civil Engineering
"Ministry of Housing, Communities and Local Government",Homes England,Land And Regeneration Mh,Programmes,ARCADIS CONSULTING (UK) LIMITED,08/05/2018,1900,L,811001500,Civil Engineering
"Ministry of Housing, Communities and Local Government",Homes England,Land And Regeneration Mh,Programmes,ARCADIS CONSULTING (UK) LIMITED,08/05/2018,1900,L,811001500,Civil Engineering
"Ministry of Housing, Communities and Local Government",Homes England,Land And Regeneration Mh,Programmes,ARCADIS CONSULTING (UK) LIMITED,08/05/2018,1900,L,811001500,Civil Engineering
"Ministry of Housing, Communities and Local Government",Homes England,Land And Regeneration Mh,Programmes,ARCADIS CONSULTING (UK) LIMITED,08/05/2018,1900,L,811001500,Civil Engineering
"Ministry of Housing, Communities and Local Government",Homes England,Land And Regeneration Mh,Programmes,ARCADIS CONSULTING (UK) LIMITED,08/05/2018,1900,L,811001500,Civil Engineering
"Ministry of Housing, Communities and Local Government",Homes England,Land And Regeneration Mh,Programmes,ARCADIS CONSULTING (UK) LIMITED,08/05/2018,1900,L,811001500,Civil Engineering
"Ministry of Housing, Communities and Local Government",Homes England,Ftbi South East,East And South East,ARCADIS CONSULTING (UK) LIMITED,10/05/2018,21412.87,L,811001500,Civil Engineering
"Ministry of Housing, Communities and Local Government",Homes England,East And South East,East And South East,ARCADIS CONSULTING (UK) LIMITED,11/05/2018,31292.81,L,811001500,Civil Engineering
"Ministry of Housing, Communities and Local Government",Homes England,Ftbi South East,East And South East,ARCADIS CONSULTING (UK) LIMITED,16/05/2018,746,L,811001500,Civil Engineering
"Ministry of Housing, Communities and Local Government",Homes England,Economic Assets S&Sw Prog,South West,ARCADIS CONSULTING (UK) LIMITED,18/05/2018,18907.5,L,811001500,Civil Engineering
"Ministry of Housing, Communities and Local Government",Homes England,Economic Assets S&Sw Prog,South West,ARCADIS CONSULTING (UK) LIMITED,18/05/2018,12395,L,811001500,Civil Engineering
"Ministry of Housing, Communities and Local Government",Homes England,Economic Assets Hub Transition,Economic Assets Hub,KEEPMOAT HOMES LIMITED,01/05/2018,38675,,N/A,Loans
"Ministry of Housing, Communities and Local Government",Homes England,Regulation,North East And Yorkshire,HOUSE OF LORDS CATERING & RETAIL SERVICES,08/05/2018,385.47,G,90111600,Meeting facilities
"Ministry of Housing, Communities and Local Government",Homes England,Economic Assets S&Sw Prog,South West,HENDERSON & TAYLOR FM LIMITED,03/05/2018,495,S,72101500,Building maintenance and repair services
"Ministry of Housing, Communities and Local Government",Homes England,Economic Assets S&Sw Prog,South West,HENDERSON & TAYLOR FM LIMITED,10/05/2018,1620,S,72101500,Building maintenance and repair services
"Ministry of Housing, Communities and Local Government",Homes England,Economic Assets Hub Transition,Economic Assets Hub,HAYFIELD HOMES (FALLOWFIELDS) LIMITED,24/05/2018,381893.28,,N/A,Loans
"Ministry of Housing, Communities and Local Government",Homes England,Economic Assets S&Sw Prog,South West,HARTNELL TAYLOR COOK LLP,11/05/2018,520.31,M,80131800,Loans
"Ministry of Housing, Communities and Local Government",Homes England,Economic Assets S&Sw Prog,South West,HARTNELL TAYLOR COOK LLP,11/05/2018,1250,M,80131800,Loans
"Ministry of Housing, Communities and Local Government",Homes England,Economic Assets S&Sw Prog,South West,HARTNELL TAYLOR COOK LLP,11/05/2018,1323.25,M,80131800,Loans
"Ministry of Housing, Communities and Local Government",Homes England,Economic Assets S&Sw Prog,South West,HARTNELL TAYLOR COOK LLP,11/05/2018,520.31,M,80131800,Loans
"Ministry of Housing, Communities and Local Government",Homes England,Economic Assets S&Sw Prog,South West,HARTNELL TAYLOR COOK LLP,11/05/2018,852.81,M,80131800,Grants
"Ministry of Housing, Communities and Local Government",Homes England,South West Of Eng-Glouc-Oxford,South West,HARTNELL TAYLOR COOK LLP,11/05/2018,1250,M,80131800,Loans
"Ministry of Housing, Communities and Local Government",Homes England,Economic Assets Ne-Y Prog,North East And Yorkshire,HARTNELL TAYLOR COOK LLP,11/05/2018,875,M,80131800,Loans
"Ministry of Housing, Communities and Local Government",Homes England,Economic Assets S&Sw Prog,South West,HARTNELL TAYLOR COOK LLP,11/05/2018,875,M,80131800,Loans
"Ministry of Housing, Communities and Local Government",Homes England,Economic Assets S&Sw Prog,South West,HARTNELL TAYLOR COOK LLP,11/05/2018,1250,M,80131800,Grants
"Ministry of Housing, Communities and Local Government",Homes England,Economic Assets S&Sw Prog,South West,HARTNELL TAYLOR COOK LLP,11/05/2018,852.81,M,80131800,Grants
"Ministry of Housing, Communities and Local Government",Homes England,Economic Assets S&Sw Prog,South West,HARTNELL TAYLOR COOK LLP,11/05/2018,768,M,80131800,Grants
"Ministry of Housing, Communities and Local Government",Homes England,Economic Assets S&Sw Prog,South West,HARTNELL TAYLOR COOK LLP,14/05/2018,358.44,M,80131800,Real estate management services
"Ministry of Housing, Communities and Local Government",Homes England,Economic Assets S&Sw Prog,South West,HARTNELL TAYLOR COOK LLP,14/05/2018,520.31,M,80131800,Real estate management services
"Ministry of Housing, Communities and Local Government",Homes England,Economic Assets S&Sw Prog,South West,HARTNELL TAYLOR COOK LLP,14/05/2018,2000,M,80131800,Real estate management services
"Ministry of Housing, Communities and Local Government",Homes England,Economic Assets S&Sw Prog,South West,HARTNELL TAYLOR COOK LLP,14/05/2018,830.44,M,80131800,Real estate management services
"Ministry of Housing, Communities and Local Government",Homes England,Economic Assets S&Sw Prog,South West,HARTNELL TAYLOR COOK LLP,14/05/2018,937.5,M,80131800,Real estate management services
"Ministry of Housing, Communities and Local Government",Homes England,Economic Assets S&Sw Prog,South West,HARTNELL TAYLOR COOK LLP,14/05/2018,1775,M,80131800,Real estate management services
"Ministry of Housing, Communities and Local Government",Homes England,Economic Assets S&Sw Prog,South West,HARTNELL TAYLOR COOK LLP,14/05/2018,1600,M,80131800,Real estate management services
"Ministry of Housing, Communities and Local Government",Homes England,Economic Assets S&Sw Prog,South West,HARTNELL TAYLOR COOK LLP,17/05/2018,2025,M,80131800,Real estate management services
"Ministry of Housing, Communities and Local Government",Homes England,Economic Assets S&Sw Prog,South West,HARTNELL TAYLOR COOK LLP,17/05/2018,565.07,M,80131800,Real estate management services
"Ministry of Housing, Communities and Local Government",Homes England,Economic Assets S&Sw Prog,South West,HARTNELL TAYLOR COOK LLP,17/05/2018,3643,M,80131800,Real estate management services
"Ministry of Housing, Communities and Local Government",Homes England,Economic Assets S&Sw Prog,South West,HARTNELL TAYLOR COOK LLP,17/05/2018,1030,M,80131800,Real estate management services
"Ministry of Housing, Communities and Local Government",Homes England,Economic Assets S&Sw Prog,South West,HARTNELL TAYLOR COOK LLP,17/05/2018,692.5,M,80131800,Real estate management services
"Ministry of Housing, Communities and Local Government",Homes England,Economic Assets S&Sw Prog,South West,HARTNELL TAYLOR COOK LLP,17/05/2018,842.5,M,80131800,Real estate management services
"Ministry of Housing, Communities and Local Government",Homes England,Economic Assets S&Sw Prog,South West,HARTNELL TAYLOR COOK LLP,17/05/2018,612.5,M,80131800,Real estate management services
"Ministry of Housing, Communities and Local Government",Homes England,Economic Assets S&Sw Prog,South West,HARTNELL TAYLOR COOK LLP,17/05/2018,692.5,M,80131800,Real estate management services
"Ministry of Housing, Communities and Local Government",Homes England,Economic Assets S&Sw Prog,South West,HARTNELL TAYLOR COOK LLP,17/05/2018,1937.5,M,80131800,Real estate management services
"Ministry of Housing, Communities and Local Government",Homes England,Economic Assets S&Sw Prog,South West,HARTNELL TAYLOR COOK LLP,17/05/2018,3348.5,M,80131800,Real estate management services
"Ministry of Housing, Communities and Local Government",Homes England,Economic Assets S&Sw Prog,South West,HARTNELL TAYLOR COOK LLP,17/05/2018,448,M,80131800,Real estate management services
"Ministry of Housing, Communities and Local Government",Homes England,Economic Assets S&Sw Prog,South West,HARTNELL TAYLOR COOK LLP,17/05/2018,320,M,80131800,Real estate management services
"Ministry of Housing, Communities and Local Government",Homes England,Economic Assets S&Sw Prog,South West,HARTNELL TAYLOR COOK LLP,17/05/2018,896,M,80131800,Real estate management services
"Ministry of Housing, Communities and Local Government",Homes England,Economic Assets S&Sw Prog,South West,HARTNELL TAYLOR COOK LLP,25/05/2018,530,M,80131800,Real estate management services
"Ministry of Housing, Communities and Local Government",Homes England,Economic Assets S&Sw Prog,South West,HARTNELL TAYLOR COOK LLP,25/05/2018,530,M,80131800,Real estate management services
"Ministry of Housing, Communities and Local Government",Homes England,Economic Assets S&Sw Prog,South West,HARTNELL TAYLOR COOK LLP,25/05/2018,875,M,80131800,Real estate management services
"Ministry of Housing, Communities and Local Government",Homes England,Economic Assets S&Sw Prog,South West,HARTNELL TAYLOR COOK LLP,25/05/2018,635.94,M,80131800,Real estate management services
"Ministry of Housing, Communities and Local Government",Homes England,Economic Assets S&Sw Prog,South West,HARTNELL TAYLOR COOK LLP,25/05/2018,1250,M,80131800,Real estate management services
"Ministry of Housing, Communities and Local Government",Homes England,Economic Assets S&Sw Prog,South West,HARTNELL TAYLOR COOK LLP,25/05/2018,1728,M,80131800,Real estate management services
"Ministry of Housing, Communities and Local Government",Homes England,Economic Assets S&Sw Prog,South West,HARTNELL TAYLOR COOK LLP,25/05/2018,448,M,80131800,Real estate management services
"Ministry of Housing, Communities and Local Government",Homes England,Economic Assets S&Sw Prog,South West,HARTNELL TAYLOR COOK LLP,30/05/2018,875,M,80131800,Real estate management services
"Ministry of Housing, Communities and Local Government",Homes England,Economic Assets Hub Transition,Economic Assets Hub,HORNCASTLE GROUPL PLC,08/05/2018,231576.18,,N/A,Loans
"Ministry of Housing, Communities and Local Government",Homes England,Economic Assets Hub Transition,Economic Assets Hub,HOLLINS HOMES (WHITCHURCH) LIMITED,25/05/2018,184187,,N/A,Loans
"Ministry of Housing, Communities and Local Government",Homes England,Economic Assets Hub Transition,Economic Assets Hub,H & S DEVELOPMENT (SOMERTON) LTD,02/05/2018,81078,,N/A,Loans
"Ministry of Housing, Communities and Local Government",Homes England,Economic Assets Hub Transition,Economic Assets Hub,H & S DEVELOPMENT (SOMERTON) LTD,25/05/2018,62558,,N/A,Loans
"Ministry of Housing, Communities and Local Government",Homes England,Capital Grant to RPs,East And South East,THE ABBEYFIELD SOCIETY,31/05/2018,12500,,N/A,Grants
"Ministry of Housing, Communities and Local Government",Homes England,Land And Regeneration Mh,Programmes,HOUSING GROWTH PARTNERSHIP LIMITED,25/05/2018,1304541,,N/A,Loans
"Ministry of Housing, Communities and Local Government",Homes England,Economic Assets Hub Transition,Economic Assets Hub,HOPTON BUILD (YORKSHIRE) LTD,15/05/2018,34312,,N/A,Loans
"Ministry of Housing, Communities and Local Government",Homes England,Economic Assets Hub Transition,Economic Assets Hub,HODSON DEVELOPMENTS (ASHFORD) LTD.,23/05/2018,162826.06,,N/A,Loans
"Ministry of Housing, Communities and Local Government",Homes England,Capital Grant to RPs,East And South East,RAPPORT HOUSING AND CARE,31/05/2018,70000,,N/A,Grants
"Ministry of Housing, Communities and Local Government",Homes England,Capital Grant to RPs,East And South East,RAPPORT HOUSING AND CARE,31/05/2018,559300,,N/A,Grants
"Ministry of Housing, Communities and Local Government",Homes England,Capital Grant to RPs,East And South East,RAPPORT HOUSING AND CARE,31/05/2018,100000,,N/A,Grants
"Ministry of Housing, Communities and Local Government",Homes England,Capital Grant to RPs,East And South East,RAPPORT HOUSING AND CARE,31/05/2018,139825,,N/A,Grants
"Ministry of Housing, Communities and Local Government",Homes England,East And Se Essex And Kent,East And South East,HEWITSONS SOLICITORS,01/05/2018,810,M,80121600,Business law services
"Ministry of Housing, Communities and Local Government",Homes England,Ad Manchester Trafford,North West,HEWITSONS SOLICITORS,02/05/2018,560,M,80121600,Business law services
"Ministry of Housing, Communities and Local Government",Homes England,Economic Assets Nw Prog,North West,HEWITSONS SOLICITORS,02/05/2018,480,M,80121600,Business law services
"Ministry of Housing, Communities and Local Government",Homes England,East And Se Cambs Herts And Bu,East And South East,HEWITSONS SOLICITORS,02/05/2018,1120,M,80121600,Business law services
"Ministry of Housing, Communities and Local Government",Homes England,Economic Assets Hub Transition,Economic Assets Hub,HEWITSONS SOLICITORS,02/05/2018,3393,M,80121600,Business law services
"Ministry of Housing, Communities and Local Government",Homes England,East And South East,East And South East,HEWITSONS SOLICITORS,02/05/2018,540,M,80121600,Business law services
"Ministry of Housing, Communities and Local Government",Homes England,Economic Assets Hub Transition,Economic Assets Hub,HEWITSONS SOLICITORS,04/05/2018,8817.72,M,80121600,Business law services
"Ministry of Housing, Communities and Local Government",Homes England,Economic Assets Hub Transition,Economic Assets Hub,HEWITSONS SOLICITORS,04/05/2018,1142.05,M,80121600,Business law services
"Ministry of Housing, Communities and Local Government",Homes England,Mk Development Control Mk,Midlands,HEWITSONS SOLICITORS,04/05/2018,1500,M,80121600,Business law services
"Ministry of Housing, Communities and Local Government",Homes England,Ftbi South East,East And South East,HEWITSONS SOLICITORS,09/05/2018,2345.74,M,80121600,Business law services
"Ministry of Housing, Communities and Local Government",Homes England,East And Se Essex And Kent,East And South East,HEWITSONS SOLICITORS,10/05/2018,2145,M,80121600,Business law services
"Ministry of Housing, Communities and Local Government",Homes England,Mk Development Control Mk,Midlands,HEWITSONS SOLICITORS,10/05/2018,7370.5,M,80121600,Business law services
"Ministry of Housing, Communities and Local Government",Homes England,Economic Assets S&Sw Prog,South West,HEWITSONS SOLICITORS,10/05/2018,650,M,80121600,Business law services
"Ministry of Housing, Communities and Local Government",Homes England,East And South East,East And South East,HEWITSONS SOLICITORS,15/05/2018,1000,M,80121600,Business law services
"Ministry of Housing, Communities and Local Government",Homes England,East And South East,East And South East,HEWITSONS SOLICITORS,15/05/2018,1000,M,80121600,Business law services
"Ministry of Housing, Communities and Local Government",Homes England,Economic Assets Hub Transition,Economic Assets Hub,HEWITSONS SOLICITORS,17/05/2018,2256.69,M,80121600,Business law services
"Ministry of Housing, Communities and Local Government",Homes England,Lodge Hill,East And South East,HEWITSONS SOLICITORS,17/05/2018,3466.6,M,80121600,Business law services
"Ministry of Housing, Communities and Local Government",Homes England,Land And Regeneration Mh,Programmes,HEWITSONS SOLICITORS,23/05/2018,9100,L,80121600,Business law services
"Ministry of Housing, Communities and Local Government",Homes England,Ftbi South East,East And South East,HEWITSONS SOLICITORS,25/05/2018,798,L,80121600,Business law services
"Ministry of Housing, Communities and Local Government",Homes England,East And South East,East And South East,HEWITSONS SOLICITORS,31/05/2018,500,L,80121600,Business law services
"Ministry of Housing, Communities and Local Government",Homes England,Economic Assets S&Sw Prog,South West,HUGHES & SALVIDGE LIMITED,03/05/2018,103858.75,M,72141500,Land preparation services
"Ministry of Housing, Communities and Local Government",Homes England,Economic Assets S&Sw Prog,South West,HUGHES & SALVIDGE LIMITED,30/05/2018,154850,M,72141500,Land preparation services
"Ministry of Housing, Communities and Local Government",Homes England,Budget 2013 - Midlands Wm,Midlands,HI-LITE ELECTRICAL LTD,29/05/2018,470,M,72102900,Facility maintenance and repair services
"Ministry of Housing, Communities and Local Government",Homes England,Budget 2013 - Midlands Wm,Midlands,HI-LITE ELECTRICAL LTD,29/05/2018,1160,M,72102900,Facility maintenance and repair services
"Ministry of Housing, Communities and Local Government",Homes England,Budget 2013 - Midlands Wm,Midlands,HI-LITE ELECTRICAL LTD,29/05/2018,630,M,72102900,Facility maintenance and repair services
"Ministry of Housing, Communities and Local Government",Homes England,Comms Transition Budget,Finance & Corporate Services,INDUSTRIAL LANDSCAPES LIMITED,08/05/2018,293.85,S,72101500,Building maintenance and repair services
"Ministry of Housing, Communities and Local Government",Homes England,Comms Transition Budget,Finance & Corporate Services,INDUSTRIAL LANDSCAPES LIMITED,30/05/2018,465,S,72101500,Building maintenance and repair services
"Ministry of Housing, Communities and Local Government",Homes England,Economic Assets Ne-Y Prog,North East And Yorkshire,IKO PLC,14/05/2018,2000,L,72101500,Building maintenance and repair services
"Ministry of Housing, Communities and Local Government",Homes England,Economic Assets Hub Transition,Economic Assets Hub,IPSWICH WHARF DEVELOPMENTS LIMITED,15/05/2018,36003.27,,N/A,Loans
"Ministry of Housing, Communities and Local Government",Homes England,Economic Assets Hub Transition,Economic Assets Hub,IPSWICH WHARF DEVELOPMENTS LIMITED,23/05/2018,186364.78,,N/A,Loans
"Ministry of Housing, Communities and Local Government",Homes England,Spatial Intelligence Telford,Programmes,INCHCAPE FLEET SOLUTIONS LIMITED,09/05/2018,314.87,L,25101500,Passenger motor vehicles
"Ministry of Housing, Communities and Local Government",Homes England,HCA Investment Credit Risk Man,Programmes,INCHCAPE FLEET SOLUTIONS LIMITED,09/05/2018,250.68,L,25101500,Passenger motor vehicles
"Ministry of Housing, Communities and Local Government",Homes England,Change Management Team Bpr,Executive Office,INCHCAPE FLEET SOLUTIONS LIMITED,10/05/2018,273.29,L,25101500,Passenger motor vehicles
"Ministry of Housing, Communities and Local Government",Homes England,Ne-Yh Sheffield And Humb Ne-Y,North East And Yorkshire,INCHCAPE FLEET SOLUTIONS LIMITED,24/05/2018,315,L,25101500,Passenger motor vehicles
"Ministry of Housing, Communities and Local Government",Homes England,HCA Investment Credit Risk Man,Programmes,INCHCAPE FLEET SOLUTIONS LIMITED,29/05/2018,842.88,L,25101500,Passenger motor vehicles
"Ministry of Housing, Communities and Local Government",Homes England,East And South East,East And South East,INCHCAPE FLEET SOLUTIONS LIMITED,30/05/2018,530,L,25101500,Passenger motor vehicles
"Ministry of Housing, Communities and Local Government",Homes England,Spp Ne-Yh Leeds,North East And Yorkshire,INCHCAPE FLEET SOLUTIONS LIMITED,31/05/2018,420,L,25101500,Passenger motor vehicles
"Ministry of Housing, Communities and Local Government",Homes England,Director Ne-Yh Leeds,North East And Yorkshire,IDC NORTH EAST,10/05/2018,350,S,90111600,Meeting facilities
"Ministry of Housing, Communities and Local Government",Homes England,Economic Assets Ne-Y Prog,North East And Yorkshire,INTEGRATED UTILITY SERVICES,24/05/2018,2513,L,72101500,Building maintenance and repair services
"Ministry of Housing, Communities and Local Government",Homes England,Economic Assets S&Sw Prog,South West,ITURRI LIMITED,25/05/2018,5704.23,L,72102900,Facility maintenance and repair services
"Ministry of Housing, Communities and Local Government",Homes England,Spatial Intelligence Telford,Programmes,JONES LANG LASALLE,02/05/2018,9000,L,80131800,Real estate management services
"Ministry of Housing, Communities and Local Government",Homes England,Budget 2013 - Midlands Wm,Midlands,JONES LANG LASALLE,09/05/2018,4000,L,80131800,Real estate management services
"Ministry of Housing, Communities and Local Government",Homes England,Budget 2013 - Midlands Wm,Midlands,JONES LANG LASALLE,15/05/2018,4400,L,80131800,Real estate management services
"Ministry of Housing, Communities and Local Government",Homes England,Budget 2013 - Midlands Wm,Midlands,JONES LANG LASALLE,15/05/2018,4561.4,L,80131800,Real estate management services
"Ministry of Housing, Communities and Local Government",Homes England,South West Of Eng-Glouc-Oxford,South West,JONES LANG LASALLE,15/05/2018,8750,L,80131800,Real estate management services
"Ministry of Housing, Communities and Local Government",Homes England,South West Of Eng-Glouc-Oxford,South West,JONES LANG LASALLE,15/05/2018,1000,L,80131800,Real estate management services
"Ministry of Housing, Communities and Local Government",Homes England,Land And Regeneration National,Programmes,JONES LANG LASALLE,25/05/2018,750,L,80131800,Real estate management services
"Ministry of Housing, Communities and Local Government",Homes England,Land And Regeneration National,Programmes,JONES LANG LASALLE,25/05/2018,1000,L,80131800,Real estate management services
"Ministry of Housing, Communities and Local Government",Homes England,Spatial Intelligence Telford,Programmes,JONES LANG LASALLE,25/05/2018,1000,L,80131800,Real estate management services
"Ministry of Housing, Communities and Local Government",Homes England,Bis - Compton Site,East And South East,HS JACKSON & SON FENCING LTD,03/05/2018,715.85,L,72101500,Building maintenance and repair services
"Ministry of Housing, Communities and Local Government",Homes England,Economic Assets S&Sw Prog,South West,KERNOW TREE SURGERY,03/05/2018,250,S,72101500,Building maintenance and repair services
"Ministry of Housing, Communities and Local Government",Homes England,It - Rda Transition,Finance & Corporate Services,KEYEDIN SOLUTIONS LTD,15/05/2018,475,M,43231500,Business function specific software
"Ministry of Housing, Communities and Local Government",Homes England,Economic Assets Hub Transition,Economic Assets Hub,KEBBELL DEVELOPMENT LIMITED,16/05/2018,152819,,N/A,Loans
"Ministry of Housing, Communities and Local Government",Homes England,Spatial Intelligence Telford,Programmes,LAMBERT SMITH HAMPTON,01/05/2018,75556,L,80131800,Real estate management services
"Ministry of Housing, Communities and Local Government",Homes England,Land And Regeneration Mh,Programmes,LAMBERT SMITH HAMPTON,01/05/2018,650,L,80131800,Real estate management services
"Ministry of Housing, Communities and Local Government",Homes England,Economic Assets Hub Transition,Economic Assets Hub,LAMBERT SMITH HAMPTON,04/05/2018,2000,L,80131800,Real estate management services
"Ministry of Housing, Communities and Local Government",Homes England,Spatial Intelligence Telford,Programmes,LAMBERT SMITH HAMPTON,09/05/2018,1750,L,80131800,Real estate management services
"Ministry of Housing, Communities and Local Government",Homes England,Land And Regeneration Mh,Programmes,LAMBERT SMITH HAMPTON,14/05/2018,650,L,80131800,Real estate management services
"Ministry of Housing, Communities and Local Government",Homes England,Economic Assets Hub Transition,Economic Assets Hub,LAMBERT SMITH HAMPTON,14/05/2018,3500,L,80131800,Real estate management services
"Ministry of Housing, Communities and Local Government",Homes England,Land And Regeneration National,Programmes,LAMBERT SMITH HAMPTON,15/05/2018,25578,L,80131800,Real estate management services
"Ministry of Housing, Communities and Local Government",Homes England,Land And Regeneration Mh,Programmes,LAMBERT SMITH HAMPTON,23/05/2018,600,L,80131800,Real estate management services
"Ministry of Housing, Communities and Local Government",Homes England,Estate Management Yorks,North West,LAMBERT SMITH HAMPTON,25/05/2018,1295,L,80131800,Real estate management services
"Ministry of Housing, Communities and Local Government",Homes England,Capital Grant to RPs,Midlands,HASTOE HOUSING ASSOCIATION LIMITED,30/05/2018,28000,,N/A,Grants
"Ministry of Housing, Communities and Local Government",Homes England,Capital Grant to RPs,East And South East,ORWELL HOUSING ASSOCIATION LIMITED,11/05/2018,9000,,N/A,Grants
"Ministry of Housing, Communities and Local Government",Homes England,Capital Grant to RPs,East And South East,ORWELL HOUSING ASSOCIATION LIMITED,11/05/2018,9000,,N/A,Grants
"Ministry of Housing, Communities and Local Government",Homes England,Capital Grant to RPs,East And South East,ORWELL HOUSING ASSOCIATION LIMITED,11/05/2018,9000,,N/A,Grants
"Ministry of Housing, Communities and Local Government",Homes England,Capital Grant to RPs,East And South East,ORWELL HOUSING ASSOCIATION LIMITED,11/05/2018,9000,,N/A,Grants
"Ministry of Housing, Communities and Local Government",Homes England,Capital Grant to RPs,East And South East,ORWELL HOUSING ASSOCIATION LIMITED,17/05/2018,9000,,N/A,Grants
"Ministry of Housing, Communities and Local Government",Homes England,Capital Grant to RPs,North East And Yorkshire,THE RIVERSIDE GROUP,02/05/2018,18900,,N/A,Grants
"Ministry of Housing, Communities and Local Government",Homes England,Capital Grant to RPs,North East And Yorkshire,THE RIVERSIDE GROUP,02/05/2018,1508500,,N/A,Grants
"Ministry of Housing, Communities and Local Government",Homes England,Capital Grant to RPs,North East And Yorkshire,THE RIVERSIDE GROUP,14/05/2018,9000,,N/A,Grants
"Ministry of Housing, Communities and Local Government",Homes England,Capital Grant to RPs,North East And Yorkshire,THE RIVERSIDE GROUP,22/05/2018,635250,,N/A,Grants
"Ministry of Housing, Communities and Local Government",Homes England,Land And Regeneration National,Programmes,BERRYMANS LACE MAWER,15/05/2018,250,L,80121600,Business law services
"Ministry of Housing, Communities and Local Government",Homes England,Capital Grant to RPs,North East And Yorkshire,SOUTH YORKSHIRE HOUSING ASSOC LTD,14/05/2018,349600,,N/A,Grants
"Ministry of Housing, Communities and Local Government",Homes England,Capital Grant to RPs,Programmes,SANCTUARY HOUSING ASSOCIATION,03/05/2018,10000,,N/A,Grants
"Ministry of Housing, Communities and Local Government",Homes England,Capital Grant to RPs,Programmes,SANCTUARY HOUSING ASSOCIATION,03/05/2018,9000,,N/A,Grants
"Ministry of Housing, Communities and Local Government",Homes England,Capital Grant to RPs,Programmes,SANCTUARY HOUSING ASSOCIATION,04/05/2018,9000,,N/A,Grants
"Ministry of Housing, Communities and Local Government",Homes England,Capital Grant to RPs,Programmes,SANCTUARY HOUSING ASSOCIATION,17/05/2018,42000,,N/A,Grants
"Ministry of Housing, Communities and Local Government",Homes England,Capital Grant to RPs,Programmes,SANCTUARY HOUSING ASSOCIATION,18/05/2018,224000,,N/A,Grants
"Ministry of Housing, Communities and Local Government",Homes England,Capital Grant to RPs,Programmes,SANCTUARY HOUSING ASSOCIATION,21/05/2018,196000,,N/A,Grants
"Ministry of Housing, Communities and Local Government",Homes England,Capital Grant to RPs,South West,KNIGHTSTONE HOUSING ASSOCIATION LIMITED,14/05/2018,35290,,N/A,Grants
"Ministry of Housing, Communities and Local Government",Homes England,Capital Grant to RPs,South West,KNIGHTSTONE HOUSING ASSOCIATION LIMITED,14/05/2018,10000,,N/A,Grants
"Ministry of Housing, Communities and Local Government",Homes England,Capital Grant to RPs,South West,KNIGHTSTONE HOUSING ASSOCIATION LIMITED,31/05/2018,234000,,N/A,Grants
"Ministry of Housing, Communities and Local Government",Homes England,Economic Assets Ne-Y Prog,North East And Yorkshire,LANDSCOPE ENGINEERING LIMITED,29/05/2018,1300,S,72101500,Building maintenance and repair services
"Ministry of Housing, Communities and Local Government",Homes England,Spatial Intelligence Telford,Programmes,THOMAS LISTER LTD,11/05/2018,5472.25,S,80131800,Real estate management services
"Ministry of Housing, Communities and Local Government",Homes England,Spatial Intelligence Telford,Programmes,THOMAS LISTER LTD,11/05/2018,3506.75,S,80131800,Real estate management services
"Ministry of Housing, Communities and Local Government",Homes England,Spatial Intelligence Telford,Programmes,THOMAS LISTER LTD,11/05/2018,3087.5,S,80131800,Real estate management services
"Ministry of Housing, Communities and Local Government",Homes England,Spatial Intelligence Telford,Programmes,THOMAS LISTER LTD,11/05/2018,1662.5,S,80131800,Real estate management services
"Ministry of Housing, Communities and Local Government",Homes England,Halifax Magistrates' Court,North East And Yorkshire,THOMAS LISTER LTD,14/05/2018,1722,S,80131800,Real estate management services
"Ministry of Housing, Communities and Local Government",Homes England,Halifax Cc,North East And Yorkshire,THOMAS LISTER LTD,14/05/2018,5225,S,80131800,Real estate management services
"Ministry of Housing, Communities and Local Government",Homes England,Halifax Cc,North East And Yorkshire,THOMAS LISTER LTD,14/05/2018,310,S,80131800,Real estate management services
"Ministry of Housing, Communities and Local Government",Homes England,Spatial Intelligence Telford,Programmes,THOMAS LISTER LTD,15/05/2018,850,S,80131800,Real estate management services
"Ministry of Housing, Communities and Local Government",Homes England,Spatial Intelligence Telford,Programmes,THOMAS LISTER LTD,16/05/2018,5000,S,80131800,Real estate management services
"Ministry of Housing, Communities and Local Government",Homes England,Spatial Intelligence Telford,Programmes,THOMAS LISTER LTD,17/05/2018,4500,S,80131800,Real estate management services
"Ministry of Housing, Communities and Local Government",Homes England,East And South East,East And South East,THOMAS LISTER LTD,17/05/2018,7541,S,80131800,Real estate management services
"Ministry of Housing, Communities and Local Government",Homes England,Economic Assets Ne-Y Prog,North East And Yorkshire,THOMAS LISTER LTD,30/05/2018,5242,S,80131800,Real estate management services
"Ministry of Housing, Communities and Local Government",Homes England,Help to Buy Additions,South West,SWAYTHLING HOUSING SOCIETY LIMITED,02/05/2018,361,L,N/A,Grants
"Ministry of Housing, Communities and Local Government",Homes England,Help to Buy Additions,South West,SWAYTHLING HOUSING SOCIETY LIMITED,02/05/2018,361,L,N/A,Grants
"Ministry of Housing, Communities and Local Government",Homes England,Help to Buy Additions,South West,SWAYTHLING HOUSING SOCIETY LIMITED,02/05/2018,361,L,N/A,Grants
"Ministry of Housing, Communities and Local Government",Homes England,Help to Buy Additions,South West,SWAYTHLING HOUSING SOCIETY LIMITED,02/05/2018,361,L,N/A,Grants
"Ministry of Housing, Communities and Local Government",Homes England,Help to Buy Additions,South West,SWAYTHLING HOUSING SOCIETY LIMITED,02/05/2018,361,L,N/A,Grants
"Ministry of Housing, Communities and Local Government",Homes England,Help to Buy Additions,South West,SWAYTHLING HOUSING SOCIETY LIMITED,02/05/2018,361,L,N/A,Grants
"Ministry of Housing, Communities and Local Government",Homes England,Help to Buy Additions,South West,SWAYTHLING HOUSING SOCIETY LIMITED,02/05/2018,361,L,N/A,Grants
"Ministry of Housing, Communities and Local Government",Homes England,Help to Buy Additions,South West,SWAYTHLING HOUSING SOCIETY LIMITED,02/05/2018,361,L,N/A,Grants
"Ministry of Housing, Communities and Local Government",Homes England,Help to Buy Additions,South West,SWAYTHLING HOUSING SOCIETY LIMITED,02/05/2018,361,L,N/A,Grants
"Ministry of Housing, Communities and Local Government",Homes England,Help to Buy Additions,South West,SWAYTHLING HOUSING SOCIETY LIMITED,02/05/2018,361,L,N/A,Grants
"Ministry of Housing, Communities and Local Government",Homes England,Help to Buy Additions,South West,SWAYTHLING HOUSING SOCIETY LIMITED,02/05/2018,361,L,N/A,Grants
"Ministry of Housing, Communities and Local Government",Homes England,Help to Buy Additions,South West,SWAYTHLING HOUSING SOCIETY LIMITED,02/05/2018,361,L,N/A,Grants
"Ministry of Housing, Communities and Local Government",Homes England,Help to Buy Additions,South West,SWAYTHLING HOUSING SOCIETY LIMITED,02/05/2018,361,L,N/A,Grants
"Ministry of Housing, Communities and Local Government",Homes England,Help to Buy Additions,South West,SWAYTHLING HOUSING SOCIETY LIMITED,02/05/2018,361,L,N/A,Grants
"Ministry of Housing, Communities and Local Government",Homes England,Help to Buy Additions,South West,SWAYTHLING HOUSING SOCIETY LIMITED,02/05/2018,361,L,N/A,Grants
"Ministry of Housing, Communities and Local Government",Homes England,Help to Buy Additions,South West,SWAYTHLING HOUSING SOCIETY LIMITED,02/05/2018,361,L,N/A,Grants
"Ministry of Housing, Communities and Local Government",Homes England,Help to Buy Additions,South West,SWAYTHLING HOUSING SOCIETY LIMITED,02/05/2018,361,L,N/A,Grants
"Ministry of Housing, Communities and Local Government",Homes England,Help to Buy Additions,South West,SWAYTHLING HOUSING SOCIETY LIMITED,02/05/2018,361,L,N/A,Grants
"Ministry of Housing, Communities and Local Government",Homes England,Help to Buy Additions,South West,SWAYTHLING HOUSING SOCIETY LIMITED,02/05/2018,361,L,N/A,Grants
"Ministry of Housing, Communities and Local Government",Homes England,Help to Buy Additions,South West,SWAYTHLING HOUSING SOCIETY LIMITED,02/05/2018,361,L,N/A,Grants
"Ministry of Housing, Communities and Local Government",Homes England,Help to Buy Additions,South West,SWAYTHLING HOUSING SOCIETY LIMITED,02/05/2018,361,L,N/A,Grants
"Ministry of Housing, Communities and Local Government",Homes England,Help to Buy Additions,South West,SWAYTHLING HOUSING SOCIETY LIMITED,02/05/2018,361,L,N/A,Grants
"Ministry of Housing, Communities and Local Government",Homes England,Help to Buy Additions,South West,SWAYTHLING HOUSING SOCIETY LIMITED,02/05/2018,361,L,N/A,Grants
"Ministry of Housing, Communities and Local Government",Homes England,Help to Buy Additions,South West,SWAYTHLING HOUSING SOCIETY LIMITED,02/05/2018,361,L,N/A,Grants
"Ministry of Housing, Communities and Local Government",Homes England,Help to Buy Additions,South West,SWAYTHLING HOUSING SOCIETY LIMITED,02/05/2018,361,L,N/A,Grants
"Ministry of Housing, Communities and Local Government",Homes England,Help to Buy Additions,South West,SWAYTHLING HOUSING SOCIETY LIMITED,02/05/2018,361,L,N/A,Grants
"Ministry of Housing, Communities and Local Government",Homes England,Help to Buy Additions,South West,SWAYTHLING HOUSING SOCIETY LIMITED,02/05/2018,361,L,N/A,Grants
"Ministry of Housing, Communities and Local Government",Homes England,Help to Buy Additions,South West,SWAYTHLING HOUSING SOCIETY LIMITED,02/05/2018,361,L,N/A,Grants
"Ministry of Housing, Communities and Local Government",Homes England,Help to Buy Additions,South West,SWAYTHLING HOUSING SOCIETY LIMITED,03/05/2018,361,L,N/A,Grants
"Ministry of Housing, Communities and Local Government",Homes England,Help to Buy Additions,South West,SWAYTHLING HOUSING SOCIETY LIMITED,03/05/2018,361,L,N/A,Grants
"Ministry of Housing, Communities and Local Government",Homes England,Help to Buy Additions,South West,SWAYTHLING HOUSING SOCIETY LIMITED,03/05/2018,361,L,N/A,Grants
"Ministry of Housing, Communities and Local Government",Homes England,Help to Buy Additions,South West,SWAYTHLING HOUSING SOCIETY LIMITED,03/05/2018,361,L,N/A,Grants
"Ministry of Housing, Communities and Local Government",Homes England,Help to Buy Additions,South West,SWAYTHLING HOUSING SOCIETY LIMITED,03/05/2018,361,L,N/A,Grants
"Ministry of Housing, Communities and Local Government",Homes England,Help to Buy Additions,South West,SWAYTHLING HOUSING SOCIETY LIMITED,03/05/2018,361,L,N/A,Grants
"Ministry of Housing, Communities and Local Government",Homes England,Help to Buy Additions,South West,SWAYTHLING HOUSING SOCIETY LIMITED,03/05/2018,361,L,N/A,Grants
"Ministry of Housing, Communities and Local Government",Homes England,Help to Buy Additions,South West,SWAYTHLING HOUSING SOCIETY LIMITED,03/05/2018,361,L,N/A,Grants
"Ministry of Housing, Communities and Local Government",Homes England,Help to Buy Additions,South West,SWAYTHLING HOUSING SOCIETY LIMITED,03/05/2018,361,L,N/A,Grants
"Ministry of Housing, Communities and Local Government",Homes England,Help to Buy Additions,South West,SWAYTHLING HOUSING SOCIETY LIMITED,03/05/2018,361,L,N/A,Grants
"Ministry of Housing, Communities and Local Government",Homes England,Help to Buy Additions,South West,SWAYTHLING HOUSING SOCIETY LIMITED,03/05/2018,361,L,N/A,Grants
"Ministry of Housing, Communities and Local Government",Homes England,Help to Buy Additions,South West,SWAYTHLING HOUSING SOCIETY LIMITED,03/05/2018,361,L,N/A,Grants
"Ministry of Housing, Communities and Local Government",Homes England,Help to Buy Additions,South West,SWAYTHLING HOUSING SOCIETY LIMITED,03/05/2018,361,L,N/A,Grants
"Ministry of Housing, Communities and Local Government",Homes England,Help to Buy Additions,South West,SWAYTHLING HOUSING SOCIETY LIMITED,03/05/2018,361,L,N/A,Grants
"Ministry of Housing, Communities and Local Government",Homes England,Help to Buy Additions,South West,SWAYTHLING HOUSING SOCIETY LIMITED,03/05/2018,361,L,N/A,Grants
"Ministry of Housing, Communities and Local Government",Homes England,Help to Buy Additions,South West,SWAYTHLING HOUSING SOCIETY LIMITED,03/05/2018,361,L,N/A,Grants
"Ministry of Housing, Communities and Local Government",Homes England,Help to Buy Additions,South West,SWAYTHLING HOUSING SOCIETY LIMITED,03/05/2018,361,L,N/A,Grants
"Ministry of Housing, Communities and Local Government",Homes England,Help to Buy Additions,South West,SWAYTHLING HOUSING SOCIETY LIMITED,03/05/2018,361,L,N/A,Grants
"Ministry of Housing, Communities and Local Government",Homes England,Help to Buy Additions,South West,SWAYTHLING HOUSING SOCIETY LIMITED,03/05/2018,361,L,N/A,Grants
"Ministry of Housing, Communities and Local Government",Homes England,Help to Buy Additions,South West,SWAYTHLING HOUSING SOCIETY LIMITED,03/05/2018,361,L,N/A,Grants
"Ministry of Housing, Communities and Local Government",Homes England,Help to Buy Additions,South West,SWAYTHLING HOUSING SOCIETY LIMITED,03/05/2018,361,L,N/A,Grants
"Ministry of Housing, Communities and Local Government",Homes England,Help to Buy Additions,South West,SWAYTHLING HOUSING SOCIETY LIMITED,03/05/2018,361,L,N/A,Grants
"Ministry of Housing, Communities and Local Government",Homes England,Help to Buy Additions,South West,SWAYTHLING HOUSING SOCIETY LIMITED,03/05/2018,361,L,N/A,Grants
"Ministry of Housing, Communities and Local Government",Homes England,Help to Buy Additions,South West,SWAYTHLING HOUSING SOCIETY LIMITED,03/05/2018,361,L,N/A,Grants
"Ministry of Housing, Communities and Local Government",Homes England,Help to Buy Additions,South West,SWAYTHLING HOUSING SOCIETY LIMITED,03/05/2018,361,L,N/A,Grants
"Ministry of Housing, Communities and Local Government",Homes England,Help to Buy Additions,South West,SWAYTHLING HOUSING SOCIETY LIMITED,03/05/2018,361,L,N/A,Grants
"Ministry of Housing, Communities and Local Government",Homes England,Help to Buy Additions,South West,SWAYTHLING HOUSING SOCIETY LIMITED,04/05/2018,361,L,N/A,Grants
"Ministry of Housing, Communities and Local Government",Homes England,Help to Buy Additions,South West,SWAYTHLING HOUSING SOCIETY LIMITED,04/05/2018,361,L,N/A,Grants
"Ministry of Housing, Communities and Local Government",Homes England,Help to Buy Additions,South West,SWAYTHLING HOUSING SOCIETY LIMITED,04/05/2018,361,L,N/A,Grants
"Ministry of Housing, Communities and Local Government",Homes England,Help to Buy Additions,South West,SWAYTHLING HOUSING SOCIETY LIMITED,04/05/2018,361,L,N/A,Grants
"Ministry of Housing, Communities and Local Government",Homes England,Help to Buy Additions,South West,SWAYTHLING HOUSING SOCIETY LIMITED,04/05/2018,361,L,N/A,Grants
"Ministry of Housing, Communities and Local Government",Homes England,Help to Buy Additions,South West,SWAYTHLING HOUSING SOCIETY LIMITED,04/05/2018,361,L,N/A,Grants
"Ministry of Housing, Communities and Local Government",Homes England,Help to Buy Additions,South West,SWAYTHLING HOUSING SOCIETY LIMITED,04/05/2018,361,L,N/A,Grants
"Ministry of Housing, Communities and Local Government",Homes England,Help to Buy Additions,South West,SWAYTHLING HOUSING SOCIETY LIMITED,04/05/2018,361,L,N/A,Grants
"Ministry of Housing, Communities and Local Government",Homes England,Help to Buy Additions,South West,SWAYTHLING HOUSING SOCIETY LIMITED,04/05/2018,361,L,N/A,Grants
"Ministry of Housing, Communities and Local Government",Homes England,Help to Buy Additions,South West,SWAYTHLING HOUSING SOCIETY LIMITED,04/05/2018,361,L,N/A,Grants
"Ministry of Housing, Communities and Local Government",Homes England,Help to Buy Additions,South West,SWAYTHLING HOUSING SOCIETY LIMITED,04/05/2018,361,L,N/A,Grants
"Ministry of Housing, Communities and Local Government",Homes England,Help to Buy Additions,South West,SWAYTHLING HOUSING SOCIETY LIMITED,04/05/2018,361,L,N/A,Grants
"Ministry of Housing, Communities and Local Government",Homes England,Help to Buy Additions,South West,SWAYTHLING HOUSING SOCIETY LIMITED,04/05/2018,361,L,N/A,Grants
"Ministry of Housing, Communities and Local Government",Homes England,Help to Buy Additions,South West,SWAYTHLING HOUSING SOCIETY LIMITED,04/05/2018,361,L,N/A,Grants
"Ministry of Housing, Communities and Local Government",Homes England,Help to Buy Additions,South West,SWAYTHLING HOUSING SOCIETY LIMITED,04/05/2018,361,L,N/A,Grants
"Ministry of Housing, Communities and Local Government",Homes England,Help to Buy Additions,South West,SWAYTHLING HOUSING SOCIETY LIMITED,04/05/2018,361,L,N/A,Grants
"Ministry of Housing, Communities and Local Government",Homes England,Help to Buy Additions,South West,SWAYTHLING HOUSING SOCIETY LIMITED,08/05/2018,361,L,N/A,Grants
"Ministry of Housing, Communities and Local Government",Homes England,Help to Buy Additions,South West,SWAYTHLING HOUSING SOCIETY LIMITED,08/05/2018,361,L,N/A,Grants
"Ministry of Housing, Communities and Local Government",Homes England,Help to Buy Additions,South West,SWAYTHLING HOUSING SOCIETY LIMITED,08/05/2018,361,L,N/A,Grants
"Ministry of Housing, Communities and Local Government",Homes England,Help to Buy Additions,South West,SWAYTHLING HOUSING SOCIETY LIMITED,08/05/2018,361,L,N/A,Grants
"Ministry of Housing, Communities and Local Government",Homes England,Help to Buy Additions,South West,SWAYTHLING HOUSING SOCIETY LIMITED,08/05/2018,361,L,N/A,Grants
"Ministry of Housing, Communities and Local Government",Homes England,Help to Buy Additions,South West,SWAYTHLING HOUSING SOCIETY LIMITED,08/05/2018,361,L,N/A,Grants
"Ministry of Housing, Communities and Local Government",Homes England,Help to Buy Additions,South West,SWAYTHLING HOUSING SOCIETY LIMITED,08/05/2018,361,L,N/A,Grants
"Ministry of Housing, Communities and Local Government",Homes England,Help to Buy Additions,South West,SWAYTHLING HOUSING SOCIETY LIMITED,08/05/2018,361,L,N/A,Grants
"Ministry of Housing, Communities and Local Government",Homes England,Help to Buy Additions,South West,SWAYTHLING HOUSING SOCIETY LIMITED,08/05/2018,361,L,N/A,Grants
"Ministry of Housing, Communities and Local Government",Homes England,Help to Buy Additions,South West,SWAYTHLING HOUSING SOCIETY LIMITED,08/05/2018,361,L,N/A,Grants
"Ministry of Housing, Communities and Local Government",Homes England,Help to Buy Additions,South West,SWAYTHLING HOUSING SOCIETY LIMITED,08/05/2018,361,L,N/A,Grants
"Ministry of Housing, Communities and Local Government",Homes England,Help to Buy Additions,South West,SWAYTHLING HOUSING SOCIETY LIMITED,08/05/2018,361,L,N/A,Grants
"Ministry of Housing, Communities and Local Government",Homes England,Help to Buy Additions,South West,SWAYTHLING HOUSING SOCIETY LIMITED,08/05/2018,361,L,N/A,Grants
"Ministry of Housing, Communities and Local Government",Homes England,Help to Buy Additions,South West,SWAYTHLING HOUSING SOCIETY LIMITED,08/05/2018,361,L,N/A,Grants
"Ministry of Housing, Communities and Local Government",Homes England,Help to Buy Additions,South West,SWAYTHLING HOUSING SOCIETY LIMITED,08/05/2018,361,L,N/A,Grants
"Ministry of Housing, Communities and Local Government",Homes England,Help to Buy Additions,South West,SWAYTHLING HOUSING SOCIETY LIMITED,08/05/2018,361,L,N/A,Grants
"Ministry of Housing, Communities and Local Government",Homes England,Help to Buy Additions,South West,SWAYTHLING HOUSING SOCIETY LIMITED,08/05/2018,361,L,N/A,Grants
"Ministry of Housing, Communities and Local Government",Homes England,Help to Buy Additions,South West,SWAYTHLING HOUSING SOCIETY LIMITED,08/05/2018,361,L,N/A,Grants
"Ministry of Housing, Communities and Local Government",Homes England,Help to Buy Additions,South West,SWAYTHLING HOUSING SOCIETY LIMITED,08/05/2018,361,L,N/A,Grants
"Ministry of Housing, Communities and Local Government",Homes England,Help to Buy Additions,South West,SWAYTHLING HOUSING SOCIETY LIMITED,09/05/2018,361,L,N/A,Grants
"Ministry of Housing, Communities and Local Government",Homes England,Help to Buy Additions,South West,SWAYTHLING HOUSING SOCIETY LIMITED,09/05/2018,64000,L,N/A,Grants
"Ministry of Housing, Communities and Local Government",Homes England,Help to Buy Additions,South West,SWAYTHLING HOUSING SOCIETY LIMITED,09/05/2018,361,L,N/A,Grants
"Ministry of Housing, Communities and Local Government",Homes England,Help to Buy Additions,South West,SWAYTHLING HOUSING SOCIETY LIMITED,09/05/2018,361,L,N/A,Grants
"Ministry of Housing, Communities and Local Government",Homes England,Help to Buy Additions,South West,SWAYTHLING HOUSING SOCIETY LIMITED,09/05/2018,361,L,N/A,Grants
"Ministry of Housing, Communities and Local Government",Homes England,Help to Buy Additions,South West,SWAYTHLING HOUSING SOCIETY LIMITED,09/05/2018,361,L,N/A,Grants
"Ministry of Housing, Communities and Local Government",Homes England,Help to Buy Additions,South West,SWAYTHLING HOUSING SOCIETY LIMITED,09/05/2018,361,L,N/A,Grants
"Ministry of Housing, Communities and Local Government",Homes England,Help to Buy Additions,South West,SWAYTHLING HOUSING SOCIETY LIMITED,09/05/2018,361,L,N/A,Grants
"Ministry of Housing, Communities and Local Government",Homes England,Help to Buy Additions,South West,SWAYTHLING HOUSING SOCIETY LIMITED,09/05/2018,361,L,N/A,Grants
"Ministry of Housing, Communities and Local Government",Homes England,Help to Buy Additions,South West,SWAYTHLING HOUSING SOCIETY LIMITED,09/05/2018,361,L,N/A,Grants
"Ministry of Housing, Communities and Local Government",Homes England,Help to Buy Additions,South West,SWAYTHLING HOUSING SOCIETY LIMITED,09/05/2018,361,L,N/A,Grants
"Ministry of Housing, Communities and Local Government",Homes England,Help to Buy Additions,South West,SWAYTHLING HOUSING SOCIETY LIMITED,09/05/2018,361,L,N/A,Grants
"Ministry of Housing, Communities and Local Government",Homes England,Help to Buy Additions,South West,SWAYTHLING HOUSING SOCIETY LIMITED,09/05/2018,361,L,N/A,Grants
"Ministry of Housing, Communities and Local Government",Homes England,Help to Buy Additions,South West,SWAYTHLING HOUSING SOCIETY LIMITED,09/05/2018,361,L,N/A,Grants
"Ministry of Housing, Communities and Local Government",Homes England,Help to Buy Additions,South West,SWAYTHLING HOUSING SOCIETY LIMITED,09/05/2018,361,L,N/A,Grants
"Ministry of Housing, Communities and Local Government",Homes England,Help to Buy Additions,South West,SWAYTHLING HOUSING SOCIETY LIMITED,09/05/2018,361,L,N/A,Grants
"Ministry of Housing, Communities and Local Government",Homes England,Help to Buy Additions,South West,SWAYTHLING HOUSING SOCIETY LIMITED,09/05/2018,361,L,N/A,Grants
"Ministry of Housing, Communities and Local Government",Homes England,Help to Buy Additions,South West,SWAYTHLING HOUSING SOCIETY LIMITED,09/05/2018,361,L,N/A,Grants
"Ministry of Housing, Communities and Local Government",Homes England,Help to Buy Additions,South West,SWAYTHLING HOUSING SOCIETY LIMITED,10/05/2018,361,L,N/A,Grants
"Ministry of Housing, Communities and Local Government",Homes England,Help to Buy Additions,South West,SWAYTHLING HOUSING SOCIETY LIMITED,10/05/2018,361,L,N/A,Grants
"Ministry of Housing, Communities and Local Government",Homes England,Help to Buy Additions,South West,SWAYTHLING HOUSING SOCIETY LIMITED,10/05/2018,361,L,N/A,Grants
"Ministry of Housing, Communities and Local Government",Homes England,Help to Buy Additions,South West,SWAYTHLING HOUSING SOCIETY LIMITED,10/05/2018,361,L,N/A,Grants
"Ministry of Housing, Communities and Local Government",Homes England,Help to Buy Additions,South West,SWAYTHLING HOUSING SOCIETY LIMITED,10/05/2018,361,L,N/A,Grants
"Ministry of Housing, Communities and Local Government",Homes England,Help to Buy Additions,South West,SWAYTHLING HOUSING SOCIETY LIMITED,10/05/2018,58000,L,N/A,Grants
"Ministry of Housing, Communities and Local Government",Homes England,Help to Buy Additions,South West,SWAYTHLING HOUSING SOCIETY LIMITED,10/05/2018,361,L,N/A,Grants
"Ministry of Housing, Communities and Local Government",Homes England,Help to Buy Additions,South West,SWAYTHLING HOUSING SOCIETY LIMITED,10/05/2018,361,L,N/A,Grants
"Ministry of Housing, Communities and Local Government",Homes England,Help to Buy Additions,South West,SWAYTHLING HOUSING SOCIETY LIMITED,10/05/2018,361,L,N/A,Grants
"Ministry of Housing, Communities and Local Government",Homes England,Help to Buy Additions,South West,SWAYTHLING HOUSING SOCIETY LIMITED,10/05/2018,361,L,N/A,Grants
"Ministry of Housing, Communities and Local Government",Homes England,Help to Buy Additions,South West,SWAYTHLING HOUSING SOCIETY LIMITED,10/05/2018,361,L,N/A,Grants
"Ministry of Housing, Communities and Local Government",Homes England,Help to Buy Additions,South West,SWAYTHLING HOUSING SOCIETY LIMITED,10/05/2018,361,L,N/A,Grants
"Ministry of Housing, Communities and Local Government",Homes England,Help to Buy Additions,South West,SWAYTHLING HOUSING SOCIETY LIMITED,10/05/2018,361,L,N/A,Grants
"Ministry of Housing, Communities and Local Government",Homes England,Help to Buy Additions,South West,SWAYTHLING HOUSING SOCIETY LIMITED,10/05/2018,361,L,N/A,Grants
"Ministry of Housing, Communities and Local Government",Homes England,Help to Buy Additions,South West,SWAYTHLING HOUSING SOCIETY LIMITED,10/05/2018,361,L,N/A,Grants
"Ministry of Housing, Communities and Local Government",Homes England,Help to Buy Additions,South West,SWAYTHLING HOUSING SOCIETY LIMITED,10/05/2018,361,L,N/A,Grants
"Ministry of Housing, Communities and Local Government",Homes England,Help to Buy Additions,South West,SWAYTHLING HOUSING SOCIETY LIMITED,10/05/2018,361,L,N/A,Grants
"Ministry of Housing, Communities and Local Government",Homes England,Help to Buy Additions,South West,SWAYTHLING HOUSING SOCIETY LIMITED,10/05/2018,361,L,N/A,Grants
"Ministry of Housing, Communities and Local Government",Homes England,Help to Buy Additions,South West,SWAYTHLING HOUSING SOCIETY LIMITED,10/05/2018,361,L,N/A,Grants
"Ministry of Housing, Communities and Local Government",Homes England,Help to Buy Additions,South West,SWAYTHLING HOUSING SOCIETY LIMITED,10/05/2018,361,L,N/A,Grants
"Ministry of Housing, Communities and Local Government",Homes England,Help to Buy Additions,South West,SWAYTHLING HOUSING SOCIETY LIMITED,10/05/2018,361,L,N/A,Grants
"Ministry of Housing, Communities and Local Government",Homes England,Help to Buy Additions,South West,SWAYTHLING HOUSING SOCIETY LIMITED,10/05/2018,361,L,N/A,Grants
"Ministry of Housing, Communities and Local Government",Homes England,Help to Buy Additions,South West,SWAYTHLING HOUSING SOCIETY LIMITED,10/05/2018,361,L,N/A,Grants
"Ministry of Housing, Communities and Local Government",Homes England,Help to Buy Additions,South West,SWAYTHLING HOUSING SOCIETY LIMITED,11/05/2018,361,L,N/A,Grants
"Ministry of Housing, Communities and Local Government",Homes England,Help to Buy Additions,South West,SWAYTHLING HOUSING SOCIETY LIMITED,11/05/2018,361,L,N/A,Grants
"Ministry of Housing, Communities and Local Government",Homes England,Help to Buy Additions,South West,SWAYTHLING HOUSING SOCIETY LIMITED,11/05/2018,361,L,N/A,Grants
"Ministry of Housing, Communities and Local Government",Homes England,Help to Buy Additions,South West,SWAYTHLING HOUSING SOCIETY LIMITED,11/05/2018,361,L,N/A,Grants
"Ministry of Housing, Communities and Local Government",Homes England,Help to Buy Additions,South West,SWAYTHLING HOUSING SOCIETY LIMITED,11/05/2018,361,L,N/A,Grants
"Ministry of Housing, Communities and Local Government",Homes England,Help to Buy Additions,South West,SWAYTHLING HOUSING SOCIETY LIMITED,11/05/2018,361,L,N/A,Grants
"Ministry of Housing, Communities and Local Government",Homes England,Help to Buy Additions,South West,SWAYTHLING HOUSING SOCIETY LIMITED,11/05/2018,361,L,N/A,Grants
"Ministry of Housing, Communities and Local Government",Homes England,Help to Buy Additions,South West,SWAYTHLING HOUSING SOCIETY LIMITED,11/05/2018,361,L,N/A,Grants
"Ministry of Housing, Communities and Local Government",Homes England,Help to Buy Additions,South West,SWAYTHLING HOUSING SOCIETY LIMITED,11/05/2018,361,L,N/A,Grants
"Ministry of Housing, Communities and Local Government",Homes England,Help to Buy Additions,South West,SWAYTHLING HOUSING SOCIETY LIMITED,11/05/2018,361,L,N/A,Grants
"Ministry of Housing, Communities and Local Government",Homes England,Help to Buy Additions,South West,SWAYTHLING HOUSING SOCIETY LIMITED,11/05/2018,361,L,N/A,Grants
"Ministry of Housing, Communities and Local Government",Homes England,Help to Buy Additions,South West,SWAYTHLING HOUSING SOCIETY LIMITED,11/05/2018,361,L,N/A,Grants
"Ministry of Housing, Communities and Local Government",Homes England,Help to Buy Additions,South West,SWAYTHLING HOUSING SOCIETY LIMITED,11/05/2018,361,L,N/A,Grants
"Ministry of Housing, Communities and Local Government",Homes England,Help to Buy Additions,South West,SWAYTHLING HOUSING SOCIETY LIMITED,14/05/2018,361,L,N/A,Grants
"Ministry of Housing, Communities and Local Government",Homes England,Help to Buy Additions,South West,SWAYTHLING HOUSING SOCIETY LIMITED,14/05/2018,361,L,N/A,Grants
"Ministry of Housing, Communities and Local Government",Homes England,Help to Buy Additions,South West,SWAYTHLING HOUSING SOCIETY LIMITED,14/05/2018,361,L,N/A,Grants
"Ministry of Housing, Communities and Local Government",Homes England,Help to Buy Additions,South West,SWAYTHLING HOUSING SOCIETY LIMITED,14/05/2018,361,L,N/A,Grants
"Ministry of Housing, Communities and Local Government",Homes England,Help to Buy Additions,South West,SWAYTHLING HOUSING SOCIETY LIMITED,14/05/2018,361,L,N/A,Grants
"Ministry of Housing, Communities and Local Government",Homes England,Help to Buy Additions,South West,SWAYTHLING HOUSING SOCIETY LIMITED,14/05/2018,361,L,N/A,Grants
"Ministry of Housing, Communities and Local Government",Homes England,Help to Buy Additions,South West,SWAYTHLING HOUSING SOCIETY LIMITED,14/05/2018,361,L,N/A,Grants
"Ministry of Housing, Communities and Local Government",Homes England,Help to Buy Additions,South West,SWAYTHLING HOUSING SOCIETY LIMITED,14/05/2018,361,L,N/A,Grants
"Ministry of Housing, Communities and Local Government",Homes England,Help to Buy Additions,South West,SWAYTHLING HOUSING SOCIETY LIMITED,14/05/2018,361,L,N/A,Grants
"Ministry of Housing, Communities and Local Government",Homes England,Help to Buy Additions,South West,SWAYTHLING HOUSING SOCIETY LIMITED,14/05/2018,361,L,N/A,Grants
"Ministry of Housing, Communities and Local Government",Homes England,Help to Buy Additions,South West,SWAYTHLING HOUSING SOCIETY LIMITED,14/05/2018,361,L,N/A,Grants
"Ministry of Housing, Communities and Local Government",Homes England,Help to Buy Additions,South West,SWAYTHLING HOUSING SOCIETY LIMITED,14/05/2018,361,L,N/A,Grants
"Ministry of Housing, Communities and Local Government",Homes England,Help to Buy Additions,South West,SWAYTHLING HOUSING SOCIETY LIMITED,14/05/2018,361,L,N/A,Grants
"Ministry of Housing, Communities and Local Government",Homes England,Help to Buy Additions,South West,SWAYTHLING HOUSING SOCIETY LIMITED,14/05/2018,361,L,N/A,Grants
"Ministry of Housing, Communities and Local Government",Homes England,Help to Buy Additions,South West,SWAYTHLING HOUSING SOCIETY LIMITED,14/05/2018,361,L,N/A,Grants
"Ministry of Housing, Communities and Local Government",Homes England,Help to Buy Additions,South West,SWAYTHLING HOUSING SOCIETY LIMITED,14/05/2018,361,L,N/A,Grants
"Ministry of Housing, Communities and Local Government",Homes England,Help to Buy Additions,South West,SWAYTHLING HOUSING SOCIETY LIMITED,14/05/2018,361,L,N/A,Grants
"Ministry of Housing, Communities and Local Government",Homes England,Help to Buy Additions,South West,SWAYTHLING HOUSING SOCIETY LIMITED,14/05/2018,361,L,N/A,Grants
"Ministry of Housing, Communities and Local Government",Homes England,Help to Buy Additions,South West,SWAYTHLING HOUSING SOCIETY LIMITED,14/05/2018,361,L,N/A,Grants
"Ministry of Housing, Communities and Local Government",Homes England,Help to Buy Additions,South West,SWAYTHLING HOUSING SOCIETY LIMITED,14/05/2018,361,L,N/A,Grants
"Ministry of Housing, Communities and Local Government",Homes England,Help to Buy Additions,South West,SWAYTHLING HOUSING SOCIETY LIMITED,14/05/2018,361,L,N/A,Grants
"Ministry of Housing, Communities and Local Government",Homes England,Help to Buy Additions,South West,SWAYTHLING HOUSING SOCIETY LIMITED,14/05/2018,361,L,N/A,Grants
"Ministry of Housing, Communities and Local Government",Homes England,Help to Buy Additions,South West,SWAYTHLING HOUSING SOCIETY LIMITED,14/05/2018,361,L,N/A,Grants
"Ministry of Housing, Communities and Local Government",Homes England,Help to Buy Additions,South West,SWAYTHLING HOUSING SOCIETY LIMITED,14/05/2018,361,L,N/A,Grants
"Ministry of Housing, Communities and Local Government",Homes England,Help to Buy Additions,South West,SWAYTHLING HOUSING SOCIETY LIMITED,14/05/2018,361,L,N/A,Grants
"Ministry of Housing, Communities and Local Government",Homes England,Help to Buy Additions,South West,SWAYTHLING HOUSING SOCIETY LIMITED,14/05/2018,361,L,N/A,Grants
"Ministry of Housing, Communities and Local Government",Homes England,Help to Buy Additions,South West,SWAYTHLING HOUSING SOCIETY LIMITED,14/05/2018,361,L,N/A,Grants
"Ministry of Housing, Communities and Local Government",Homes England,Help to Buy Additions,South West,SWAYTHLING HOUSING SOCIETY LIMITED,14/05/2018,361,L,N/A,Grants
"Ministry of Housing, Communities and Local Government",Homes England,Help to Buy Additions,South West,SWAYTHLING HOUSING SOCIETY LIMITED,14/05/2018,361,L,N/A,Grants
"Ministry of Housing, Communities and Local Government",Homes England,Help to Buy Additions,South West,SWAYTHLING HOUSING SOCIETY LIMITED,14/05/2018,361,L,N/A,Grants
"Ministry of Housing, Communities and Local Government",Homes England,Help to Buy Additions,South West,SWAYTHLING HOUSING SOCIETY LIMITED,14/05/2018,361,L,N/A,Grants
"Ministry of Housing, Communities and Local Government",Homes England,Help to Buy Additions,South West,SWAYTHLING HOUSING SOCIETY LIMITED,14/05/2018,361,L,N/A,Grants
"Ministry of Housing, Communities and Local Government",Homes England,Help to Buy Additions,South West,SWAYTHLING HOUSING SOCIETY LIMITED,14/05/2018,361,L,N/A,Grants
"Ministry of Housing, Communities and Local Government",Homes England,Help to Buy Additions,South West,SWAYTHLING HOUSING SOCIETY LIMITED,14/05/2018,361,L,N/A,Grants
"Ministry of Housing, Communities and Local Government",Homes England,Help to Buy Additions,South West,SWAYTHLING HOUSING SOCIETY LIMITED,14/05/2018,361,L,N/A,Grants
"Ministry of Housing, Communities and Local Government",Homes England,Help to Buy Additions,South West,SWAYTHLING HOUSING SOCIETY LIMITED,15/05/2018,361,L,N/A,Grants
"Ministry of Housing, Communities and Local Government",Homes England,Help to Buy Additions,South West,SWAYTHLING HOUSING SOCIETY LIMITED,15/05/2018,361,L,N/A,Grants
"Ministry of Housing, Communities and Local Government",Homes England,Help to Buy Additions,South West,SWAYTHLING HOUSING SOCIETY LIMITED,15/05/2018,361,L,N/A,Grants
"Ministry of Housing, Communities and Local Government",Homes England,Help to Buy Additions,South West,SWAYTHLING HOUSING SOCIETY LIMITED,15/05/2018,361,L,N/A,Grants
"Ministry of Housing, Communities and Local Government",Homes England,Help to Buy Additions,South West,SWAYTHLING HOUSING SOCIETY LIMITED,15/05/2018,361,L,N/A,Grants
"Ministry of Housing, Communities and Local Government",Homes England,Help to Buy Additions,South West,SWAYTHLING HOUSING SOCIETY LIMITED,15/05/2018,361,L,N/A,Grants
"Ministry of Housing, Communities and Local Government",Homes England,Help to Buy Additions,South West,SWAYTHLING HOUSING SOCIETY LIMITED,15/05/2018,361,L,N/A,Grants
"Ministry of Housing, Communities and Local Government",Homes England,Help to Buy Additions,South West,SWAYTHLING HOUSING SOCIETY LIMITED,15/05/2018,361,L,N/A,Grants
"Ministry of Housing, Communities and Local Government",Homes England,Help to Buy Additions,South West,SWAYTHLING HOUSING SOCIETY LIMITED,15/05/2018,361,L,N/A,Grants
"Ministry of Housing, Communities and Local Government",Homes England,Help to Buy Additions,South West,SWAYTHLING HOUSING SOCIETY LIMITED,15/05/2018,361,L,N/A,Grants
"Ministry of Housing, Communities and Local Government",Homes England,Help to Buy Additions,South West,SWAYTHLING HOUSING SOCIETY LIMITED,15/05/2018,361,L,N/A,Grants
"Ministry of Housing, Communities and Local Government",Homes England,Help to Buy Additions,South West,SWAYTHLING HOUSING SOCIETY LIMITED,15/05/2018,361,L,N/A,Grants
"Ministry of Housing, Communities and Local Government",Homes England,Help to Buy Additions,South West,SWAYTHLING HOUSING SOCIETY LIMITED,15/05/2018,361,L,N/A,Grants
"Ministry of Housing, Communities and Local Government",Homes England,Help to Buy Additions,South West,SWAYTHLING HOUSING SOCIETY LIMITED,15/05/2018,361,L,N/A,Grants
"Ministry of Housing, Communities and Local Government",Homes England,Help to Buy Additions,South West,SWAYTHLING HOUSING SOCIETY LIMITED,15/05/2018,361,L,N/A,Grants
"Ministry of Housing, Communities and Local Government",Homes England,Help to Buy Additions,South West,SWAYTHLING HOUSING SOCIETY LIMITED,15/05/2018,361,L,N/A,Grants
"Ministry of Housing, Communities and Local Government",Homes England,Help to Buy Additions,South West,SWAYTHLING HOUSING SOCIETY LIMITED,15/05/2018,361,L,N/A,Grants
"Ministry of Housing, Communities and Local Government",Homes England,Help to Buy Additions,South West,SWAYTHLING HOUSING SOCIETY LIMITED,15/05/2018,361,L,N/A,Grants
"Ministry of Housing, Communities and Local Government",Homes England,Help to Buy Additions,South West,SWAYTHLING HOUSING SOCIETY LIMITED,15/05/2018,361,L,N/A,Grants
"Ministry of Housing, Communities and Local Government",Homes England,Help to Buy Additions,South West,SWAYTHLING HOUSING SOCIETY LIMITED,15/05/2018,361,L,N/A,Grants
"Ministry of Housing, Communities and Local Government",Homes England,Help to Buy Additions,South West,SWAYTHLING HOUSING SOCIETY LIMITED,15/05/2018,361,L,N/A,Grants
"Ministry of Housing, Communities and Local Government",Homes England,Help to Buy Additions,South West,SWAYTHLING HOUSING SOCIETY LIMITED,15/05/2018,361,L,N/A,Grants
"Ministry of Housing, Communities and Local Government",Homes England,Help to Buy Additions,South West,SWAYTHLING HOUSING SOCIETY LIMITED,15/05/2018,361,L,N/A,Grants
"Ministry of Housing, Communities and Local Government",Homes England,Help to Buy Additions,South West,SWAYTHLING HOUSING SOCIETY LIMITED,15/05/2018,361,L,N/A,Grants
"Ministry of Housing, Communities and Local Government",Homes England,Help to Buy Additions,South West,SWAYTHLING HOUSING SOCIETY LIMITED,15/05/2018,361,L,N/A,Grants
"Ministry of Housing, Communities and Local Government",Homes England,Help to Buy Additions,South West,SWAYTHLING HOUSING SOCIETY LIMITED,15/05/2018,361,L,N/A,Grants
"Ministry of Housing, Communities and Local Government",Homes England,Help to Buy Additions,South West,SWAYTHLING HOUSING SOCIETY LIMITED,15/05/2018,361,L,N/A,Grants
"Ministry of Housing, Communities and Local Government",Homes England,Help to Buy Additions,South West,SWAYTHLING HOUSING SOCIETY LIMITED,15/05/2018,361,L,N/A,Grants
"Ministry of Housing, Communities and Local Government",Homes England,Help to Buy Additions,South West,SWAYTHLING HOUSING SOCIETY LIMITED,15/05/2018,361,L,N/A,Grants
"Ministry of Housing, Communities and Local Government",Homes England,Help to Buy Additions,South West,SWAYTHLING HOUSING SOCIETY LIMITED,15/05/2018,361,L,N/A,Grants
"Ministry of Housing, Communities and Local Government",Homes England,Help to Buy Additions,South West,SWAYTHLING HOUSING SOCIETY LIMITED,15/05/2018,361,L,N/A,Grants
"Ministry of Housing, Communities and Local Government",Homes England,Help to Buy Additions,South West,SWAYTHLING HOUSING SOCIETY LIMITED,16/05/2018,361,L,N/A,Grants
"Ministry of Housing, Communities and Local Government",Homes England,Help to Buy Additions,South West,SWAYTHLING HOUSING SOCIETY LIMITED,16/05/2018,361,L,N/A,Grants
"Ministry of Housing, Communities and Local Government",Homes England,Help to Buy Additions,South West,SWAYTHLING HOUSING SOCIETY LIMITED,16/05/2018,361,L,N/A,Grants
